Body Name,Date Paid,Transaction Number,Amount,Supplier Name,Supplier Type,Expense Area,Cost Centre Description,Expense Type
Cambridgeshire County Council,22-Dec-15,19609167-12575507,-22714.7,Metric Group Ltd,Trade Supplier,Passenger Transport,Park and Ride Admin,Specialist equipment for service provision
Cambridgeshire County Council,22-Dec-15,19732789-12576039,-21723,Wilds Lodge School Ltd,Education,S&C,Placements - Education,Independent School Placements
Cambridgeshire County Council,04-Dec-15,17831444-12477359,-13295.73,Priory,Trade Supplier,S&C,Placements - Education,Independent School Placements
Cambridgeshire County Council,14-Dec-15,19564910-12529969,-11831.69,Bnp Paribas Real Estate,Trade Supplier,LGSS Managed,Babbage House,Buildings service charges
Cambridgeshire County Council,24-Dec-15,19729784-12584609,-5872.88,Affinity Trust,Care Establishment,2 - Operations - Learning Disability,LDP South Cambs Locality - Care,Supported Living
Cambridgeshire County Council,02-Dec-15,19612261-12441643,-5831.04,Methodist Homes For The Aged (Mha),Care Establishment,4 - Commissioning - Mental Health & Supporting People,Dom Blocks,Respite Independent Sector
Cambridgeshire County Council,29-Dec-15,19424333-12586802,-5733.75,Norfolk And Suffolk Nhs Foundation Trust,Care Establishment,4 - Commissioning - Mental Health & Supporting People,Mental Health Vol Grants,Other Hired Contract Services
Cambridgeshire County Council,07-Dec-15,19564765-12485479,-5330,Brighter Futures Foster Care,Care Establishment,S&C,Placements - Social Care,Agency Placements - In Cambs
Cambridgeshire County Council,14-Dec-15,19564909-12529968,-4605.82,Bnp Paribas Real Estate,Trade Supplier,LGSS Managed,Bailey Rooms,Buildings service charges
Cambridgeshire County Council,22-Dec-15,19731784-12576046,-4138.42,Mencap,Care Establishment,2 - Operations - Learning Disability,LDP City Locality - Care,Day and Domicillary Care Independent Sector
Cambridgeshire County Council,10-Dec-15,19644368-12497752,-3000,Norton College,Education,S&C,Placements - Education,Independent School Placements
Cambridgeshire County Council,29-Dec-15,19274713-12587017,-2795.44,Dexter Brown Ltd,Trade Supplier,LGSS Managed,Ely Library,Rents and Leases
Cambridgeshire County Council,22-Dec-15,19687331-12576022,-2733,The Mary Hare Primary School,Charity,S&C,Placements - Education,Independent School Placements
Cambridgeshire County Council,30-Dec-15,19732859-12595722,-2710.8,St George'S Court,Care Establishment,4 - Commissioning - Mental Health & Supporting People,Dom Blocks,Respite Independent Sector
Cambridgeshire County Council,17-Dec-15,19705536-12551342,-2659.64,An Darach House ( Kisimul Group Ltd),Care Establishment,3 - Operations - Countywide Services,LDP Young Adults - Care,Residential Independent Sector
Cambridgeshire County Council,17-Dec-15,19705537-12551343,-2659.64,An Darach House ( Kisimul Group Ltd),Care Establishment,3 - Operations - Countywide Services,LDP Young Adults - Care,Residential Independent Sector
Cambridgeshire County Council,17-Dec-15,19705538-12551344,-2659.64,An Darach House ( Kisimul Group Ltd),Care Establishment,3 - Operations - Countywide Services,LDP Young Adults - Care,Residential Independent Sector
Cambridgeshire County Council,17-Dec-15,19709076-12551339,-2659.64,An Darach House ( Kisimul Group Ltd),Care Establishment,3 - Operations - Countywide Services,LDP Young Adults - Care,Residential Independent Sector
Cambridgeshire County Council,17-Dec-15,19709078-12551341,-2659.64,An Darach House ( Kisimul Group Ltd),Care Establishment,3 - Operations - Countywide Services,LDP Young Adults - Care,Residential Independent Sector
Cambridgeshire County Council,22-Dec-15,19736084-12575874,-2403.1,Kisimul School,Care Establishment,2 - Operations - Learning Disability,LDP Huntingdonshire Locality - Care,Residential Independent Sector
Cambridgeshire County Council,22-Dec-15,19736093-12575875,-2403.1,Kisimul School,Care Establishment,2 - Operations - Learning Disability,LDP Huntingdonshire Locality - Care,Residential Independent Sector
Cambridgeshire County Council,22-Dec-15,19736102-12575877,-2403.1,Kisimul School,Care Establishment,2 - Operations - Learning Disability,LDP Huntingdonshire Locality - Care,Residential Independent Sector
Cambridgeshire County Council,11-Dec-15,19536555-12506186,-2329.92,Guidant Group,Trade Supplier,2 - Commissioning - Older people Pool,Older People - Fenland,Pay - Agency Staff
Cambridgeshire County Council,11-Dec-15,19398215-12525403,-2312.1,Unit 2b (Dimensions),Care Establishment,2 - Operations - Learning Disability,LDP Huntingdonshire Locality - Care,Day and Domicillary Care Independent Sector
Cambridgeshire County Council,11-Dec-15,19398595-12525422,-2312.1,Unit 2b (Dimensions),Care Establishment,2 - Operations - Learning Disability,LDP Huntingdonshire Locality - Care,Day and Domicillary Care Independent Sector
Cambridgeshire County Council,11-Dec-15,19398621-12525247,-2312.1,Unit 2b (Dimensions),Care Establishment,2 - Operations - Learning Disability,LDP Huntingdonshire Locality - Care,Day and Domicillary Care Independent Sector
Cambridgeshire County Council,11-Dec-15,19406714-12525352,-2312.1,Unit 2b (Dimensions),Care Establishment,2 - Operations - Learning Disability,LDP Huntingdonshire Locality - Care,Day and Domicillary Care Independent Sector
Cambridgeshire County Council,11-Dec-15,19406733-12525367,-2312.1,Unit 2b (Dimensions),Care Establishment,2 - Operations - Learning Disability,LDP Huntingdonshire Locality - Care,Day and Domicillary Care Independent Sector
Cambridgeshire County Council,11-Dec-15,19406745-12525378,-2312.1,Unit 2b (Dimensions),Care Establishment,2 - Operations - Learning Disability,LDP Huntingdonshire Locality - Care,Day and Domicillary Care Independent Sector
Cambridgeshire County Council,11-Dec-15,19406833-12525302,-2312.1,Unit 2b (Dimensions),Care Establishment,2 - Operations - Learning Disability,LDP Huntingdonshire Locality - Care,Day and Domicillary Care Independent Sector
Cambridgeshire County Council,22-Dec-15,19734039-12575006,-2217.12,Fitzroy Support Re 28 Riverbank,Care Establishment,2 - Operations - Learning Disability,LDP Fenland Locality - Care,Supported Living
Cambridgeshire County Council,22-Dec-15,19734042-12575009,-2217.12,Fitzroy Support Re 28 Riverbank,Care Establishment,2 - Operations - Learning Disability,LDP Fenland Locality - Care,Supported Living
Cambridgeshire County Council,22-Dec-15,19734044-12575011,-2217.12,Fitzroy Support Re 28 Riverbank,Care Establishment,2 - Operations - Learning Disability,LDP Fenland Locality - Care,Supported Living
Cambridgeshire County Council,22-Dec-15,19734046-12575013,-2217.12,Fitzroy Support Re 28 Riverbank,Care Establishment,2 - Operations - Learning Disability,LDP Fenland Locality - Care,Supported Living
Cambridgeshire County Council,22-Dec-15,19734047-12575014,-2217.12,Fitzroy Support Re 28 Riverbank,Care Establishment,2 - Operations - Learning Disability,LDP Fenland Locality - Care,Supported Living
Cambridgeshire County Council,22-Dec-15,19734048-12575015,-2217.12,Fitzroy Support Re 28 Riverbank,Care Establishment,2 - Operations - Learning Disability,LDP Fenland Locality - Care,Supported Living
Cambridgeshire County Council,22-Dec-15,19734362-12574994,-2217.12,Fitzroy Support Re 28 Riverbank,Care Establishment,2 - Operations - Learning Disability,LDP Fens - Special Needs,Supported Living
Cambridgeshire County Council,22-Dec-15,19734364-12574996,-2217.12,Fitzroy Support Re 28 Riverbank,Care Establishment,2 - Operations - Learning Disability,LDP Fens - Special Needs,Supported Living
Cambridgeshire County Council,22-Dec-15,19734366-12574998,-2217.12,Fitzroy Support Re 28 Riverbank,Care Establishment,2 - Operations - Learning Disability,LDP Fens - Special Needs,Supported Living
Cambridgeshire County Council,22-Dec-15,19734367-12574999,-2217.12,Fitzroy Support Re 28 Riverbank,Care Establishment,2 - Operations - Learning Disability,LDP Fens - Special Needs,Supported Living
Cambridgeshire County Council,22-Dec-15,19734369-12575001,-2217.12,Fitzroy Support Re 28 Riverbank,Care Establishment,2 - Operations - Learning Disability,LDP Fens - Special Needs,Supported Living
Cambridgeshire County Council,22-Dec-15,19734371-12575003,-2217.12,Fitzroy Support Re 28 Riverbank,Care Establishment,2 - Operations - Learning Disability,LDP Fens - Special Needs,Supported Living
Cambridgeshire County Council,11-Dec-15,19653601-12516800,-2109.59,Westminster Homecare Limited,Care Establishment,2 - Operations - Learning Disability,LDP E Cambs Locality - Care,Supported Living
Cambridgeshire County Council,11-Dec-15,19653611-12516809,-2109.59,Westminster Homecare Limited,Care Establishment,2 - Operations - Learning Disability,LDP E Cambs Locality - Care,Supported Living
Cambridgeshire County Council,11-Dec-15,19653620-12516810,-2109.59,Westminster Homecare Limited,Care Establishment,2 - Operations - Learning Disability,LDP E Cambs Locality - Care,Supported Living
Cambridgeshire County Council,11-Dec-15,17012797-12522515,-2008.68,Kisimul School,Care Establishment,2 - Operations - Learning Disability,LDP Huntingdonshire Locality - Care,Supported Living
Cambridgeshire County Council,11-Dec-15,17012798-12522516,-2008.68,Kisimul School,Care Establishment,2 - Operations - Learning Disability,LDP Huntingdonshire Locality - Care,Supported Living
Cambridgeshire County Council,11-Dec-15,17012799-12522517,-2008.68,Kisimul School,Care Establishment,2 - Operations - Learning Disability,LDP Huntingdonshire Locality - Care,Supported Living
Cambridgeshire County Council,14-Dec-15,19552912-12529646,-1920.98,Guidant Group,Trade Supplier,CSC,"Hawthorns Adolescent, Cambridge",Pay - Agency Staff
Cambridgeshire County Council,17-Dec-15,19709077-12551340,-1899.74,An Darach House ( Kisimul Group Ltd),Care Establishment,3 - Operations - Countywide Services,LDP Young Adults - Care,Residential Independent Sector
Cambridgeshire County Council,14-Dec-15,19218999-12529815,-1771.63,Acorn Park School,Education,S&C,Placements - Education,Independent School Placements
Cambridgeshire County Council,11-Dec-15,17012800-12522518,-1721.72,Kisimul School,Care Establishment,2 - Operations - Learning Disability,LDP Huntingdonshire Locality - Care,Supported Living
Cambridgeshire County Council,11-Dec-15,19398211-12525399,-1664.71,Unit 2b (Dimensions),Care Establishment,2 - Operations - Learning Disability,LDP Huntingdonshire Locality - Care,Day and Domicillary Care Independent Sector
Cambridgeshire County Council,11-Dec-15,19398218-12525406,-1664.71,Unit 2b (Dimensions),Care Establishment,2 - Operations - Learning Disability,LDP Huntingdonshire Locality - Care,Day and Domicillary Care Independent Sector
Cambridgeshire County Council,11-Dec-15,19398228-12525416,-1664.71,Unit 2b (Dimensions),Care Establishment,2 - Operations - Learning Disability,LDP Huntingdonshire Locality - Care,Day and Domicillary Care Independent Sector
Cambridgeshire County Council,11-Dec-15,19398229-12525417,-1664.71,Unit 2b (Dimensions),Care Establishment,2 - Operations - Learning Disability,LDP Huntingdonshire Locality - Care,Day and Domicillary Care Independent Sector
Cambridgeshire County Council,11-Dec-15,19398230-12525418,-1664.71,Unit 2b (Dimensions),Care Establishment,2 - Operations - Learning Disability,LDP Huntingdonshire Locality - Care,Day and Domicillary Care Independent Sector
Cambridgeshire County Council,11-Dec-15,19398599-12525426,-1664.71,Unit 2b (Dimensions),Care Establishment,2 - Operations - Learning Disability,LDP Huntingdonshire Locality - Care,Day and Domicillary Care Independent Sector
Cambridgeshire County Council,11-Dec-15,19398612-12525238,-1664.71,Unit 2b (Dimensions),Care Establishment,2 - Operations - Learning Disability,LDP Huntingdonshire Locality - Care,Day and Domicillary Care Independent Sector
Cambridgeshire County Council,11-Dec-15,19406700-12525252,-1664.71,Unit 2b (Dimensions),Care Establishment,2 - Operations - Learning Disability,LDP Huntingdonshire Locality - Care,Day and Domicillary Care Independent Sector
Cambridgeshire County Council,11-Dec-15,19406701-12525340,-1664.71,Unit 2b (Dimensions),Care Establishment,2 - Operations - Learning Disability,LDP Huntingdonshire Locality - Care,Day and Domicillary Care Independent Sector
Cambridgeshire County Council,11-Dec-15,19406737-12525371,-1664.71,Unit 2b (Dimensions),Care Establishment,2 - Operations - Learning Disability,LDP Huntingdonshire Locality - Care,Day and Domicillary Care Independent Sector
Cambridgeshire County Council,11-Dec-15,19406754-12525387,-1664.71,Unit 2b (Dimensions),Care Establishment,2 - Operations - Learning Disability,LDP Huntingdonshire Locality - Care,Day and Domicillary Care Independent Sector
Cambridgeshire County Council,11-Dec-15,19406762-12525254,-1664.71,Unit 2b (Dimensions),Care Establishment,2 - Operations - Learning Disability,LDP Huntingdonshire Locality - Care,Day and Domicillary Care Independent Sector
Cambridgeshire County Council,11-Dec-15,19406770-12525262,-1664.71,Unit 2b (Dimensions),Care Establishment,2 - Operations - Learning Disability,LDP Huntingdonshire Locality - Care,Day and Domicillary Care Independent Sector
Cambridgeshire County Council,11-Dec-15,19406771-12525263,-1664.71,Unit 2b (Dimensions),Care Establishment,2 - Operations - Learning Disability,LDP Huntingdonshire Locality - Care,Day and Domicillary Care Independent Sector
Cambridgeshire County Council,11-Dec-15,19406772-12525264,-1664.71,Unit 2b (Dimensions),Care Establishment,2 - Operations - Learning Disability,LDP Huntingdonshire Locality - Care,Day and Domicillary Care Independent Sector
Cambridgeshire County Council,11-Dec-15,19406775-12525267,-1664.71,Unit 2b (Dimensions),Care Establishment,2 - Operations - Learning Disability,LDP Huntingdonshire Locality - Care,Day and Domicillary Care Independent Sector
Cambridgeshire County Council,11-Dec-15,19406786-12525329,-1664.71,Unit 2b (Dimensions),Care Establishment,2 - Operations - Learning Disability,LDP Huntingdonshire Locality - Care,Day and Domicillary Care Independent Sector
Cambridgeshire County Council,11-Dec-15,19406810-12525283,-1664.71,Unit 2b (Dimensions),Care Establishment,2 - Operations - Learning Disability,LDP Huntingdonshire Locality - Care,Day and Domicillary Care Independent Sector
Cambridgeshire County Council,11-Dec-15,19406811-12525284,-1664.71,Unit 2b (Dimensions),Care Establishment,2 - Operations - Learning Disability,LDP Huntingdonshire Locality - Care,Day and Domicillary Care Independent Sector
Cambridgeshire County Council,11-Dec-15,19406821-12525294,-1664.71,Unit 2b (Dimensions),Care Establishment,2 - Operations - Learning Disability,LDP Huntingdonshire Locality - Care,Day and Domicillary Care Independent Sector
Cambridgeshire County Council,11-Dec-15,19406835-12525304,-1664.71,Unit 2b (Dimensions),Care Establishment,2 - Operations - Learning Disability,LDP Huntingdonshire Locality - Care,Day and Domicillary Care Independent Sector
Cambridgeshire County Council,11-Dec-15,19406836-12525305,-1664.71,Unit 2b (Dimensions),Care Establishment,2 - Operations - Learning Disability,LDP Huntingdonshire Locality - Care,Day and Domicillary Care Independent Sector
Cambridgeshire County Council,11-Dec-15,19406837-12525306,-1664.71,Unit 2b (Dimensions),Care Establishment,2 - Operations - Learning Disability,LDP Huntingdonshire Locality - Care,Day and Domicillary Care Independent Sector
Cambridgeshire County Council,11-Dec-15,19398223-12525411,-1651.5,Unit 2b (Dimensions),Care Establishment,2 - Operations - Learning Disability,LDP Huntingdonshire Locality - Care,Day and Domicillary Care Independent Sector
Cambridgeshire County Council,11-Dec-15,19398607-12525434,-1651.5,Unit 2b (Dimensions),Care Establishment,2 - Operations - Learning Disability,LDP Huntingdonshire Locality - Care,Day and Domicillary Care Independent Sector
Cambridgeshire County Council,11-Dec-15,19406742-12525375,-1651.5,Unit 2b (Dimensions),Care Establishment,2 - Operations - Learning Disability,LDP Huntingdonshire Locality - Care,Day and Domicillary Care Independent Sector
Cambridgeshire County Council,11-Dec-15,19406768-12525260,-1651.5,Unit 2b (Dimensions),Care Establishment,2 - Operations - Learning Disability,LDP Huntingdonshire Locality - Care,Day and Domicillary Care Independent Sector
Cambridgeshire County Council,11-Dec-15,19406778-12525270,-1651.5,Unit 2b (Dimensions),Care Establishment,2 - Operations - Learning Disability,LDP Huntingdonshire Locality - Care,Day and Domicillary Care Independent Sector
Cambridgeshire County Council,11-Dec-15,19406784-12525327,-1651.5,Unit 2b (Dimensions),Care Establishment,2 - Operations - Learning Disability,LDP Huntingdonshire Locality - Care,Day and Domicillary Care Independent Sector
Cambridgeshire County Council,11-Dec-15,19406804-12525277,-1651.5,Unit 2b (Dimensions),Care Establishment,2 - Operations - Learning Disability,LDP Huntingdonshire Locality - Care,Day and Domicillary Care Independent Sector
Cambridgeshire County Council,11-Dec-15,19406806-12525279,-1651.5,Unit 2b (Dimensions),Care Establishment,2 - Operations - Learning Disability,LDP Huntingdonshire Locality - Care,Day and Domicillary Care Independent Sector
Cambridgeshire County Council,11-Dec-15,19664050-12519132,-1454.12,Augusta Care Ltd,Care Establishment,2 - Operations - Learning Disability,LDP Fenland Locality - Care,Supported Living
Cambridgeshire County Council,11-Dec-15,19664052-12519134,-1454.12,Augusta Care Ltd,Care Establishment,2 - Operations - Learning Disability,LDP Fenland Locality - Care,Supported Living
Cambridgeshire County Council,11-Dec-15,19664053-12519135,-1454.12,Augusta Care Ltd,Care Establishment,2 - Operations - Learning Disability,LDP Fenland Locality - Care,Supported Living
Cambridgeshire County Council,11-Dec-15,19664054-12519136,-1454.12,Augusta Care Ltd,Care Establishment,2 - Operations - Learning Disability,LDP Fenland Locality - Care,Supported Living
Cambridgeshire County Council,11-Dec-15,19664055-12519137,-1454.12,Augusta Care Ltd,Care Establishment,2 - Operations - Learning Disability,LDP Fenland Locality - Care,Supported Living
Cambridgeshire County Council,11-Dec-15,19664056-12519138,-1454.12,Augusta Care Ltd,Care Establishment,2 - Operations - Learning Disability,LDP Fenland Locality - Care,Supported Living
Cambridgeshire County Council,11-Dec-15,19664057-12519139,-1454.12,Augusta Care Ltd,Care Establishment,2 - Operations - Learning Disability,LDP Fenland Locality - Care,Supported Living
Cambridgeshire County Council,11-Dec-15,19664058-12519140,-1454.12,Augusta Care Ltd,Care Establishment,2 - Operations - Learning Disability,LDP Fenland Locality - Care,Supported Living
Cambridgeshire County Council,15-Dec-15,19673616-12532894,-1450,The Shire School,Education,S&C,Placements - Education,Independent School Placements
Cambridgeshire County Council,11-Dec-15,19406807-12525280,-1408.6,Unit 2b (Dimensions),Care Establishment,2 - Operations - Learning Disability,LDP Huntingdonshire Locality - Care,Day and Domicillary Care Independent Sector
Cambridgeshire County Council,11-Dec-15,19383408-12506316,-1263.41,21 Meadow Way (Thera Trust),Trust (Other),2 - Operations - Learning Disability,LDP Huntingdonshire Locality - Care,Supported Living
Cambridgeshire County Council,11-Dec-15,19383409-12506317,-1263.41,21 Meadow Way (Thera Trust),Trust (Other),2 - Operations - Learning Disability,LDP Huntingdonshire Locality - Care,Supported Living
Cambridgeshire County Council,11-Dec-15,19383410-12506318,-1263.41,21 Meadow Way (Thera Trust),Trust (Other),2 - Operations - Learning Disability,LDP Huntingdonshire Locality - Care,Supported Living
Cambridgeshire County Council,11-Dec-15,19383411-12506319,-1263.41,21 Meadow Way (Thera Trust),Trust (Other),2 - Operations - Learning Disability,LDP Huntingdonshire Locality - Care,Supported Living
Cambridgeshire County Council,11-Dec-15,19383412-12506320,-1263.41,21 Meadow Way (Thera Trust),Trust (Other),2 - Operations - Learning Disability,LDP Huntingdonshire Locality - Care,Supported Living
Cambridgeshire County Council,11-Dec-15,19383413-12506321,-1263.41,21 Meadow Way (Thera Trust),Trust (Other),2 - Operations - Learning Disability,LDP Huntingdonshire Locality - Care,Supported Living
Cambridgeshire County Council,11-Dec-15,19383414-12506322,-1263.41,21 Meadow Way (Thera Trust),Trust (Other),2 - Operations - Learning Disability,LDP Huntingdonshire Locality - Care,Supported Living
Cambridgeshire County Council,11-Dec-15,19383415-12506323,-1263.41,21 Meadow Way (Thera Trust),Trust (Other),2 - Operations - Learning Disability,LDP Huntingdonshire Locality - Care,Supported Living
Cambridgeshire County Council,11-Dec-15,19383416-12506324,-1263.41,21 Meadow Way (Thera Trust),Trust (Other),2 - Operations - Learning Disability,LDP Huntingdonshire Locality - Care,Supported Living
Cambridgeshire County Council,11-Dec-15,19383417-12506325,-1263.41,21 Meadow Way (Thera Trust),Trust (Other),2 - Operations - Learning Disability,LDP Huntingdonshire Locality - Care,Supported Living
Cambridgeshire County Council,11-Dec-15,19383418-12506326,-1263.41,21 Meadow Way (Thera Trust),Trust (Other),2 - Operations - Learning Disability,LDP Huntingdonshire Locality - Care,Supported Living
Cambridgeshire County Council,11-Dec-15,19383419-12506327,-1263.41,21 Meadow Way (Thera Trust),Trust (Other),2 - Operations - Learning Disability,LDP Huntingdonshire Locality - Care,Supported Living
Cambridgeshire County Council,11-Dec-15,19383420-12506328,-1263.41,21 Meadow Way (Thera Trust),Trust (Other),2 - Operations - Learning Disability,LDP Huntingdonshire Locality - Care,Supported Living
Cambridgeshire County Council,11-Dec-15,19383421-12506329,-1263.41,21 Meadow Way (Thera Trust),Trust (Other),2 - Operations - Learning Disability,LDP Huntingdonshire Locality - Care,Supported Living
Cambridgeshire County Council,11-Dec-15,19383422-12506330,-1263.41,21 Meadow Way (Thera Trust),Trust (Other),2 - Operations - Learning Disability,LDP Huntingdonshire Locality - Care,Supported Living
Cambridgeshire County Council,11-Dec-15,19383423-12506331,-1263.41,21 Meadow Way (Thera Trust),Trust (Other),2 - Operations - Learning Disability,LDP Huntingdonshire Locality - Care,Supported Living
Cambridgeshire County Council,11-Dec-15,19383424-12506332,-1263.41,21 Meadow Way (Thera Trust),Trust (Other),2 - Operations - Learning Disability,LDP Huntingdonshire Locality - Care,Supported Living
Cambridgeshire County Council,11-Dec-15,19383425-12506333,-1263.41,21 Meadow Way (Thera Trust),Trust (Other),2 - Operations - Learning Disability,LDP Huntingdonshire Locality - Care,Supported Living
Cambridgeshire County Council,11-Dec-15,19383426-12506334,-1263.41,21 Meadow Way (Thera Trust),Trust (Other),2 - Operations - Learning Disability,LDP Huntingdonshire Locality - Care,Supported Living
Cambridgeshire County Council,11-Dec-15,19383427-12506335,-1263.41,21 Meadow Way (Thera Trust),Trust (Other),2 - Operations - Learning Disability,LDP Huntingdonshire Locality - Care,Supported Living
Cambridgeshire County Council,11-Dec-15,19383429-12506337,-1263.41,21 Meadow Way (Thera Trust),Trust (Other),2 - Operations - Learning Disability,LDP Huntingdonshire Locality - Care,Supported Living
Cambridgeshire County Council,11-Dec-15,19383430-12506338,-1263.41,21 Meadow Way (Thera Trust),Trust (Other),2 - Operations - Learning Disability,LDP Huntingdonshire Locality - Care,Supported Living
Cambridgeshire County Council,11-Dec-15,19383431-12506339,-1263.41,21 Meadow Way (Thera Trust),Trust (Other),2 - Operations - Learning Disability,LDP Huntingdonshire Locality - Care,Supported Living
Cambridgeshire County Council,04-Dec-15,19534991-12476269,-1261.7,Foster Care Associates Ltd (Fca),Care Establishment,S&C,Placements - Social Care,Agency Placements - Out County
Cambridgeshire County Council,22-Dec-15,19733785-12575986,-1235.77,Redacted Personal Data,Individual,3 - Operations - Countywide Services,Countywide PD Service - Care,Direct Payments - Social Services
Cambridgeshire County Council,22-Dec-15,19733788-12575989,-1235.77,Redacted Personal Data,Individual,3 - Operations - Countywide Services,Countywide PD Service - Care,Direct Payments - Social Services
Cambridgeshire County Council,22-Dec-15,19733792-12575993,-1235.77,Redacted Personal Data,Individual,3 - Operations - Countywide Services,Countywide PD Service - Care,Direct Payments - Social Services
Cambridgeshire County Council,22-Dec-15,19733803-12576004,-1235.77,Redacted Personal Data,Individual,3 - Operations - Countywide Services,Countywide PD Service - Care,Direct Payments - Social Services
Cambridgeshire County Council,02-Dec-15,19612259-12441621,-1208.57,Hunters Healthcare (Hunters Down),Care Establishment,4 - Commissioning - Mental Health & Supporting People,Dom Blocks,Residential Independent Sector
Cambridgeshire County Council,15-Dec-15,19610735-12533549,-1208,Huntingdonshire District Council,Other Public Bodies,LGSS Managed,Grammar School Walk,Business rates
Cambridgeshire County Council,11-Dec-15,19406842-12525311,-1143.35,Unit 2b (Dimensions),Care Establishment,2 - Operations - Learning Disability,LDP Huntingdonshire Locality - Care,Day and Domicillary Care Independent Sector
Cambridgeshire County Council,07-Dec-15,19460217-12485451,-1129.9,Fostering Solutions Ltd,Care Establishment,S&C,Placements - Social Care,Agency Placements - Out County
Cambridgeshire County Council,09-Dec-15,19460216-12491876,-1122.52,Fostering Solutions Ltd,Care Establishment,S&C,Placements - Social Care,Agency Placements - In Cambs
Cambridgeshire County Council,18-Dec-15,19687330-12558879,-1087.44,Graham Facilities Management Ltd,Company,LGSS Managed,Huntingdon Highways Depot,Other Hired Contract Services
Cambridgeshire County Council,11-Dec-15,19383428-12506336,-1082.92,21 Meadow Way (Thera Trust),Trust (Other),2 - Operations - Learning Disability,LDP Huntingdonshire Locality - Care,Supported Living
Cambridgeshire County Council,11-Dec-15,19664051-12519133,-1038.66,Augusta Care Ltd,Care Establishment,2 - Operations - Learning Disability,LDP Fenland Locality - Care,Supported Living
Cambridgeshire County Council,07-Dec-15,19460215-12485450,-1010.32,Fostering Solutions Ltd,Care Establishment,S&C,Placements - Social Care,Agency Placements - In Cambs
Cambridgeshire County Council,17-Dec-15,19272469-12553465,-994.93,Canon (Uk) Ltd,Trade Supplier,Assets & Commissioning,Asset Information Searches,Computer hardware
Cambridgeshire County Council,22-Dec-15,19732785-12576029,-990,A10 Taxis,Trade Supplier,S&C,H to S Transport - Primary,Home to School - Contract
Cambridgeshire County Council,11-Dec-15,19628361-12508279,-975.28,Eagle Wood Neurological Care,Care Establishment,2 - Commissioning - Older people Pool,Older People Mental Health Fenland,Nursing Independent Sector
Cambridgeshire County Council,11-Dec-15,19628364-12508282,-975.28,Eagle Wood Neurological Care,Care Establishment,2 - Commissioning - Older people Pool,Older People Mental Health Fenland,Nursing Independent Sector
Cambridgeshire County Council,31-Dec-15,19758399-12598451,-966.86,Hunters Healthcare (Hunters Down),Care Establishment,4 - Commissioning - Mental Health & Supporting People,Dom Blocks,Residential Independent Sector
Cambridgeshire County Council,17-Dec-15,19704124-12551216,-965.21,Redacted Personal Data,Individual,3 - Operations - Countywide Services,Countywide PD Service - Care,SDS - Care and support Services
Cambridgeshire County Council,17-Dec-15,19704136-12551211,-965.21,Redacted Personal Data,Individual,3 - Operations - Countywide Services,Countywide PD Service - Care,SDS - Care and support Services
Cambridgeshire County Council,17-Dec-15,19704139-12551212,-965.21,Redacted Personal Data,Individual,3 - Operations - Countywide Services,Countywide PD Service - Care,SDS - Care and support Services
Cambridgeshire County Council,17-Dec-15,19704145-12551213,-965.21,Redacted Personal Data,Individual,3 - Operations - Countywide Services,Countywide PD Service - Care,SDS - Care and support Services
Cambridgeshire County Council,11-Dec-15,19398597-12525424,-952.79,Unit 2b (Dimensions),Care Establishment,2 - Operations - Learning Disability,LDP Huntingdonshire Locality - Care,Day and Domicillary Care Independent Sector
Cambridgeshire County Council,11-Dec-15,19648910-12511987,-944.37,Chamarel Ld,Care Establishment,2 - Operations - Learning Disability,LDP City Locality - Care,Residential Independent Sector
Cambridgeshire County Council,11-Dec-15,19648913-12511990,-944.37,Chamarel Ld,Care Establishment,2 - Operations - Learning Disability,LDP City Locality - Care,Residential Independent Sector
Cambridgeshire County Council,11-Dec-15,19648915-12511992,-944.37,Chamarel Ld,Care Establishment,2 - Operations - Learning Disability,LDP City Locality - Care,Residential Independent Sector
Cambridgeshire County Council,11-Dec-15,19648919-12511996,-944.37,Chamarel Ld,Care Establishment,2 - Operations - Learning Disability,LDP City Locality - Care,Residential Independent Sector
Cambridgeshire County Council,11-Dec-15,19648920-12511997,-944.37,Chamarel Ld,Care Establishment,2 - Operations - Learning Disability,LDP City Locality - Care,Residential Independent Sector
Cambridgeshire County Council,11-Dec-15,19648921-12511998,-944.37,Chamarel Ld,Care Establishment,2 - Operations - Learning Disability,LDP City Locality - Care,Residential Independent Sector
Cambridgeshire County Council,11-Dec-15,19648922-12511999,-944.37,Chamarel Ld,Care Establishment,2 - Operations - Learning Disability,LDP City Locality - Care,Residential Independent Sector
Cambridgeshire County Council,11-Dec-15,19648923-12512000,-944.37,Chamarel Ld,Care Establishment,2 - Operations - Learning Disability,LDP City Locality - Care,Residential Independent Sector
Cambridgeshire County Council,11-Dec-15,19655557-12511971,-944.37,Chamarel Ld,Care Establishment,2 - Operations - Learning Disability,LDP City Locality - Care,Residential Independent Sector
Cambridgeshire County Council,11-Dec-15,19655560-12511955,-944.37,Chamarel Ld,Care Establishment,2 - Operations - Learning Disability,LDP City Locality - Care,Residential Independent Sector
Cambridgeshire County Council,11-Dec-15,19655562-12511956,-944.37,Chamarel Ld,Care Establishment,2 - Operations - Learning Disability,LDP City Locality - Care,Residential Independent Sector
Cambridgeshire County Council,11-Dec-15,19655566-12511960,-944.37,Chamarel Ld,Care Establishment,2 - Operations - Learning Disability,LDP City Locality - Care,Residential Independent Sector
Cambridgeshire County Council,11-Dec-15,19655569-12511963,-944.37,Chamarel Ld,Care Establishment,2 - Operations - Learning Disability,LDP City Locality - Care,Residential Independent Sector
Cambridgeshire County Council,11-Dec-15,19655571-12511965,-944.37,Chamarel Ld,Care Establishment,2 - Operations - Learning Disability,LDP City Locality - Care,Residential Independent Sector
Cambridgeshire County Council,11-Dec-15,19653621-12516811,-904.11,Westminster Homecare Limited,Care Establishment,2 - Operations - Learning Disability,LDP E Cambs Locality - Care,Supported Living
Cambridgeshire County Council,17-Dec-15,19665115-12552415,-850,Abbey Healthcare (Huntingdon) Ltd,Care Establishment,2 - Commissioning - Older people Pool,Older People Mental Health Hunts,Nursing Independent Sector
Cambridgeshire County Council,17-Dec-15,19665117-12552417,-850,Abbey Healthcare (Huntingdon) Ltd,Care Establishment,2 - Commissioning - Older people Pool,Older People Mental Health Hunts,Nursing Independent Sector
Cambridgeshire County Council,17-Dec-15,19665118-12552418,-850,Abbey Healthcare (Huntingdon) Ltd,Care Establishment,2 - Commissioning - Older people Pool,Older People Mental Health Hunts,Nursing Independent Sector
Cambridgeshire County Council,17-Dec-15,19624209-12552662,-835,Longueville Court,Care Establishment,2 - Commissioning - Older people Pool,Older People Mental Health Hunts,Nursing Independent Sector
Cambridgeshire County Council,17-Dec-15,19624214-12552666,-835,Longueville Court,Care Establishment,2 - Commissioning - Older people Pool,Older People Mental Health Hunts,Nursing Independent Sector
Cambridgeshire County Council,17-Dec-15,19624217-12552667,-835,Longueville Court,Care Establishment,2 - Commissioning - Older people Pool,Older People Mental Health Hunts,Nursing Independent Sector
Cambridgeshire County Council,17-Dec-15,19624221-12552669,-835,Longueville Court,Care Establishment,2 - Commissioning - Older people Pool,Older People Mental Health Hunts,Nursing Independent Sector
Cambridgeshire County Council,17-Dec-15,19624222-12552670,-835,Longueville Court,Care Establishment,2 - Commissioning - Older people Pool,Older People Mental Health Hunts,Nursing Independent Sector
Cambridgeshire County Council,17-Dec-15,19625283-12552624,-835,Longueville Court,Care Establishment,2 - Commissioning - Older people Pool,Older People Mental Health Hunts,Nursing Independent Sector
Cambridgeshire County Council,17-Dec-15,19625287-12552626,-835,Longueville Court,Care Establishment,2 - Commissioning - Older people Pool,Older People Mental Health Hunts,Nursing Independent Sector
Cambridgeshire County Council,17-Dec-15,19625288-12552627,-835,Longueville Court,Care Establishment,2 - Commissioning - Older people Pool,Older People Mental Health Hunts,Nursing Independent Sector
Cambridgeshire County Council,17-Dec-15,19625289-12552628,-835,Longueville Court,Care Establishment,2 - Commissioning - Older people Pool,Older People Mental Health Hunts,Nursing Independent Sector
Cambridgeshire County Council,17-Dec-15,19625291-12552630,-835,Longueville Court,Care Establishment,2 - Commissioning - Older people Pool,Older People Mental Health Hunts,Nursing Independent Sector
Cambridgeshire County Council,17-Dec-15,19625292-12552631,-835,Longueville Court,Care Establishment,2 - Commissioning - Older people Pool,Older People Mental Health Hunts,Nursing Independent Sector
Cambridgeshire County Council,17-Dec-15,19625294-12552633,-835,Longueville Court,Care Establishment,2 - Commissioning - Older people Pool,Older People Mental Health Hunts,Nursing Independent Sector
Cambridgeshire County Council,17-Dec-15,19625297-12552634,-835,Longueville Court,Care Establishment,2 - Commissioning - Older people Pool,Older People Mental Health Hunts,Nursing Independent Sector
Cambridgeshire County Council,17-Dec-15,19625298-12552635,-835,Longueville Court,Care Establishment,2 - Commissioning - Older people Pool,Older People Mental Health Hunts,Nursing Independent Sector
Cambridgeshire County Council,17-Dec-15,19625299-12552636,-835,Longueville Court,Care Establishment,2 - Commissioning - Older people Pool,Older People Mental Health Hunts,Nursing Independent Sector
Cambridgeshire County Council,17-Dec-15,19625305-12552640,-835,Longueville Court,Care Establishment,2 - Commissioning - Older people Pool,Older People Mental Health Hunts,Nursing Independent Sector
Cambridgeshire County Council,17-Dec-15,19625308-12552642,-835,Longueville Court,Care Establishment,2 - Commissioning - Older people Pool,Older People Mental Health Hunts,Nursing Independent Sector
Cambridgeshire County Council,17-Dec-15,19625309-12552643,-835,Longueville Court,Care Establishment,2 - Commissioning - Older people Pool,Older People Mental Health Hunts,Nursing Independent Sector
Cambridgeshire County Council,17-Dec-15,19625311-12552645,-835,Longueville Court,Care Establishment,2 - Commissioning - Older people Pool,Older People Mental Health Hunts,Nursing Independent Sector
Cambridgeshire County Council,17-Dec-15,19625312-12552646,-835,Longueville Court,Care Establishment,2 - Commissioning - Older people Pool,Older People Mental Health Hunts,Nursing Independent Sector
Cambridgeshire County Council,17-Dec-15,19625315-12552648,-835,Longueville Court,Care Establishment,2 - Commissioning - Older people Pool,Older People Mental Health Hunts,Nursing Independent Sector
Cambridgeshire County Council,17-Dec-15,19625323-12552656,-835,Longueville Court,Care Establishment,2 - Commissioning - Older people Pool,Older People Mental Health Hunts,Nursing Independent Sector
Cambridgeshire County Council,17-Dec-15,19625324-12552657,-835,Longueville Court,Care Establishment,2 - Commissioning - Older people Pool,Older People Mental Health Hunts,Nursing Independent Sector
Cambridgeshire County Council,17-Dec-15,19625327-12552659,-835,Longueville Court,Care Establishment,2 - Commissioning - Older people Pool,Older People Mental Health Hunts,Nursing Independent Sector
Cambridgeshire County Council,17-Dec-15,19625329-12552661,-835,Longueville Court,Care Establishment,2 - Commissioning - Older people Pool,Older People Mental Health Hunts,Nursing Independent Sector
Cambridgeshire County Council,17-Dec-15,19665934-12552568,-835,Longueville Court,Care Establishment,2 - Commissioning - Older people Pool,Older People Mental Health Hunts,Nursing Independent Sector
Cambridgeshire County Council,17-Dec-15,19665935-12552569,-835,Longueville Court,Care Establishment,2 - Commissioning - Older people Pool,Older People Mental Health Hunts,Nursing Independent Sector
Cambridgeshire County Council,17-Dec-15,19665936-12552570,-835,Longueville Court,Care Establishment,2 - Commissioning - Older people Pool,Older People Mental Health Hunts,Nursing Independent Sector
Cambridgeshire County Council,17-Dec-15,19665937-12552571,-835,Longueville Court,Care Establishment,2 - Commissioning - Older people Pool,Older People Mental Health Hunts,Nursing Independent Sector
Cambridgeshire County Council,17-Dec-15,19665938-12552572,-835,Longueville Court,Care Establishment,2 - Commissioning - Older people Pool,Older People Mental Health Hunts,Nursing Independent Sector
Cambridgeshire County Council,17-Dec-15,19665948-12552576,-835,Longueville Court,Care Establishment,2 - Commissioning - Older people Pool,Older People Mental Health Hunts,Nursing Independent Sector
Cambridgeshire County Council,17-Dec-15,19665949-12552577,-835,Longueville Court,Care Establishment,2 - Commissioning - Older people Pool,Older People Mental Health Hunts,Nursing Independent Sector
Cambridgeshire County Council,17-Dec-15,19665953-12552579,-835,Longueville Court,Care Establishment,2 - Commissioning - Older people Pool,Older People Mental Health Hunts,Nursing Independent Sector
Cambridgeshire County Council,17-Dec-15,19665957-12552580,-835,Longueville Court,Care Establishment,2 - Commissioning - Older people Pool,Older People Mental Health Hunts,Nursing Independent Sector
Cambridgeshire County Council,17-Dec-15,19665958-12552581,-835,Longueville Court,Care Establishment,2 - Commissioning - Older people Pool,Older People Mental Health Hunts,Nursing Independent Sector
Cambridgeshire County Council,17-Dec-15,19665967-12552583,-835,Longueville Court,Care Establishment,2 - Commissioning - Older people Pool,Older People Mental Health Hunts,Nursing Independent Sector
Cambridgeshire County Council,17-Dec-15,19665979-12552590,-835,Longueville Court,Care Establishment,2 - Commissioning - Older people Pool,Older People Mental Health Hunts,Nursing Independent Sector
Cambridgeshire County Council,17-Dec-15,19665981-12552591,-835,Longueville Court,Care Establishment,2 - Commissioning - Older people Pool,Older People Mental Health Hunts,Nursing Independent Sector
Cambridgeshire County Council,17-Dec-15,19665987-12552595,-835,Longueville Court,Care Establishment,2 - Commissioning - Older people Pool,Older People Mental Health Hunts,Nursing Independent Sector
Cambridgeshire County Council,17-Dec-15,19666889-12552598,-835,Longueville Court,Care Establishment,2 - Commissioning - Older people Pool,Older People Mental Health Hunts,Nursing Independent Sector
Cambridgeshire County Council,17-Dec-15,19666890-12552599,-835,Longueville Court,Care Establishment,2 - Commissioning - Older people Pool,Older People Mental Health Hunts,Nursing Independent Sector
Cambridgeshire County Council,17-Dec-15,19666894-12552602,-835,Longueville Court,Care Establishment,2 - Commissioning - Older people Pool,Older People Mental Health Hunts,Nursing Independent Sector
Cambridgeshire County Council,17-Dec-15,19666895-12552603,-835,Longueville Court,Care Establishment,2 - Commissioning - Older people Pool,Older People Mental Health Hunts,Nursing Independent Sector
Cambridgeshire County Council,17-Dec-15,19666900-12552606,-835,Longueville Court,Care Establishment,2 - Commissioning - Older people Pool,Older People Mental Health Hunts,Nursing Independent Sector
Cambridgeshire County Council,17-Dec-15,19666901-12552607,-835,Longueville Court,Care Establishment,2 - Commissioning - Older people Pool,Older People Mental Health Hunts,Nursing Independent Sector
Cambridgeshire County Council,17-Dec-15,19666904-12552609,-835,Longueville Court,Care Establishment,2 - Commissioning - Older people Pool,Older People Mental Health Hunts,Nursing Independent Sector
Cambridgeshire County Council,17-Dec-15,19666908-12552612,-835,Longueville Court,Care Establishment,2 - Commissioning - Older people Pool,Older People Mental Health Hunts,Nursing Independent Sector
Cambridgeshire County Council,17-Dec-15,19666909-12552613,-835,Longueville Court,Care Establishment,2 - Commissioning - Older people Pool,Older People Mental Health Hunts,Nursing Independent Sector
Cambridgeshire County Council,17-Dec-15,19666910-12552614,-835,Longueville Court,Care Establishment,2 - Commissioning - Older people Pool,Older People Mental Health Hunts,Nursing Independent Sector
Cambridgeshire County Council,17-Dec-15,19666916-12552617,-835,Longueville Court,Care Establishment,2 - Commissioning - Older people Pool,Older People Mental Health Hunts,Nursing Independent Sector
Cambridgeshire County Council,17-Dec-15,19706203-12552718,-835,Longueville Court,Care Establishment,2 - Commissioning - Older people Pool,Older People Mental Health Hunts,Nursing Independent Sector
Cambridgeshire County Council,17-Dec-15,19706205-12552720,-835,Longueville Court,Care Establishment,2 - Commissioning - Older people Pool,Older People Mental Health Hunts,Nursing Independent Sector
Cambridgeshire County Council,17-Dec-15,19706207-12552721,-835,Longueville Court,Care Establishment,2 - Commissioning - Older people Pool,Older People Mental Health Hunts,Nursing Independent Sector
Cambridgeshire County Council,17-Dec-15,19706208-12552722,-835,Longueville Court,Care Establishment,2 - Commissioning - Older people Pool,Older People Mental Health Hunts,Nursing Independent Sector
Cambridgeshire County Council,17-Dec-15,19706209-12552723,-835,Longueville Court,Care Establishment,2 - Commissioning - Older people Pool,Older People Mental Health Hunts,Nursing Independent Sector
Cambridgeshire County Council,17-Dec-15,19706214-12552727,-835,Longueville Court,Care Establishment,2 - Commissioning - Older people Pool,Older People Mental Health Hunts,Nursing Independent Sector
Cambridgeshire County Council,17-Dec-15,19706218-12552731,-835,Longueville Court,Care Establishment,2 - Commissioning - Older people Pool,Older People Mental Health Hunts,Nursing Independent Sector
Cambridgeshire County Council,17-Dec-15,19706220-12552733,-835,Longueville Court,Care Establishment,2 - Commissioning - Older people Pool,Older People Mental Health Hunts,Nursing Independent Sector
Cambridgeshire County Council,17-Dec-15,19706222-12552684,-835,Longueville Court,Care Establishment,2 - Commissioning - Older people Pool,Older People Mental Health Hunts,Nursing Independent Sector
Cambridgeshire County Council,17-Dec-15,19706226-12552688,-835,Longueville Court,Care Establishment,2 - Commissioning - Older people Pool,Older People Mental Health Hunts,Nursing Independent Sector
Cambridgeshire County Council,17-Dec-15,19706228-12552690,-835,Longueville Court,Care Establishment,2 - Commissioning - Older people Pool,Older People Mental Health Hunts,Nursing Independent Sector
Cambridgeshire County Council,17-Dec-15,19706232-12552694,-835,Longueville Court,Care Establishment,2 - Commissioning - Older people Pool,Older People Mental Health Hunts,Nursing Independent Sector
Cambridgeshire County Council,17-Dec-15,19706233-12552695,-835,Longueville Court,Care Establishment,2 - Commissioning - Older people Pool,Older People Mental Health Hunts,Nursing Independent Sector
Cambridgeshire County Council,17-Dec-15,19706237-12552698,-835,Longueville Court,Care Establishment,2 - Commissioning - Older people Pool,Older People Mental Health Hunts,Nursing Independent Sector
Cambridgeshire County Council,17-Dec-15,19706238-12552699,-835,Longueville Court,Care Establishment,2 - Commissioning - Older people Pool,Older People Mental Health Hunts,Nursing Independent Sector
Cambridgeshire County Council,17-Dec-15,19706242-12552703,-835,Longueville Court,Care Establishment,2 - Commissioning - Older people Pool,Older People Mental Health Hunts,Nursing Independent Sector
Cambridgeshire County Council,17-Dec-15,19706243-12552704,-835,Longueville Court,Care Establishment,2 - Commissioning - Older people Pool,Older People Mental Health Hunts,Nursing Independent Sector
Cambridgeshire County Council,17-Dec-15,19706245-12552705,-835,Longueville Court,Care Establishment,2 - Commissioning - Older people Pool,Older People Mental Health Hunts,Nursing Independent Sector
Cambridgeshire County Council,17-Dec-15,19706246-12552706,-835,Longueville Court,Care Establishment,2 - Commissioning - Older people Pool,Older People Mental Health Hunts,Nursing Independent Sector
Cambridgeshire County Council,17-Dec-15,19706250-12552709,-835,Longueville Court,Care Establishment,2 - Commissioning - Older people Pool,Older People Mental Health Hunts,Nursing Independent Sector
Cambridgeshire County Council,17-Dec-15,19706254-12552713,-835,Longueville Court,Care Establishment,2 - Commissioning - Older people Pool,Older People Mental Health Hunts,Nursing Independent Sector
Cambridgeshire County Council,17-Dec-15,19706256-12552715,-835,Longueville Court,Care Establishment,2 - Commissioning - Older people Pool,Older People Mental Health Hunts,Nursing Independent Sector
Cambridgeshire County Council,17-Dec-15,19706690-12552678,-835,Longueville Court,Care Establishment,2 - Commissioning - Older people Pool,Older People Mental Health Hunts,Nursing Independent Sector
Cambridgeshire County Council,17-Dec-15,19706692-12552680,-835,Longueville Court,Care Establishment,2 - Commissioning - Older people Pool,Older People Mental Health Hunts,Nursing Independent Sector
Cambridgeshire County Council,17-Dec-15,19706694-12552682,-835,Longueville Court,Care Establishment,2 - Commissioning - Older people Pool,Older People Mental Health Hunts,Nursing Independent Sector
Cambridgeshire County Council,10-Dec-15,19644400-12497965,-822,Papworth Hospital Nhs Trust,Care Establishment,Corporate Services,Coroners General,Post Mortems
Cambridgeshire County Council,11-Dec-15,19649193-12517042,-792.72,Redacted Personal Data,Individual,3 - Operations - Countywide Services,Countywide PD Service - Care,SDS - Care and support Services
Cambridgeshire County Council,11-Dec-15,19649194-12517043,-792.72,Redacted Personal Data,Individual,3 - Operations - Countywide Services,Countywide PD Service - Care,SDS - Care and support Services
Cambridgeshire County Council,11-Dec-15,19649197-12517046,-792.72,Redacted Personal Data,Individual,3 - Operations - Countywide Services,Countywide PD Service - Care,SDS - Care and support Services
Cambridgeshire County Council,11-Dec-15,19649198-12517047,-792.72,Redacted Personal Data,Individual,3 - Operations - Countywide Services,Countywide PD Service - Care,SDS - Care and support Services
Cambridgeshire County Council,11-Dec-15,19649200-12517049,-792.72,Redacted Personal Data,Individual,3 - Operations - Countywide Services,Countywide PD Service - Care,SDS - Care and support Services
Cambridgeshire County Council,11-Dec-15,19649204-12517053,-792.72,Redacted Personal Data,Individual,3 - Operations - Countywide Services,Countywide PD Service - Care,SDS - Care and support Services
Cambridgeshire County Council,11-Dec-15,19656831-12517023,-792.72,Redacted Personal Data,Individual,3 - Operations - Countywide Services,Countywide PD Service - Care,SDS - Care and support Services
Cambridgeshire County Council,11-Dec-15,19656833-12517025,-792.72,Redacted Personal Data,Individual,3 - Operations - Countywide Services,Countywide PD Service - Care,SDS - Care and support Services
Cambridgeshire County Council,11-Dec-15,19656839-12517031,-792.72,Redacted Personal Data,Individual,3 - Operations - Countywide Services,Countywide PD Service - Care,SDS - Care and support Services
Cambridgeshire County Council,11-Dec-15,19656840-12517032,-792.72,Redacted Personal Data,Individual,3 - Operations - Countywide Services,Countywide PD Service - Care,SDS - Care and support Services
Cambridgeshire County Council,11-Dec-15,19656841-12517033,-792.72,Redacted Personal Data,Individual,3 - Operations - Countywide Services,Countywide PD Service - Care,SDS - Care and support Services
Cambridgeshire County Council,11-Dec-15,19656851-12516987,-792.72,Redacted Personal Data,Individual,3 - Operations - Countywide Services,Countywide PD Service - Care,SDS - Care and support Services
Cambridgeshire County Council,11-Dec-15,19656853-12516989,-792.72,Redacted Personal Data,Individual,3 - Operations - Countywide Services,Countywide PD Service - Care,SDS - Care and support Services
Cambridgeshire County Council,11-Dec-15,19656856-12516992,-792.72,Redacted Personal Data,Individual,3 - Operations - Countywide Services,Countywide PD Service - Care,SDS - Care and support Services
Cambridgeshire County Council,11-Dec-15,19656859-12516995,-792.72,Redacted Personal Data,Individual,3 - Operations - Countywide Services,Countywide PD Service - Care,SDS - Care and support Services
Cambridgeshire County Council,11-Dec-15,19656860-12516996,-792.72,Redacted Personal Data,Individual,3 - Operations - Countywide Services,Countywide PD Service - Care,SDS - Care and support Services
Cambridgeshire County Council,11-Dec-15,19656863-12516999,-792.72,Redacted Personal Data,Individual,3 - Operations - Countywide Services,Countywide PD Service - Care,SDS - Care and support Services
Cambridgeshire County Council,11-Dec-15,19656864-12517000,-792.72,Redacted Personal Data,Individual,3 - Operations - Countywide Services,Countywide PD Service - Care,SDS - Care and support Services
Cambridgeshire County Council,11-Dec-15,19656867-12517003,-792.72,Redacted Personal Data,Individual,3 - Operations - Countywide Services,Countywide PD Service - Care,SDS - Care and support Services
Cambridgeshire County Council,11-Dec-15,19656870-12517006,-792.72,Redacted Personal Data,Individual,3 - Operations - Countywide Services,Countywide PD Service - Care,SDS - Care and support Services
Cambridgeshire County Council,11-Dec-15,19656879-12517015,-792.72,Redacted Personal Data,Individual,3 - Operations - Countywide Services,Countywide PD Service - Care,SDS - Care and support Services
Cambridgeshire County Council,11-Dec-15,19656883-12517019,-792.72,Redacted Personal Data,Individual,3 - Operations - Countywide Services,Countywide PD Service - Care,SDS - Care and support Services
Cambridgeshire County Council,09-Dec-15,19617397-12491854,-780,Imperial Civil Enforcement Solutions Ltd,Trade Supplier,Traffic Management & Road Safety,"Bus Route Enforcement	",Other Hired Contract Services
Cambridgeshire County Council,04-Dec-15,19485899-12476561,-773.76,Royal Mencap Society,Care Establishment,2 - Commissioning - Older people Pool,Older People - City & South,Residential Independent Sector
Cambridgeshire County Council,04-Dec-15,19485900-12476560,-773.76,Royal Mencap Society,Care Establishment,2 - Commissioning - Older people Pool,Older People - City & South,Residential Independent Sector
Cambridgeshire County Council,04-Dec-15,19485901-12476559,-773.76,Royal Mencap Society,Care Establishment,2 - Commissioning - Older people Pool,Older People - City & South,Residential Independent Sector
Cambridgeshire County Council,04-Dec-15,19485902-12476558,-773.76,Royal Mencap Society,Care Establishment,2 - Commissioning - Older people Pool,Older People - City & South,Residential Independent Sector
Cambridgeshire County Council,04-Dec-15,19485903-12476557,-773.76,Royal Mencap Society,Care Establishment,2 - Commissioning - Older people Pool,Older People - City & South,Residential Independent Sector
Cambridgeshire County Council,04-Dec-15,19485904-12476556,-773.76,Royal Mencap Society,Care Establishment,2 - Commissioning - Older people Pool,Older People - City & South,Residential Independent Sector
Cambridgeshire County Council,04-Dec-15,19485905-12476546,-773.76,Royal Mencap Society,Care Establishment,2 - Commissioning - Older people Pool,Older People - City & South,Residential Independent Sector
Cambridgeshire County Council,04-Dec-15,19485906-12476545,-773.76,Royal Mencap Society,Care Establishment,2 - Commissioning - Older people Pool,Older People - City & South,Residential Independent Sector
Cambridgeshire County Council,04-Dec-15,19485907-12476562,-773.76,Royal Mencap Society,Care Establishment,2 - Commissioning - Older people Pool,Older People - City & South,Residential Independent Sector
Cambridgeshire County Council,04-Dec-15,19485908-12476544,-773.76,Royal Mencap Society,Care Establishment,2 - Commissioning - Older people Pool,Older People - City & South,Residential Independent Sector
Cambridgeshire County Council,04-Dec-15,19485909-12476555,-773.76,Royal Mencap Society,Care Establishment,2 - Commissioning - Older people Pool,Older People - City & South,Residential Independent Sector
Cambridgeshire County Council,04-Dec-15,19485910-12476554,-773.76,Royal Mencap Society,Care Establishment,2 - Commissioning - Older people Pool,Older People - City & South,Residential Independent Sector
Cambridgeshire County Council,04-Dec-15,19485911-12476553,-773.76,Royal Mencap Society,Care Establishment,2 - Commissioning - Older people Pool,Older People - City & South,Residential Independent Sector
Cambridgeshire County Council,04-Dec-15,19485912-12476552,-773.76,Royal Mencap Society,Care Establishment,2 - Commissioning - Older people Pool,Older People - City & South,Residential Independent Sector
Cambridgeshire County Council,04-Dec-15,19485913-12476551,-773.76,Royal Mencap Society,Care Establishment,2 - Commissioning - Older people Pool,Older People - City & South,Residential Independent Sector
Cambridgeshire County Council,04-Dec-15,19485914-12476550,-773.76,Royal Mencap Society,Care Establishment,2 - Commissioning - Older people Pool,Older People - City & South,Residential Independent Sector
Cambridgeshire County Council,04-Dec-15,19485915-12476549,-773.76,Royal Mencap Society,Care Establishment,2 - Commissioning - Older people Pool,Older People - City & South,Residential Independent Sector
Cambridgeshire County Council,04-Dec-15,19485917-12476547,-773.76,Royal Mencap Society,Care Establishment,2 - Commissioning - Older people Pool,Older People - City & South,Residential Independent Sector
Cambridgeshire County Council,04-Dec-15,19489041-12476525,-773.76,Royal Mencap Society,Care Establishment,2 - Commissioning - Older people Pool,Older People - City & South,Residential Independent Sector
Cambridgeshire County Council,04-Dec-15,19489042-12476524,-773.76,Royal Mencap Society,Care Establishment,2 - Commissioning - Older people Pool,Older People - City & South,Residential Independent Sector
Cambridgeshire County Council,04-Dec-15,19489043-12476523,-773.76,Royal Mencap Society,Care Establishment,2 - Commissioning - Older people Pool,Older People - City & South,Residential Independent Sector
Cambridgeshire County Council,04-Dec-15,19489044-12476522,-773.76,Royal Mencap Society,Care Establishment,2 - Commissioning - Older people Pool,Older People - City & South,Residential Independent Sector
Cambridgeshire County Council,04-Dec-15,19489045-12476521,-773.76,Royal Mencap Society,Care Establishment,2 - Commissioning - Older people Pool,Older People - City & South,Residential Independent Sector
Cambridgeshire County Council,04-Dec-15,19489046-12476532,-773.76,Royal Mencap Society,Care Establishment,2 - Commissioning - Older people Pool,Older People - City & South,Residential Independent Sector
Cambridgeshire County Council,04-Dec-15,19489047-12476531,-773.76,Royal Mencap Society,Care Establishment,2 - Commissioning - Older people Pool,Older People - City & South,Residential Independent Sector
Cambridgeshire County Council,04-Dec-15,19489048-12476530,-773.76,Royal Mencap Society,Care Establishment,2 - Commissioning - Older people Pool,Older People - City & South,Residential Independent Sector
Cambridgeshire County Council,04-Dec-15,19489049-12476529,-773.76,Royal Mencap Society,Care Establishment,2 - Commissioning - Older people Pool,Older People - City & South,Residential Independent Sector
Cambridgeshire County Council,04-Dec-15,19489050-12476528,-773.76,Royal Mencap Society,Care Establishment,2 - Commissioning - Older people Pool,Older People - City & South,Residential Independent Sector
Cambridgeshire County Council,04-Dec-15,19489051-12476527,-773.76,Royal Mencap Society,Care Establishment,2 - Commissioning - Older people Pool,Older People - City & South,Residential Independent Sector
Cambridgeshire County Council,04-Dec-15,19489052-12476526,-773.76,Royal Mencap Society,Care Establishment,2 - Commissioning - Older people Pool,Older People - City & South,Residential Independent Sector
Cambridgeshire County Council,04-Dec-15,19489053-12476513,-773.76,Royal Mencap Society,Care Establishment,2 - Commissioning - Older people Pool,Older People - City & South,Residential Independent Sector
Cambridgeshire County Council,04-Dec-15,19489054-12476520,-773.76,Royal Mencap Society,Care Establishment,2 - Commissioning - Older people Pool,Older People - City & South,Residential Independent Sector
Cambridgeshire County Council,04-Dec-15,19489055-12476519,-773.76,Royal Mencap Society,Care Establishment,2 - Commissioning - Older people Pool,Older People - City & South,Residential Independent Sector
Cambridgeshire County Council,04-Dec-15,19489056-12476518,-773.76,Royal Mencap Society,Care Establishment,2 - Commissioning - Older people Pool,Older People - City & South,Residential Independent Sector
Cambridgeshire County Council,04-Dec-15,19625923-12477346,-772.87,Redacted Personal Data,Individual,3 - Operations - Countywide Services,Countywide PD Service - Care,SDS - Care and support Services
Cambridgeshire County Council,04-Dec-15,19625924-12477345,-772.87,Redacted Personal Data,Individual,3 - Operations - Countywide Services,Countywide PD Service - Care,SDS - Care and support Services
Cambridgeshire County Council,04-Dec-15,19629370-12477308,-772.87,Redacted Personal Data,Individual,3 - Operations - Countywide Services,Countywide PD Service - Care,SDS - Care and support Services
Cambridgeshire County Council,04-Dec-15,19629371-12477307,-772.87,Redacted Personal Data,Individual,3 - Operations - Countywide Services,Countywide PD Service - Care,SDS - Care and support Services
Cambridgeshire County Council,04-Dec-15,19629372-12477306,-772.87,Redacted Personal Data,Individual,3 - Operations - Countywide Services,Countywide PD Service - Care,SDS - Care and support Services
Cambridgeshire County Council,04-Dec-15,19629382-12477296,-772.87,Redacted Personal Data,Individual,3 - Operations - Countywide Services,Countywide PD Service - Care,SDS - Care and support Services
Cambridgeshire County Council,04-Dec-15,19629384-12477294,-772.87,Redacted Personal Data,Individual,3 - Operations - Countywide Services,Countywide PD Service - Care,SDS - Care and support Services
Cambridgeshire County Council,04-Dec-15,19629385-12477293,-772.87,Redacted Personal Data,Individual,3 - Operations - Countywide Services,Countywide PD Service - Care,SDS - Care and support Services
Cambridgeshire County Council,04-Dec-15,19629387-12477291,-772.87,Redacted Personal Data,Individual,3 - Operations - Countywide Services,Countywide PD Service - Care,SDS - Care and support Services
Cambridgeshire County Council,04-Dec-15,19629388-12477290,-772.87,Redacted Personal Data,Individual,3 - Operations - Countywide Services,Countywide PD Service - Care,SDS - Care and support Services
Cambridgeshire County Council,04-Dec-15,19629391-12477287,-772.87,Redacted Personal Data,Individual,3 - Operations - Countywide Services,Countywide PD Service - Care,SDS - Care and support Services
Cambridgeshire County Council,04-Dec-15,19629407-12477271,-772.87,Redacted Personal Data,Individual,3 - Operations - Countywide Services,Countywide PD Service - Care,SDS - Care and support Services
Cambridgeshire County Council,04-Dec-15,19629408-12477270,-772.87,Redacted Personal Data,Individual,3 - Operations - Countywide Services,Countywide PD Service - Care,SDS - Care and support Services
Cambridgeshire County Council,04-Dec-15,19629410-12477268,-772.87,Redacted Personal Data,Individual,3 - Operations - Countywide Services,Countywide PD Service - Care,SDS - Care and support Services
Cambridgeshire County Council,04-Dec-15,19629426-12477252,-772.87,Redacted Personal Data,Individual,3 - Operations - Countywide Services,Countywide PD Service - Care,SDS - Care and support Services
Cambridgeshire County Council,04-Dec-15,19629433-12477340,-772.87,Redacted Personal Data,Individual,3 - Operations - Countywide Services,Countywide PD Service - Care,SDS - Care and support Services
Cambridgeshire County Council,04-Dec-15,19629434-12477339,-772.87,Redacted Personal Data,Individual,3 - Operations - Countywide Services,Countywide PD Service - Care,SDS - Care and support Services
Cambridgeshire County Council,04-Dec-15,19629435-12477338,-772.87,Redacted Personal Data,Individual,3 - Operations - Countywide Services,Countywide PD Service - Care,SDS - Care and support Services
Cambridgeshire County Council,04-Dec-15,19629442-12477331,-772.87,Redacted Personal Data,Individual,3 - Operations - Countywide Services,Countywide PD Service - Care,SDS - Care and support Services
Cambridgeshire County Council,04-Dec-15,19629451-12477322,-772.87,Redacted Personal Data,Individual,3 - Operations - Countywide Services,Countywide PD Service - Care,SDS - Care and support Services
Cambridgeshire County Council,04-Dec-15,19629454-12477319,-772.87,Redacted Personal Data,Individual,3 - Operations - Countywide Services,Countywide PD Service - Care,SDS - Care and support Services
Cambridgeshire County Council,04-Dec-15,19629455-12477318,-772.87,Redacted Personal Data,Individual,3 - Operations - Countywide Services,Countywide PD Service - Care,SDS - Care and support Services
Cambridgeshire County Council,04-Dec-15,19582856-12476542,-771.36,Royal Mencap Society,Care Establishment,2 - Operations - Learning Disability,LDP South Cambs Locality - Care,Residential Independent Sector
Cambridgeshire County Council,04-Dec-15,19582860-12476541,-771.36,Royal Mencap Society,Care Establishment,2 - Operations - Learning Disability,LDP South Cambs Locality - Care,Residential Independent Sector
Cambridgeshire County Council,04-Dec-15,19582861-12476540,-771.36,Royal Mencap Society,Care Establishment,2 - Operations - Learning Disability,LDP South Cambs Locality - Care,Residential Independent Sector
Cambridgeshire County Council,04-Dec-15,19582865-12476543,-771.36,Royal Mencap Society,Care Establishment,2 - Operations - Learning Disability,LDP South Cambs Locality - Care,Residential Independent Sector
Cambridgeshire County Council,04-Dec-15,19582867-12476539,-771.36,Royal Mencap Society,Care Establishment,2 - Operations - Learning Disability,LDP South Cambs Locality - Care,Residential Independent Sector
Cambridgeshire County Council,04-Dec-15,19585301-12476578,-771.36,Royal Mencap Society,Care Establishment,2 - Operations - Learning Disability,LDP South Cambs Locality - Care,Residential Independent Sector
Cambridgeshire County Council,04-Dec-15,19585303-12476577,-771.36,Royal Mencap Society,Care Establishment,2 - Operations - Learning Disability,LDP South Cambs Locality - Care,Residential Independent Sector
Cambridgeshire County Council,04-Dec-15,19585304-12476576,-771.36,Royal Mencap Society,Care Establishment,2 - Operations - Learning Disability,LDP South Cambs Locality - Care,Residential Independent Sector
Cambridgeshire County Council,04-Dec-15,19585307-12476575,-771.36,Royal Mencap Society,Care Establishment,2 - Operations - Learning Disability,LDP South Cambs Locality - Care,Residential Independent Sector
Cambridgeshire County Council,04-Dec-15,19585311-12476588,-771.36,Royal Mencap Society,Care Establishment,2 - Operations - Learning Disability,LDP South Cambs Locality - Care,Residential Independent Sector
Cambridgeshire County Council,04-Dec-15,19585312-12476587,-771.36,Royal Mencap Society,Care Establishment,2 - Operations - Learning Disability,LDP South Cambs Locality - Care,Residential Independent Sector
Cambridgeshire County Council,30-Dec-15,19734076-12597329,-750,Redacted Personal Data,Individual,3 - Operations - Countywide Services,Countywide PD Service - Care,Direct Payments - Social Services
Cambridgeshire County Council,30-Dec-15,19734081-12597334,-750,Redacted Personal Data,Individual,3 - Operations - Countywide Services,Countywide PD Service - Care,Direct Payments - Social Services
Cambridgeshire County Council,30-Dec-15,19734082-12597335,-750,Redacted Personal Data,Individual,3 - Operations - Countywide Services,Countywide PD Service - Care,Direct Payments - Social Services
Cambridgeshire County Council,30-Dec-15,19734084-12597337,-750,Redacted Personal Data,Individual,3 - Operations - Countywide Services,Countywide PD Service - Care,Direct Payments - Social Services
Cambridgeshire County Council,30-Dec-15,19734087-12597303,-750,Redacted Personal Data,Individual,3 - Operations - Countywide Services,Countywide PD Service - Care,Direct Payments - Social Services
Cambridgeshire County Council,30-Dec-15,19734089-12597305,-750,Redacted Personal Data,Individual,3 - Operations - Countywide Services,Countywide PD Service - Care,Direct Payments - Social Services
Cambridgeshire County Council,30-Dec-15,19734090-12597306,-750,Redacted Personal Data,Individual,3 - Operations - Countywide Services,Countywide PD Service - Care,Direct Payments - Social Services
Cambridgeshire County Council,30-Dec-15,19734092-12597308,-750,Redacted Personal Data,Individual,3 - Operations - Countywide Services,Countywide PD Service - Care,Direct Payments - Social Services
Cambridgeshire County Council,30-Dec-15,19734094-12597310,-750,Redacted Personal Data,Individual,3 - Operations - Countywide Services,Countywide PD Service - Care,Direct Payments - Social Services
Cambridgeshire County Council,30-Dec-15,19734095-12597311,-750,Redacted Personal Data,Individual,3 - Operations - Countywide Services,Countywide PD Service - Care,Direct Payments - Social Services
Cambridgeshire County Council,30-Dec-15,19734096-12597312,-750,Redacted Personal Data,Individual,3 - Operations - Countywide Services,Countywide PD Service - Care,Direct Payments - Social Services
Cambridgeshire County Council,30-Dec-15,19734098-12597314,-750,Redacted Personal Data,Individual,3 - Operations - Countywide Services,Countywide PD Service - Care,Direct Payments - Social Services
Cambridgeshire County Council,30-Dec-15,19734101-12597317,-750,Redacted Personal Data,Individual,3 - Operations - Countywide Services,Countywide PD Service - Care,Direct Payments - Social Services
Cambridgeshire County Council,30-Dec-15,19734104-12597320,-750,Redacted Personal Data,Individual,3 - Operations - Countywide Services,Countywide PD Service - Care,Direct Payments - Social Services
Cambridgeshire County Council,30-Dec-15,19734106-12597322,-750,Redacted Personal Data,Individual,3 - Operations - Countywide Services,Countywide PD Service - Care,Direct Payments - Social Services
Cambridgeshire County Council,30-Dec-15,19734107-12597323,-750,Redacted Personal Data,Individual,3 - Operations - Countywide Services,Countywide PD Service - Care,Direct Payments - Social Services
Cambridgeshire County Council,30-Dec-15,19734108-12597324,-750,Redacted Personal Data,Individual,3 - Operations - Countywide Services,Countywide PD Service - Care,Direct Payments - Social Services
Cambridgeshire County Council,30-Dec-15,19734990-12597279,-750,Redacted Personal Data,Individual,3 - Operations - Countywide Services,Countywide PD Service - Care,Direct Payments - Social Services
Cambridgeshire County Council,30-Dec-15,19734992-12597281,-750,Redacted Personal Data,Individual,3 - Operations - Countywide Services,Countywide PD Service - Care,Direct Payments - Social Services
Cambridgeshire County Council,30-Dec-15,19734994-12597283,-750,Redacted Personal Data,Individual,3 - Operations - Countywide Services,Countywide PD Service - Care,Direct Payments - Social Services
Cambridgeshire County Council,30-Dec-15,19734996-12597285,-750,Redacted Personal Data,Individual,3 - Operations - Countywide Services,Countywide PD Service - Care,Direct Payments - Social Services
Cambridgeshire County Council,30-Dec-15,19734998-12597287,-750,Redacted Personal Data,Individual,3 - Operations - Countywide Services,Countywide PD Service - Care,Direct Payments - Social Services
Cambridgeshire County Council,30-Dec-15,19735000-12597289,-750,Redacted Personal Data,Individual,3 - Operations - Countywide Services,Countywide PD Service - Care,Direct Payments - Social Services
Cambridgeshire County Council,30-Dec-15,19735001-12597290,-750,Redacted Personal Data,Individual,3 - Operations - Countywide Services,Countywide PD Service - Care,Direct Payments - Social Services
Cambridgeshire County Council,30-Dec-15,19735005-12597294,-750,Redacted Personal Data,Individual,3 - Operations - Countywide Services,Countywide PD Service - Care,Direct Payments - Social Services
Cambridgeshire County Council,30-Dec-15,19735009-12597298,-750,Redacted Personal Data,Individual,3 - Operations - Countywide Services,Countywide PD Service - Care,Direct Payments - Social Services
Cambridgeshire County Council,30-Dec-15,19735010-12597299,-750,Redacted Personal Data,Individual,3 - Operations - Countywide Services,Countywide PD Service - Care,Direct Payments - Social Services
Cambridgeshire County Council,30-Dec-15,19735012-12597301,-750,Redacted Personal Data,Individual,3 - Operations - Countywide Services,Countywide PD Service - Care,Direct Payments - Social Services
Cambridgeshire County Council,30-Dec-15,19735013-12597302,-750,Redacted Personal Data,Individual,3 - Operations - Countywide Services,Countywide PD Service - Care,Direct Payments - Social Services
Cambridgeshire County Council,11-Dec-15,19659284-12515800,-747.6,Care By Us Ltd,Care Establishment,3 - Operations - Countywide Services,Countywide PD Service - Care,Day and Domicillary Care Independent Sector
Cambridgeshire County Council,11-Dec-15,19659287-12515801,-747.6,Care By Us Ltd,Care Establishment,3 - Operations - Countywide Services,Countywide PD Service - Care,Day and Domicillary Care Independent Sector
Cambridgeshire County Council,11-Dec-15,19659289-12515803,-747.6,Care By Us Ltd,Care Establishment,3 - Operations - Countywide Services,Countywide PD Service - Care,Day and Domicillary Care Independent Sector
Cambridgeshire County Council,11-Dec-15,19659291-12515804,-747.6,Care By Us Ltd,Care Establishment,3 - Operations - Countywide Services,Countywide PD Service - Care,Day and Domicillary Care Independent Sector
Cambridgeshire County Council,11-Dec-15,19659292-12515805,-747.6,Care By Us Ltd,Care Establishment,3 - Operations - Countywide Services,Countywide PD Service - Care,Day and Domicillary Care Independent Sector
Cambridgeshire County Council,11-Dec-15,19659295-12515807,-747.6,Care By Us Ltd,Care Establishment,3 - Operations - Countywide Services,Countywide PD Service - Care,Day and Domicillary Care Independent Sector
Cambridgeshire County Council,11-Dec-15,19659298-12515808,-747.6,Care By Us Ltd,Care Establishment,3 - Operations - Countywide Services,Countywide PD Service - Care,Day and Domicillary Care Independent Sector
Cambridgeshire County Council,11-Dec-15,19659301-12515797,-747.6,Care By Us Ltd,Care Establishment,3 - Operations - Countywide Services,Countywide PD Service - Care,Day and Domicillary Care Independent Sector
Cambridgeshire County Council,17-Dec-15,19665116-12552416,-728.57,Abbey Healthcare (Huntingdon) Ltd,Care Establishment,2 - Commissioning - Older people Pool,Older People Mental Health Hunts,Nursing Independent Sector
Cambridgeshire County Council,11-Dec-15,19582550-12508727,-713.38,Sense (Hampton Resource Centre),Care Establishment,2 - Operations - Learning Disability,LDP Hunts special needs,Daycare
Cambridgeshire County Council,11-Dec-15,19624225-12508824,-700,Glennfield Care Centre (Op),Care Establishment,2 - Commissioning - Older people Pool,Older People - Fenland,Residential Independent Sector
Cambridgeshire County Council,11-Dec-15,19624230-12508826,-700,Glennfield Care Centre (Op),Care Establishment,2 - Commissioning - Older people Pool,Older People - Fenland,Residential Independent Sector
Cambridgeshire County Council,11-Dec-15,19624231-12508827,-700,Glennfield Care Centre (Op),Care Establishment,2 - Commissioning - Older people Pool,Older People - Fenland,Residential Independent Sector
Cambridgeshire County Council,11-Dec-15,19624232-12508828,-700,Glennfield Care Centre (Op),Care Establishment,2 - Commissioning - Older people Pool,Older People - Fenland,Residential Independent Sector
Cambridgeshire County Council,11-Dec-15,19624233-12508829,-700,Glennfield Care Centre (Op),Care Establishment,2 - Commissioning - Older people Pool,Older People - Fenland,Residential Independent Sector
Cambridgeshire County Council,11-Dec-15,19624243-12508832,-700,Glennfield Care Centre (Op),Care Establishment,2 - Commissioning - Older people Pool,Older People - Fenland,Residential Independent Sector
Cambridgeshire County Council,11-Dec-15,19624244-12508833,-700,Glennfield Care Centre (Op),Care Establishment,2 - Commissioning - Older people Pool,Older People - Fenland,Residential Independent Sector
Cambridgeshire County Council,11-Dec-15,19624246-12508834,-700,Glennfield Care Centre (Op),Care Establishment,2 - Commissioning - Older people Pool,Older People - Fenland,Residential Independent Sector
Cambridgeshire County Council,11-Dec-15,19624248-12508835,-700,Glennfield Care Centre (Op),Care Establishment,2 - Commissioning - Older people Pool,Older People - Fenland,Residential Independent Sector
Cambridgeshire County Council,11-Dec-15,19624254-12508836,-700,Glennfield Care Centre (Op),Care Establishment,2 - Commissioning - Older people Pool,Older People - Fenland,Residential Independent Sector
Cambridgeshire County Council,11-Dec-15,19624257-12508837,-700,Glennfield Care Centre (Op),Care Establishment,2 - Commissioning - Older people Pool,Older People - Fenland,Residential Independent Sector
Cambridgeshire County Council,11-Dec-15,19624258-12508838,-700,Glennfield Care Centre (Op),Care Establishment,2 - Commissioning - Older people Pool,Older People - Fenland,Residential Independent Sector
Cambridgeshire County Council,11-Dec-15,19624274-12508841,-700,Glennfield Care Centre (Op),Care Establishment,2 - Commissioning - Older people Pool,Older People - Fenland,Residential Independent Sector
Cambridgeshire County Council,11-Dec-15,19624275-12508842,-700,Glennfield Care Centre (Op),Care Establishment,2 - Commissioning - Older people Pool,Older People - Fenland,Residential Independent Sector
Cambridgeshire County Council,11-Dec-15,19624276-12508843,-700,Glennfield Care Centre (Op),Care Establishment,2 - Commissioning - Older people Pool,Older People - Fenland,Residential Independent Sector
Cambridgeshire County Council,11-Dec-15,19624277-12508844,-700,Glennfield Care Centre (Op),Care Establishment,2 - Commissioning - Older people Pool,Older People - Fenland,Residential Independent Sector
Cambridgeshire County Council,11-Dec-15,19624278-12508845,-700,Glennfield Care Centre (Op),Care Establishment,2 - Commissioning - Older people Pool,Older People - Fenland,Residential Independent Sector
Cambridgeshire County Council,11-Dec-15,19624283-12508848,-700,Glennfield Care Centre (Op),Care Establishment,2 - Commissioning - Older people Pool,Older People - Fenland,Residential Independent Sector
Cambridgeshire County Council,11-Dec-15,19624289-12508849,-700,Glennfield Care Centre (Op),Care Establishment,2 - Commissioning - Older people Pool,Older People - Fenland,Residential Independent Sector
Cambridgeshire County Council,11-Dec-15,19624290-12508850,-700,Glennfield Care Centre (Op),Care Establishment,2 - Commissioning - Older people Pool,Older People - Fenland,Residential Independent Sector
Cambridgeshire County Council,11-Dec-15,19624295-12508853,-700,Glennfield Care Centre (Op),Care Establishment,2 - Commissioning - Older people Pool,Older People - Fenland,Residential Independent Sector
Cambridgeshire County Council,11-Dec-15,19624296-12508854,-700,Glennfield Care Centre (Op),Care Establishment,2 - Commissioning - Older people Pool,Older People - Fenland,Residential Independent Sector
Cambridgeshire County Council,11-Dec-15,19627536-12508903,-700,Glennfield Care Centre (Op),Care Establishment,2 - Commissioning - Older people Pool,Older People - Fenland,Residential Independent Sector
Cambridgeshire County Council,11-Dec-15,19398225-12525413,-698.71,Unit 2b (Dimensions),Care Establishment,2 - Operations - Learning Disability,LDP Huntingdonshire Locality - Care,Day and Domicillary Care Independent Sector
Cambridgeshire County Council,22-Dec-15,19736094-12575876,-686.6,Kisimul School,Care Establishment,2 - Operations - Learning Disability,LDP Huntingdonshire Locality - Care,Residential Independent Sector
Cambridgeshire County Council,30-Dec-15,19751904-12593292,-666.88,The Edmund Trust,Care Establishment,2 - Operations - Learning Disability,LDP City Locality - Care,Supported Living
Cambridgeshire County Council,30-Dec-15,19751908-12593296,-666.88,The Edmund Trust,Care Establishment,2 - Operations - Learning Disability,LDP City Locality - Care,Supported Living
Cambridgeshire County Council,30-Dec-15,19751909-12593297,-666.88,The Edmund Trust,Care Establishment,2 - Operations - Learning Disability,LDP City Locality - Care,Supported Living
Cambridgeshire County Council,30-Dec-15,19751911-12593299,-666.88,The Edmund Trust,Care Establishment,2 - Operations - Learning Disability,LDP City Locality - Care,Supported Living
Cambridgeshire County Council,30-Dec-15,19751913-12593301,-666.88,The Edmund Trust,Care Establishment,2 - Operations - Learning Disability,LDP City Locality - Care,Supported Living
Cambridgeshire County Council,30-Dec-15,19751914-12593302,-666.88,The Edmund Trust,Care Establishment,2 - Operations - Learning Disability,LDP City Locality - Care,Supported Living
Cambridgeshire County Council,30-Dec-15,19751915-12593303,-666.88,The Edmund Trust,Care Establishment,2 - Operations - Learning Disability,LDP City Locality - Care,Supported Living
Cambridgeshire County Council,30-Dec-15,19751920-12593308,-666.88,The Edmund Trust,Care Establishment,2 - Operations - Learning Disability,LDP City Locality - Care,Supported Living
Cambridgeshire County Council,30-Dec-15,19751921-12593309,-666.88,The Edmund Trust,Care Establishment,2 - Operations - Learning Disability,LDP City Locality - Care,Supported Living
Cambridgeshire County Council,30-Dec-15,19751923-12593311,-666.88,The Edmund Trust,Care Establishment,2 - Operations - Learning Disability,LDP City Locality - Care,Supported Living
Cambridgeshire County Council,30-Dec-15,19751926-12593314,-666.88,The Edmund Trust,Care Establishment,2 - Operations - Learning Disability,LDP City Locality - Care,Supported Living
Cambridgeshire County Council,30-Dec-15,19751930-12593318,-666.88,The Edmund Trust,Care Establishment,2 - Operations - Learning Disability,LDP City Locality - Care,Supported Living
Cambridgeshire County Council,30-Dec-15,19751931-12593319,-666.88,The Edmund Trust,Care Establishment,2 - Operations - Learning Disability,LDP City Locality - Care,Supported Living
Cambridgeshire County Council,30-Dec-15,19751932-12593320,-666.88,The Edmund Trust,Care Establishment,2 - Operations - Learning Disability,LDP City Locality - Care,Supported Living
Cambridgeshire County Council,30-Dec-15,19755641-12593262,-666.88,The Edmund Trust,Care Establishment,2 - Operations - Learning Disability,LDP City Locality - Care,Supported Living
Cambridgeshire County Council,30-Dec-15,19755642-12593263,-666.88,The Edmund Trust,Care Establishment,2 - Operations - Learning Disability,LDP City Locality - Care,Supported Living
Cambridgeshire County Council,30-Dec-15,19755644-12593265,-666.88,The Edmund Trust,Care Establishment,2 - Operations - Learning Disability,LDP City Locality - Care,Supported Living
Cambridgeshire County Council,30-Dec-15,19755645-12593266,-666.88,The Edmund Trust,Care Establishment,2 - Operations - Learning Disability,LDP City Locality - Care,Supported Living
Cambridgeshire County Council,30-Dec-15,19755646-12593267,-666.88,The Edmund Trust,Care Establishment,2 - Operations - Learning Disability,LDP City Locality - Care,Supported Living
Cambridgeshire County Council,30-Dec-15,19755647-12593268,-666.88,The Edmund Trust,Care Establishment,2 - Operations - Learning Disability,LDP City Locality - Care,Supported Living
Cambridgeshire County Council,30-Dec-15,19755648-12593269,-666.88,The Edmund Trust,Care Establishment,2 - Operations - Learning Disability,LDP City Locality - Care,Supported Living
Cambridgeshire County Council,30-Dec-15,19755649-12593270,-666.88,The Edmund Trust,Care Establishment,2 - Operations - Learning Disability,LDP City Locality - Care,Supported Living
Cambridgeshire County Council,30-Dec-15,19755650-12593271,-666.88,The Edmund Trust,Care Establishment,2 - Operations - Learning Disability,LDP City Locality - Care,Supported Living
Cambridgeshire County Council,04-Dec-15,19485916-12476548,-663.22,Royal Mencap Society,Care Establishment,2 - Commissioning - Older people Pool,Older People - City & South,Residential Independent Sector
Cambridgeshire County Council,04-Dec-15,19629431-12477341,-662.46,Redacted Personal Data,Individual,3 - Operations - Countywide Services,Countywide PD Service - Care,SDS - Care and support Services
Cambridgeshire County Council,11-Dec-15,19579309-12508978,-653.25,Cambridge Manor Care Home (Tlc),Care Establishment,2 - Commissioning - Older people Pool,Older People Mental Health E Cambs,Nursing Independent Sector
Cambridgeshire County Council,11-Dec-15,19579310-12508979,-653.25,Cambridge Manor Care Home (Tlc),Care Establishment,2 - Commissioning - Older people Pool,Older People Mental Health E Cambs,Nursing Independent Sector
Cambridgeshire County Council,11-Dec-15,19579311-12508980,-653.25,Cambridge Manor Care Home (Tlc),Care Establishment,2 - Commissioning - Older people Pool,Older People Mental Health E Cambs,Nursing Independent Sector
Cambridgeshire County Council,11-Dec-15,19579312-12508981,-653.25,Cambridge Manor Care Home (Tlc),Care Establishment,2 - Commissioning - Older people Pool,Older People Mental Health E Cambs,Nursing Independent Sector
Cambridgeshire County Council,11-Dec-15,19579313-12508982,-653.25,Cambridge Manor Care Home (Tlc),Care Establishment,2 - Commissioning - Older people Pool,Older People Mental Health E Cambs,Nursing Independent Sector
Cambridgeshire County Council,11-Dec-15,19579315-12508984,-653.25,Cambridge Manor Care Home (Tlc),Care Establishment,2 - Commissioning - Older people Pool,Older People Mental Health E Cambs,Nursing Independent Sector
Cambridgeshire County Council,11-Dec-15,19579316-12508985,-653.25,Cambridge Manor Care Home (Tlc),Care Establishment,2 - Commissioning - Older people Pool,Older People Mental Health E Cambs,Nursing Independent Sector
Cambridgeshire County Council,11-Dec-15,19579317-12508986,-653.25,Cambridge Manor Care Home (Tlc),Care Establishment,2 - Commissioning - Older people Pool,Older People Mental Health E Cambs,Nursing Independent Sector
Cambridgeshire County Council,11-Dec-15,19579318-12508987,-653.25,Cambridge Manor Care Home (Tlc),Care Establishment,2 - Commissioning - Older people Pool,Older People Mental Health E Cambs,Nursing Independent Sector
Cambridgeshire County Council,11-Dec-15,19579319-12508988,-653.25,Cambridge Manor Care Home (Tlc),Care Establishment,2 - Commissioning - Older people Pool,Older People Mental Health E Cambs,Nursing Independent Sector
Cambridgeshire County Council,11-Dec-15,19579320-12508989,-653.25,Cambridge Manor Care Home (Tlc),Care Establishment,2 - Commissioning - Older people Pool,Older People Mental Health E Cambs,Nursing Independent Sector
Cambridgeshire County Council,11-Dec-15,19579321-12508990,-653.25,Cambridge Manor Care Home (Tlc),Care Establishment,2 - Commissioning - Older people Pool,Older People Mental Health E Cambs,Nursing Independent Sector
Cambridgeshire County Council,11-Dec-15,19579322-12508991,-653.25,Cambridge Manor Care Home (Tlc),Care Establishment,2 - Commissioning - Older people Pool,Older People Mental Health E Cambs,Nursing Independent Sector
Cambridgeshire County Council,11-Dec-15,19579323-12508992,-653.25,Cambridge Manor Care Home (Tlc),Care Establishment,2 - Commissioning - Older people Pool,Older People Mental Health E Cambs,Nursing Independent Sector
Cambridgeshire County Council,17-Dec-15,19652713-12556989,-650,Gracefield Nursing And Residential Home,Care Establishment,2 - Commissioning - Older people Pool,Older People Mental Health Fenland,Nursing Independent Sector
Cambridgeshire County Council,17-Dec-15,19652715-12556990,-650,Gracefield Nursing And Residential Home,Care Establishment,2 - Commissioning - Older people Pool,Older People Mental Health Fenland,Nursing Independent Sector
Cambridgeshire County Council,17-Dec-15,19652716-12556991,-650,Gracefield Nursing And Residential Home,Care Establishment,2 - Commissioning - Older people Pool,Older People Mental Health Fenland,Nursing Independent Sector
Cambridgeshire County Council,17-Dec-15,19652718-12556992,-650,Gracefield Nursing And Residential Home,Care Establishment,2 - Commissioning - Older people Pool,Older People Mental Health Fenland,Nursing Independent Sector
Cambridgeshire County Council,17-Dec-15,19652721-12556993,-650,Gracefield Nursing And Residential Home,Care Establishment,2 - Commissioning - Older people Pool,Older People Mental Health Fenland,Nursing Independent Sector
Cambridgeshire County Council,17-Dec-15,19652724-12556994,-650,Gracefield Nursing And Residential Home,Care Establishment,2 - Commissioning - Older people Pool,Older People Mental Health Fenland,Nursing Independent Sector
Cambridgeshire County Council,17-Dec-15,19652725-12556995,-650,Gracefield Nursing And Residential Home,Care Establishment,2 - Commissioning - Older people Pool,Older People Mental Health Fenland,Nursing Independent Sector
Cambridgeshire County Council,17-Dec-15,19652727-12556997,-650,Gracefield Nursing And Residential Home,Care Establishment,2 - Commissioning - Older people Pool,Older People Mental Health Fenland,Nursing Independent Sector
Cambridgeshire County Council,11-Dec-15,19659288-12515802,-640.8,Care By Us Ltd,Care Establishment,3 - Operations - Countywide Services,Countywide PD Service - Care,Day and Domicillary Care Independent Sector
Cambridgeshire County Council,11-Dec-15,19662829-12505407,-640.71,Midas Care Ltd,Care Establishment,2 - Commissioning - Older people Pool,Hunts O P  Team,Day and Domicillary Care Independent Sector
Cambridgeshire County Council,04-Dec-15,19507063-12478815,-625.52,Guidant Group,Trade Supplier,4 - Operations - Providers services,No. 20 Alder Close Respite,Pay - Agency Staff
Cambridgeshire County Council,11-Dec-15,19580831-12518880,-600,The Gables Specialist Nursing Home,Care Establishment,2 - Commissioning - Older people Pool,Older People Mental Health Fenland,Nursing Independent Sector
Cambridgeshire County Council,11-Dec-15,19580835-12518884,-600,The Gables Specialist Nursing Home,Care Establishment,2 - Commissioning - Older people Pool,Older People Mental Health Fenland,Nursing Independent Sector
Cambridgeshire County Council,11-Dec-15,19580836-12518885,-600,The Gables Specialist Nursing Home,Care Establishment,2 - Commissioning - Older people Pool,Older People Mental Health Fenland,Nursing Independent Sector
Cambridgeshire County Council,11-Dec-15,19580837-12518858,-600,The Gables Specialist Nursing Home,Care Establishment,2 - Commissioning - Older people Pool,Older People Mental Health Fenland,Nursing Independent Sector
Cambridgeshire County Council,11-Dec-15,19580838-12518859,-600,The Gables Specialist Nursing Home,Care Establishment,2 - Commissioning - Older people Pool,Older People Mental Health Fenland,Nursing Independent Sector
Cambridgeshire County Council,11-Dec-15,19580840-12518861,-600,The Gables Specialist Nursing Home,Care Establishment,2 - Commissioning - Older people Pool,Older People Mental Health Fenland,Nursing Independent Sector
Cambridgeshire County Council,11-Dec-15,19580845-12518866,-600,The Gables Specialist Nursing Home,Care Establishment,2 - Commissioning - Older people Pool,Older People Mental Health Fenland,Nursing Independent Sector
Cambridgeshire County Council,11-Dec-15,19580848-12518869,-600,The Gables Specialist Nursing Home,Care Establishment,2 - Commissioning - Older people Pool,Older People Mental Health Fenland,Nursing Independent Sector
Cambridgeshire County Council,11-Dec-15,19580850-12518871,-600,The Gables Specialist Nursing Home,Care Establishment,2 - Commissioning - Older people Pool,Older People Mental Health Fenland,Nursing Independent Sector
Cambridgeshire County Council,11-Dec-15,19580852-12518873,-600,The Gables Specialist Nursing Home,Care Establishment,2 - Commissioning - Older people Pool,Older People Mental Health Fenland,Nursing Independent Sector
Cambridgeshire County Council,11-Dec-15,19580853-12518874,-600,The Gables Specialist Nursing Home,Care Establishment,2 - Commissioning - Older people Pool,Older People Mental Health Fenland,Nursing Independent Sector
Cambridgeshire County Council,11-Dec-15,19580854-12518875,-600,The Gables Specialist Nursing Home,Care Establishment,2 - Commissioning - Older people Pool,Older People Mental Health Fenland,Nursing Independent Sector
Cambridgeshire County Council,11-Dec-15,19620157-12513449,-587.31,Conquest Care Homes (Soham) Ltd,Care Establishment,2 - Operations - Learning Disability,LDP E Cambs Locality - Care,SDS - Care and support Services
Cambridgeshire County Council,11-Dec-15,19655619-12513475,-587.31,Conquest Care Homes (Soham) Ltd,Care Establishment,2 - Operations - Learning Disability,LDP E Cambs Locality - Care,SDS - Care and support Services
Cambridgeshire County Council,17-Dec-15,19707767-12551942,-587.31,Conquest Care Homes (Soham) Ltd,Care Establishment,2 - Operations - Learning Disability,LDP E Cambs Locality - Care,SDS - Care and support Services
Cambridgeshire County Council,30-Dec-15,19733952-12595816,-587.31,Conquest Care Homes (Soham) Ltd,Care Establishment,2 - Operations - Learning Disability,LDP E Cambs Special Needs,SDS - Care and support Services
Cambridgeshire County Council,30-Dec-15,19752466-12595790,-587.31,Conquest Care Homes (Soham) Ltd,Care Establishment,2 - Operations - Learning Disability,LDP E Cambs Locality - Care,SDS - Care and support Services
Cambridgeshire County Council,11-Dec-15,19662828-12505406,-577.43,Midas Care Ltd,Care Establishment,2 - Commissioning - Older people Pool,Hunts O P  Team,Day and Domicillary Care Independent Sector
Cambridgeshire County Council,11-Dec-15,19662832-12505410,-577.43,Midas Care Ltd,Care Establishment,2 - Commissioning - Older people Pool,Hunts O P  Team,Day and Domicillary Care Independent Sector
Cambridgeshire County Council,11-Dec-15,19662835-12505412,-577.43,Midas Care Ltd,Care Establishment,2 - Commissioning - Older people Pool,Hunts O P  Team,Day and Domicillary Care Independent Sector
Cambridgeshire County Council,11-Dec-15,19662827-12505405,-569.52,Midas Care Ltd,Care Establishment,2 - Commissioning - Older people Pool,Hunts O P  Team,Day and Domicillary Care Independent Sector
Cambridgeshire County Council,17-Dec-15,19704121-12555332,-568.83,Woodlands Care Centre,Care Establishment,2 - Commissioning - Older people Pool,Older People Mental Health City & South,Nursing Independent Sector
Cambridgeshire County Council,17-Dec-15,19704123-12555333,-568.83,Woodlands Care Centre,Care Establishment,2 - Commissioning - Older people Pool,Older People Mental Health City & South,Nursing Independent Sector
Cambridgeshire County Council,17-Dec-15,19704126-12555334,-568.83,Woodlands Care Centre,Care Establishment,2 - Commissioning - Older people Pool,Older People Mental Health City & South,Nursing Independent Sector
Cambridgeshire County Council,17-Dec-15,19704127-12555335,-568.83,Woodlands Care Centre,Care Establishment,2 - Commissioning - Older people Pool,Older People Mental Health City & South,Nursing Independent Sector
Cambridgeshire County Council,17-Dec-15,19704128-12555336,-568.83,Woodlands Care Centre,Care Establishment,2 - Commissioning - Older people Pool,Older People Mental Health City & South,Nursing Independent Sector
Cambridgeshire County Council,17-Dec-15,19704130-12555337,-568.83,Woodlands Care Centre,Care Establishment,2 - Commissioning - Older people Pool,Older People Mental Health City & South,Nursing Independent Sector
Cambridgeshire County Council,17-Dec-15,19704132-12555320,-568.83,Woodlands Care Centre,Care Establishment,2 - Commissioning - Older people Pool,Older People Mental Health City & South,Nursing Independent Sector
Cambridgeshire County Council,17-Dec-15,19704133-12555321,-568.83,Woodlands Care Centre,Care Establishment,2 - Commissioning - Older people Pool,Older People Mental Health City & South,Nursing Independent Sector
Cambridgeshire County Council,17-Dec-15,19704134-12555322,-568.83,Woodlands Care Centre,Care Establishment,2 - Commissioning - Older people Pool,Older People Mental Health City & South,Nursing Independent Sector
Cambridgeshire County Council,17-Dec-15,19704137-12555323,-568.83,Woodlands Care Centre,Care Establishment,2 - Commissioning - Older people Pool,Older People Mental Health City & South,Nursing Independent Sector
Cambridgeshire County Council,17-Dec-15,19704140-12555324,-568.83,Woodlands Care Centre,Care Establishment,2 - Commissioning - Older people Pool,Older People Mental Health City & South,Nursing Independent Sector
Cambridgeshire County Council,17-Dec-15,19704142-12555325,-568.83,Woodlands Care Centre,Care Establishment,2 - Commissioning - Older people Pool,Older People Mental Health City & South,Nursing Independent Sector
Cambridgeshire County Council,17-Dec-15,19704143-12555326,-568.83,Woodlands Care Centre,Care Establishment,2 - Commissioning - Older people Pool,Older People Mental Health City & South,Nursing Independent Sector
Cambridgeshire County Council,17-Dec-15,19704147-12555327,-568.83,Woodlands Care Centre,Care Establishment,2 - Commissioning - Older people Pool,Older People Mental Health City & South,Nursing Independent Sector
Cambridgeshire County Council,17-Dec-15,19704148-12555328,-568.83,Woodlands Care Centre,Care Establishment,2 - Commissioning - Older people Pool,Older People Mental Health City & South,Nursing Independent Sector
Cambridgeshire County Council,17-Dec-15,19708140-12555383,-568.83,Woodlands Care Centre,Care Establishment,2 - Commissioning - Older people Pool,Older People Mental Health City & South,Nursing Independent Sector
Cambridgeshire County Council,17-Dec-15,19708141-12555384,-568.83,Woodlands Care Centre,Care Establishment,2 - Commissioning - Older people Pool,Older People Mental Health City & South,Nursing Independent Sector
Cambridgeshire County Council,17-Dec-15,19708142-12555385,-568.83,Woodlands Care Centre,Care Establishment,2 - Commissioning - Older people Pool,Older People Mental Health City & South,Nursing Independent Sector
Cambridgeshire County Council,17-Dec-15,19708146-12555387,-568.83,Woodlands Care Centre,Care Establishment,2 - Commissioning - Older people Pool,Older People Mental Health City & South,Nursing Independent Sector
Cambridgeshire County Council,17-Dec-15,19657088-12555984,-566.31,Midfield Lodge Care Centre,Care Establishment,2 - Commissioning - Older people Pool,Hunts O P  Team,Nursing Independent Sector
Cambridgeshire County Council,17-Dec-15,19657090-12555986,-566.31,Midfield Lodge Care Centre,Care Establishment,2 - Commissioning - Older people Pool,Hunts O P  Team,Nursing Independent Sector
Cambridgeshire County Council,17-Dec-15,19657091-12555987,-566.31,Midfield Lodge Care Centre,Care Establishment,2 - Commissioning - Older people Pool,Hunts O P  Team,Nursing Independent Sector
Cambridgeshire County Council,17-Dec-15,19657092-12555988,-566.31,Midfield Lodge Care Centre,Care Establishment,2 - Commissioning - Older people Pool,Hunts O P  Team,Nursing Independent Sector
Cambridgeshire County Council,17-Dec-15,19658718-12555989,-566.31,Midfield Lodge Care Centre,Care Establishment,2 - Commissioning - Older people Pool,Hunts O P  Team,Nursing Independent Sector
Cambridgeshire County Council,17-Dec-15,19658719-12555990,-566.31,Midfield Lodge Care Centre,Care Establishment,2 - Commissioning - Older people Pool,Hunts O P  Team,Nursing Independent Sector
Cambridgeshire County Council,17-Dec-15,19658725-12555992,-566.31,Midfield Lodge Care Centre,Care Establishment,2 - Commissioning - Older people Pool,Hunts O P  Team,Nursing Independent Sector
Cambridgeshire County Council,17-Dec-15,19658727-12555993,-566.31,Midfield Lodge Care Centre,Care Establishment,2 - Commissioning - Older people Pool,Hunts O P  Team,Nursing Independent Sector
Cambridgeshire County Council,17-Dec-15,19658728-12555994,-566.31,Midfield Lodge Care Centre,Care Establishment,2 - Commissioning - Older people Pool,Hunts O P  Team,Nursing Independent Sector
Cambridgeshire County Council,17-Dec-15,19658732-12555995,-566.31,Midfield Lodge Care Centre,Care Establishment,2 - Commissioning - Older people Pool,Hunts O P  Team,Nursing Independent Sector
Cambridgeshire County Council,11-Dec-15,19656873-12517009,-566.23,Redacted Personal Data,Individual,3 - Operations - Countywide Services,Countywide PD Service - Care,SDS - Care and support Services
Cambridgeshire County Council,11-Dec-15,19585405-12518839,-563.12,The Gables Specialist Nursing Home,Care Establishment,2 - Commissioning - Older people Pool,Older People Mental Health Fenland,Nursing Independent Sector
Cambridgeshire County Council,11-Dec-15,19585406-12518840,-563.12,The Gables Specialist Nursing Home,Care Establishment,2 - Commissioning - Older people Pool,Older People Mental Health Fenland,Nursing Independent Sector
Cambridgeshire County Council,11-Dec-15,19585407-12518841,-563.12,The Gables Specialist Nursing Home,Care Establishment,2 - Commissioning - Older people Pool,Older People Mental Health Fenland,Nursing Independent Sector
Cambridgeshire County Council,11-Dec-15,19585408-12518842,-563.12,The Gables Specialist Nursing Home,Care Establishment,2 - Commissioning - Older people Pool,Older People Mental Health Fenland,Nursing Independent Sector
Cambridgeshire County Council,11-Dec-15,19585409-12518843,-563.12,The Gables Specialist Nursing Home,Care Establishment,2 - Commissioning - Older people Pool,Older People Mental Health Fenland,Nursing Independent Sector
Cambridgeshire County Council,11-Dec-15,19585410-12518844,-563.12,The Gables Specialist Nursing Home,Care Establishment,2 - Commissioning - Older people Pool,Older People Mental Health Fenland,Nursing Independent Sector
Cambridgeshire County Council,11-Dec-15,19585411-12518845,-563.12,The Gables Specialist Nursing Home,Care Establishment,2 - Commissioning - Older people Pool,Older People Mental Health Fenland,Nursing Independent Sector
Cambridgeshire County Council,11-Dec-15,19585412-12518846,-563.12,The Gables Specialist Nursing Home,Care Establishment,2 - Commissioning - Older people Pool,Older People Mental Health Fenland,Nursing Independent Sector
Cambridgeshire County Council,11-Dec-15,19585413-12518847,-563.12,The Gables Specialist Nursing Home,Care Establishment,2 - Commissioning - Older people Pool,Older People Mental Health Fenland,Nursing Independent Sector
Cambridgeshire County Council,11-Dec-15,19585414-12518848,-563.12,The Gables Specialist Nursing Home,Care Establishment,2 - Commissioning - Older people Pool,Older People Mental Health Fenland,Nursing Independent Sector
Cambridgeshire County Council,11-Dec-15,19585415-12518849,-563.12,The Gables Specialist Nursing Home,Care Establishment,2 - Commissioning - Older people Pool,Older People Mental Health Fenland,Nursing Independent Sector
Cambridgeshire County Council,11-Dec-15,19585416-12518850,-563.12,The Gables Specialist Nursing Home,Care Establishment,2 - Commissioning - Older people Pool,Older People Mental Health Fenland,Nursing Independent Sector
Cambridgeshire County Council,04-Dec-15,19620263-12476877,-559.73,Woodlands Care Centre,Care Establishment,3 - Operations - Countywide Services,Countywide PD Service - Care,Nursing Independent Sector
Cambridgeshire County Council,04-Dec-15,19620264-12476876,-559.73,Woodlands Care Centre,Care Establishment,3 - Operations - Countywide Services,Countywide PD Service - Care,Nursing Independent Sector
Cambridgeshire County Council,04-Dec-15,19620265-12476875,-559.73,Woodlands Care Centre,Care Establishment,3 - Operations - Countywide Services,Countywide PD Service - Care,Nursing Independent Sector
Cambridgeshire County Council,04-Dec-15,19620267-12476873,-559.73,Woodlands Care Centre,Care Establishment,3 - Operations - Countywide Services,Countywide PD Service - Care,Nursing Independent Sector
Cambridgeshire County Council,04-Dec-15,19620268-12476872,-559.73,Woodlands Care Centre,Care Establishment,3 - Operations - Countywide Services,Countywide PD Service - Care,Nursing Independent Sector
Cambridgeshire County Council,04-Dec-15,19620270-12476870,-559.73,Woodlands Care Centre,Care Establishment,3 - Operations - Countywide Services,Countywide PD Service - Care,Nursing Independent Sector
Cambridgeshire County Council,04-Dec-15,19620272-12476868,-559.73,Woodlands Care Centre,Care Establishment,3 - Operations - Countywide Services,Countywide PD Service - Care,Nursing Independent Sector
Cambridgeshire County Council,04-Dec-15,19620277-12476863,-559.73,Woodlands Care Centre,Care Establishment,3 - Operations - Countywide Services,Countywide PD Service - Care,Nursing Independent Sector
Cambridgeshire County Council,04-Dec-15,19620278-12476861,-559.73,Woodlands Care Centre,Care Establishment,3 - Operations - Countywide Services,Countywide PD Service - Care,Nursing Independent Sector
Cambridgeshire County Council,04-Dec-15,19620280-12476860,-559.73,Woodlands Care Centre,Care Establishment,3 - Operations - Countywide Services,Countywide PD Service - Care,Nursing Independent Sector
Cambridgeshire County Council,04-Dec-15,19620283-12476857,-559.73,Woodlands Care Centre,Care Establishment,3 - Operations - Countywide Services,Countywide PD Service - Care,Nursing Independent Sector
Cambridgeshire County Council,04-Dec-15,19620284-12476856,-559.73,Woodlands Care Centre,Care Establishment,3 - Operations - Countywide Services,Countywide PD Service - Care,Nursing Independent Sector
Cambridgeshire County Council,04-Dec-15,19620285-12476851,-559.73,Woodlands Care Centre,Care Establishment,3 - Operations - Countywide Services,Countywide PD Service - Care,Nursing Independent Sector
Cambridgeshire County Council,04-Dec-15,19625219-12476931,-559.73,Woodlands Care Centre,Care Establishment,3 - Operations - Countywide Services,Countywide PD Service - Care,Nursing Independent Sector
Cambridgeshire County Council,04-Dec-15,19625222-12476928,-559.73,Woodlands Care Centre,Care Establishment,3 - Operations - Countywide Services,Countywide PD Service - Care,Nursing Independent Sector
Cambridgeshire County Council,04-Dec-15,19625223-12476927,-559.73,Woodlands Care Centre,Care Establishment,3 - Operations - Countywide Services,Countywide PD Service - Care,Nursing Independent Sector
Cambridgeshire County Council,04-Dec-15,19625224-12476926,-559.73,Woodlands Care Centre,Care Establishment,3 - Operations - Countywide Services,Countywide PD Service - Care,Nursing Independent Sector
Cambridgeshire County Council,04-Dec-15,19625232-12476918,-559.73,Woodlands Care Centre,Care Establishment,3 - Operations - Countywide Services,Countywide PD Service - Care,Nursing Independent Sector
Cambridgeshire County Council,04-Dec-15,19625233-12476917,-559.73,Woodlands Care Centre,Care Establishment,3 - Operations - Countywide Services,Countywide PD Service - Care,Nursing Independent Sector
Cambridgeshire County Council,04-Dec-15,19625734-12476945,-559.73,Woodlands Care Centre,Care Establishment,3 - Operations - Countywide Services,Countywide PD Service - Care,Nursing Independent Sector
Cambridgeshire County Council,04-Dec-15,19625738-12476941,-559.73,Woodlands Care Centre,Care Establishment,3 - Operations - Countywide Services,Countywide PD Service - Care,Nursing Independent Sector
Cambridgeshire County Council,04-Dec-15,19625739-12476940,-559.73,Woodlands Care Centre,Care Establishment,3 - Operations - Countywide Services,Countywide PD Service - Care,Nursing Independent Sector
Cambridgeshire County Council,04-Dec-15,19625740-12476939,-559.73,Woodlands Care Centre,Care Establishment,3 - Operations - Countywide Services,Countywide PD Service - Care,Nursing Independent Sector
Cambridgeshire County Council,04-Dec-15,19625741-12476938,-559.73,Woodlands Care Centre,Care Establishment,3 - Operations - Countywide Services,Countywide PD Service - Care,Nursing Independent Sector
Cambridgeshire County Council,04-Dec-15,19629157-12476901,-559.73,Woodlands Care Centre,Care Establishment,3 - Operations - Countywide Services,Countywide PD Service - Care,Nursing Independent Sector
Cambridgeshire County Council,04-Dec-15,19629158-12476900,-559.73,Woodlands Care Centre,Care Establishment,3 - Operations - Countywide Services,Countywide PD Service - Care,Nursing Independent Sector
Cambridgeshire County Council,04-Dec-15,19629162-12476896,-559.73,Woodlands Care Centre,Care Establishment,3 - Operations - Countywide Services,Countywide PD Service - Care,Nursing Independent Sector
Cambridgeshire County Council,04-Dec-15,19629165-12476893,-559.73,Woodlands Care Centre,Care Establishment,3 - Operations - Countywide Services,Countywide PD Service - Care,Nursing Independent Sector
Cambridgeshire County Council,04-Dec-15,19629167-12476891,-559.73,Woodlands Care Centre,Care Establishment,3 - Operations - Countywide Services,Countywide PD Service - Care,Nursing Independent Sector
Cambridgeshire County Council,04-Dec-15,19629169-12476889,-559.73,Woodlands Care Centre,Care Establishment,3 - Operations - Countywide Services,Countywide PD Service - Care,Nursing Independent Sector
Cambridgeshire County Council,04-Dec-15,19629170-12476888,-559.73,Woodlands Care Centre,Care Establishment,3 - Operations - Countywide Services,Countywide PD Service - Care,Nursing Independent Sector
Cambridgeshire County Council,04-Dec-15,19629172-12476886,-559.73,Woodlands Care Centre,Care Establishment,3 - Operations - Countywide Services,Countywide PD Service - Care,Nursing Independent Sector
Cambridgeshire County Council,04-Dec-15,19629173-12476885,-559.73,Woodlands Care Centre,Care Establishment,3 - Operations - Countywide Services,Countywide PD Service - Care,Nursing Independent Sector
Cambridgeshire County Council,04-Dec-15,19629175-12476883,-559.73,Woodlands Care Centre,Care Establishment,3 - Operations - Countywide Services,Countywide PD Service - Care,Nursing Independent Sector
Cambridgeshire County Council,04-Dec-15,19629177-12476881,-559.73,Woodlands Care Centre,Care Establishment,3 - Operations - Countywide Services,Countywide PD Service - Care,Nursing Independent Sector
Cambridgeshire County Council,04-Dec-15,19629178-12476880,-559.73,Woodlands Care Centre,Care Establishment,3 - Operations - Countywide Services,Countywide PD Service - Care,Nursing Independent Sector
Cambridgeshire County Council,04-Dec-15,19629179-12476879,-559.73,Woodlands Care Centre,Care Establishment,3 - Operations - Countywide Services,Countywide PD Service - Care,Nursing Independent Sector
Cambridgeshire County Council,11-Dec-15,19662823-12505401,-557.66,Midas Care Ltd,Care Establishment,2 - Commissioning - Older people Pool,Hunts O P  Team,Day and Domicillary Care Independent Sector
Cambridgeshire County Council,11-Dec-15,19628363-12508281,-557.3,Eagle Wood Neurological Care,Care Establishment,2 - Commissioning - Older people Pool,Older People Mental Health Fenland,Nursing Independent Sector
Cambridgeshire County Council,17-Dec-15,19706078-12554486,-555.85,Barchester Healthcare Homes Ltd,Care Establishment,2 - Commissioning - Older people Pool,Older People - City & South,Nursing Independent Sector
Cambridgeshire County Council,17-Dec-15,19706080-12554488,-555.85,Barchester Healthcare Homes Ltd,Care Establishment,2 - Commissioning - Older people Pool,Older People - City & South,Nursing Independent Sector
Cambridgeshire County Council,17-Dec-15,19706083-12554491,-555.85,Barchester Healthcare Homes Ltd,Care Establishment,2 - Commissioning - Older people Pool,Older People - City & South,Nursing Independent Sector
Cambridgeshire County Council,17-Dec-15,19706084-12554492,-555.85,Barchester Healthcare Homes Ltd,Care Establishment,2 - Commissioning - Older people Pool,Older People - City & South,Nursing Independent Sector
Cambridgeshire County Council,17-Dec-15,19706085-12554493,-555.85,Barchester Healthcare Homes Ltd,Care Establishment,2 - Commissioning - Older people Pool,Older People - City & South,Nursing Independent Sector
Cambridgeshire County Council,17-Dec-15,19706086-12554494,-555.85,Barchester Healthcare Homes Ltd,Care Establishment,2 - Commissioning - Older people Pool,Older People - City & South,Nursing Independent Sector
Cambridgeshire County Council,17-Dec-15,19706088-12554496,-555.85,Barchester Healthcare Homes Ltd,Care Establishment,2 - Commissioning - Older people Pool,Older People - City & South,Nursing Independent Sector
Cambridgeshire County Council,17-Dec-15,19706089-12554497,-555.85,Barchester Healthcare Homes Ltd,Care Establishment,2 - Commissioning - Older people Pool,Older People - City & South,Nursing Independent Sector
Cambridgeshire County Council,17-Dec-15,19706090-12554498,-555.85,Barchester Healthcare Homes Ltd,Care Establishment,2 - Commissioning - Older people Pool,Older People - City & South,Nursing Independent Sector
Cambridgeshire County Council,17-Dec-15,19706091-12554499,-555.85,Barchester Healthcare Homes Ltd,Care Establishment,2 - Commissioning - Older people Pool,Older People - City & South,Nursing Independent Sector
Cambridgeshire County Council,17-Dec-15,19706876-12554419,-555.85,Barchester Healthcare Homes Ltd,Care Establishment,2 - Commissioning - Older people Pool,Older People - City & South,Nursing Independent Sector
Cambridgeshire County Council,17-Dec-15,19706878-12554420,-555.85,Barchester Healthcare Homes Ltd,Care Establishment,2 - Commissioning - Older people Pool,Older People - City & South,Nursing Independent Sector
Cambridgeshire County Council,17-Dec-15,19706881-12554423,-555.85,Barchester Healthcare Homes Ltd,Care Establishment,2 - Commissioning - Older people Pool,Older People - City & South,Nursing Independent Sector
Cambridgeshire County Council,17-Dec-15,19706882-12554424,-555.85,Barchester Healthcare Homes Ltd,Care Establishment,2 - Commissioning - Older people Pool,Older People - City & South,Nursing Independent Sector
Cambridgeshire County Council,17-Dec-15,19706883-12554425,-555.85,Barchester Healthcare Homes Ltd,Care Establishment,2 - Commissioning - Older people Pool,Older People - City & South,Nursing Independent Sector
Cambridgeshire County Council,17-Dec-15,19706884-12554426,-555.85,Barchester Healthcare Homes Ltd,Care Establishment,2 - Commissioning - Older people Pool,Older People - City & South,Nursing Independent Sector
Cambridgeshire County Council,17-Dec-15,19706885-12554427,-555.85,Barchester Healthcare Homes Ltd,Care Establishment,2 - Commissioning - Older people Pool,Older People - City & South,Nursing Independent Sector
Cambridgeshire County Council,17-Dec-15,19706887-12554429,-555.85,Barchester Healthcare Homes Ltd,Care Establishment,2 - Commissioning - Older people Pool,Older People - City & South,Nursing Independent Sector
Cambridgeshire County Council,17-Dec-15,19706891-12554433,-555.85,Barchester Healthcare Homes Ltd,Care Establishment,2 - Commissioning - Older people Pool,Older People - City & South,Nursing Independent Sector
Cambridgeshire County Council,17-Dec-15,19706895-12554436,-555.85,Barchester Healthcare Homes Ltd,Care Establishment,2 - Commissioning - Older people Pool,Older People - City & South,Nursing Independent Sector
Cambridgeshire County Council,17-Dec-15,19706896-12554437,-555.85,Barchester Healthcare Homes Ltd,Care Establishment,2 - Commissioning - Older people Pool,Older People - City & South,Nursing Independent Sector
Cambridgeshire County Council,17-Dec-15,19706901-12554442,-555.85,Barchester Healthcare Homes Ltd,Care Establishment,2 - Commissioning - Older people Pool,Older People - City & South,Nursing Independent Sector
Cambridgeshire County Council,17-Dec-15,19706902-12554443,-555.85,Barchester Healthcare Homes Ltd,Care Establishment,2 - Commissioning - Older people Pool,Older People - City & South,Nursing Independent Sector
Cambridgeshire County Council,17-Dec-15,19706903-12554444,-555.85,Barchester Healthcare Homes Ltd,Care Establishment,2 - Commissioning - Older people Pool,Older People - City & South,Nursing Independent Sector
Cambridgeshire County Council,17-Dec-15,19706904-12554445,-555.85,Barchester Healthcare Homes Ltd,Care Establishment,2 - Commissioning - Older people Pool,Older People - City & South,Nursing Independent Sector
Cambridgeshire County Council,17-Dec-15,19706906-12554447,-555.85,Barchester Healthcare Homes Ltd,Care Establishment,2 - Commissioning - Older people Pool,Older People - City & South,Nursing Independent Sector
Cambridgeshire County Council,17-Dec-15,19706910-12554451,-555.85,Barchester Healthcare Homes Ltd,Care Establishment,2 - Commissioning - Older people Pool,Older People - City & South,Nursing Independent Sector
Cambridgeshire County Council,17-Dec-15,19706911-12554452,-555.85,Barchester Healthcare Homes Ltd,Care Establishment,2 - Commissioning - Older people Pool,Older People - City & South,Nursing Independent Sector
Cambridgeshire County Council,17-Dec-15,19706913-12554454,-555.85,Barchester Healthcare Homes Ltd,Care Establishment,2 - Commissioning - Older people Pool,Older People - City & South,Nursing Independent Sector
Cambridgeshire County Council,17-Dec-15,19706914-12554455,-555.85,Barchester Healthcare Homes Ltd,Care Establishment,2 - Commissioning - Older people Pool,Older People - City & South,Nursing Independent Sector
Cambridgeshire County Council,17-Dec-15,19706916-12554457,-555.85,Barchester Healthcare Homes Ltd,Care Establishment,2 - Commissioning - Older people Pool,Older People - City & South,Nursing Independent Sector
Cambridgeshire County Council,17-Dec-15,19706920-12554461,-555.85,Barchester Healthcare Homes Ltd,Care Establishment,2 - Commissioning - Older people Pool,Older People - City & South,Nursing Independent Sector
Cambridgeshire County Council,17-Dec-15,19706922-12554463,-555.85,Barchester Healthcare Homes Ltd,Care Establishment,2 - Commissioning - Older people Pool,Older People - City & South,Nursing Independent Sector
Cambridgeshire County Council,17-Dec-15,19706924-12554465,-555.85,Barchester Healthcare Homes Ltd,Care Establishment,2 - Commissioning - Older people Pool,Older People - City & South,Nursing Independent Sector
Cambridgeshire County Council,17-Dec-15,19706926-12554467,-555.85,Barchester Healthcare Homes Ltd,Care Establishment,2 - Commissioning - Older people Pool,Older People - City & South,Nursing Independent Sector
Cambridgeshire County Council,17-Dec-15,19706929-12554470,-555.85,Barchester Healthcare Homes Ltd,Care Establishment,2 - Commissioning - Older people Pool,Older People - City & South,Nursing Independent Sector
Cambridgeshire County Council,17-Dec-15,19706930-12554471,-555.85,Barchester Healthcare Homes Ltd,Care Establishment,2 - Commissioning - Older people Pool,Older People - City & South,Nursing Independent Sector
Cambridgeshire County Council,17-Dec-15,19706931-12554472,-555.85,Barchester Healthcare Homes Ltd,Care Establishment,2 - Commissioning - Older people Pool,Older People - City & South,Nursing Independent Sector
Cambridgeshire County Council,17-Dec-15,19706933-12554473,-555.85,Barchester Healthcare Homes Ltd,Care Establishment,2 - Commissioning - Older people Pool,Older People - City & South,Nursing Independent Sector
Cambridgeshire County Council,17-Dec-15,19706942-12554415,-555.85,Barchester Healthcare Homes Ltd,Care Establishment,2 - Commissioning - Older people Pool,Older People - City & South,Nursing Independent Sector
Cambridgeshire County Council,17-Dec-15,19706943-12554416,-555.85,Barchester Healthcare Homes Ltd,Care Establishment,2 - Commissioning - Older people Pool,Older People - City & South,Nursing Independent Sector
Cambridgeshire County Council,17-Dec-15,19710338-12554363,-555.85,Barchester Healthcare Homes Ltd,Care Establishment,2 - Commissioning - Older people Pool,Older People - City & South,Nursing Independent Sector
Cambridgeshire County Council,17-Dec-15,19710339-12554364,-555.85,Barchester Healthcare Homes Ltd,Care Establishment,2 - Commissioning - Older people Pool,Older People - City & South,Nursing Independent Sector
Cambridgeshire County Council,17-Dec-15,19710343-12554368,-555.85,Barchester Healthcare Homes Ltd,Care Establishment,2 - Commissioning - Older people Pool,Older People - City & South,Nursing Independent Sector
Cambridgeshire County Council,17-Dec-15,19710345-12554370,-555.85,Barchester Healthcare Homes Ltd,Care Establishment,2 - Commissioning - Older people Pool,Older People - City & South,Nursing Independent Sector
Cambridgeshire County Council,17-Dec-15,19710348-12554373,-555.85,Barchester Healthcare Homes Ltd,Care Establishment,2 - Commissioning - Older people Pool,Older People - City & South,Nursing Independent Sector
Cambridgeshire County Council,17-Dec-15,19710349-12554374,-555.85,Barchester Healthcare Homes Ltd,Care Establishment,2 - Commissioning - Older people Pool,Older People - City & South,Nursing Independent Sector
Cambridgeshire County Council,17-Dec-15,19710354-12554379,-555.85,Barchester Healthcare Homes Ltd,Care Establishment,2 - Commissioning - Older people Pool,Older People - City & South,Nursing Independent Sector
Cambridgeshire County Council,17-Dec-15,19710357-12554382,-555.85,Barchester Healthcare Homes Ltd,Care Establishment,2 - Commissioning - Older people Pool,Older People - City & South,Nursing Independent Sector
Cambridgeshire County Council,17-Dec-15,19710359-12554384,-555.85,Barchester Healthcare Homes Ltd,Care Establishment,2 - Commissioning - Older people Pool,Older People - City & South,Nursing Independent Sector
Cambridgeshire County Council,17-Dec-15,19710363-12554388,-555.85,Barchester Healthcare Homes Ltd,Care Establishment,2 - Commissioning - Older people Pool,Older People - City & South,Nursing Independent Sector
Cambridgeshire County Council,17-Dec-15,19710365-12554390,-555.85,Barchester Healthcare Homes Ltd,Care Establishment,2 - Commissioning - Older people Pool,Older People - City & South,Nursing Independent Sector
Cambridgeshire County Council,17-Dec-15,19710367-12554392,-555.85,Barchester Healthcare Homes Ltd,Care Establishment,2 - Commissioning - Older people Pool,Older People - City & South,Nursing Independent Sector
Cambridgeshire County Council,17-Dec-15,19710369-12554394,-555.85,Barchester Healthcare Homes Ltd,Care Establishment,2 - Commissioning - Older people Pool,Older People - City & South,Nursing Independent Sector
Cambridgeshire County Council,17-Dec-15,19710374-12554399,-555.85,Barchester Healthcare Homes Ltd,Care Establishment,2 - Commissioning - Older people Pool,Older People - City & South,Nursing Independent Sector
Cambridgeshire County Council,17-Dec-15,19710376-12554401,-555.85,Barchester Healthcare Homes Ltd,Care Establishment,2 - Commissioning - Older people Pool,Older People - City & South,Nursing Independent Sector
Cambridgeshire County Council,17-Dec-15,19710379-12554404,-555.85,Barchester Healthcare Homes Ltd,Care Establishment,2 - Commissioning - Older people Pool,Older People - City & South,Nursing Independent Sector
Cambridgeshire County Council,17-Dec-15,19710380-12554405,-555.85,Barchester Healthcare Homes Ltd,Care Establishment,2 - Commissioning - Older people Pool,Older People - City & South,Nursing Independent Sector
Cambridgeshire County Council,17-Dec-15,19710382-12554347,-555.85,Barchester Healthcare Homes Ltd,Care Establishment,2 - Commissioning - Older people Pool,Older People - City & South,Nursing Independent Sector
Cambridgeshire County Council,17-Dec-15,19710384-12554349,-555.85,Barchester Healthcare Homes Ltd,Care Establishment,2 - Commissioning - Older people Pool,Older People - City & South,Nursing Independent Sector
Cambridgeshire County Council,17-Dec-15,19710385-12554350,-555.85,Barchester Healthcare Homes Ltd,Care Establishment,2 - Commissioning - Older people Pool,Older People - City & South,Nursing Independent Sector
Cambridgeshire County Council,17-Dec-15,19710386-12554351,-555.85,Barchester Healthcare Homes Ltd,Care Establishment,2 - Commissioning - Older people Pool,Older People - City & South,Nursing Independent Sector
Cambridgeshire County Council,17-Dec-15,19710389-12554354,-555.85,Barchester Healthcare Homes Ltd,Care Establishment,2 - Commissioning - Older people Pool,Older People - City & South,Nursing Independent Sector
Cambridgeshire County Council,17-Dec-15,19710390-12554355,-555.85,Barchester Healthcare Homes Ltd,Care Establishment,2 - Commissioning - Older people Pool,Older People - City & South,Nursing Independent Sector
Cambridgeshire County Council,17-Dec-15,19710392-12554357,-555.85,Barchester Healthcare Homes Ltd,Care Establishment,2 - Commissioning - Older people Pool,Older People - City & South,Nursing Independent Sector
Cambridgeshire County Council,17-Dec-15,19710395-12554360,-555.85,Barchester Healthcare Homes Ltd,Care Establishment,2 - Commissioning - Older people Pool,Older People - City & South,Nursing Independent Sector
Cambridgeshire County Council,17-Dec-15,19710396-12554361,-555.85,Barchester Healthcare Homes Ltd,Care Establishment,2 - Commissioning - Older people Pool,Older People - City & South,Nursing Independent Sector
Cambridgeshire County Council,17-Dec-15,19710398-12554341,-555.85,Barchester Healthcare Homes Ltd,Care Establishment,2 - Commissioning - Older people Pool,Older People - City & South,Nursing Independent Sector
Cambridgeshire County Council,17-Dec-15,19710401-12554344,-555.85,Barchester Healthcare Homes Ltd,Care Establishment,2 - Commissioning - Older people Pool,Older People - City & South,Nursing Independent Sector
Cambridgeshire County Council,17-Dec-15,19711174-12554326,-555.85,Barchester Healthcare Homes Ltd,Care Establishment,2 - Commissioning - Older people Pool,Older People - City & South,Nursing Independent Sector
Cambridgeshire County Council,17-Dec-15,19711178-12554330,-555.85,Barchester Healthcare Homes Ltd,Care Establishment,2 - Commissioning - Older people Pool,Older People - City & South,Nursing Independent Sector
Cambridgeshire County Council,17-Dec-15,19711181-12554333,-555.85,Barchester Healthcare Homes Ltd,Care Establishment,2 - Commissioning - Older people Pool,Older People - City & South,Nursing Independent Sector
Cambridgeshire County Council,17-Dec-15,19711182-12554334,-555.85,Barchester Healthcare Homes Ltd,Care Establishment,2 - Commissioning - Older people Pool,Older People - City & South,Nursing Independent Sector
Cambridgeshire County Council,17-Dec-15,19711183-12554335,-555.85,Barchester Healthcare Homes Ltd,Care Establishment,2 - Commissioning - Older people Pool,Older People - City & South,Nursing Independent Sector
Cambridgeshire County Council,17-Dec-15,19711186-12554338,-555.85,Barchester Healthcare Homes Ltd,Care Establishment,2 - Commissioning - Older people Pool,Older People - City & South,Nursing Independent Sector
Cambridgeshire County Council,17-Dec-15,19711188-12554340,-555.85,Barchester Healthcare Homes Ltd,Care Establishment,2 - Commissioning - Older people Pool,Older People - City & South,Nursing Independent Sector
Cambridgeshire County Council,11-Dec-15,19579679-12511478,-552.75,Hill House Residential Home,Care Establishment,2 - Commissioning - Older people Pool,Hunts O P  Team,Residential Independent Sector
Cambridgeshire County Council,11-Dec-15,19579684-12511483,-552.75,Hill House Residential Home,Care Establishment,2 - Commissioning - Older people Pool,Hunts O P  Team,Residential Independent Sector
Cambridgeshire County Council,11-Dec-15,19579685-12511484,-552.75,Hill House Residential Home,Care Establishment,2 - Commissioning - Older people Pool,Hunts O P  Team,Residential Independent Sector
Cambridgeshire County Council,11-Dec-15,19579692-12511491,-552.75,Hill House Residential Home,Care Establishment,2 - Commissioning - Older people Pool,Hunts O P  Team,Residential Independent Sector
Cambridgeshire County Council,11-Dec-15,19579695-12511494,-552.75,Hill House Residential Home,Care Establishment,2 - Commissioning - Older people Pool,Hunts O P  Team,Residential Independent Sector
Cambridgeshire County Council,11-Dec-15,19584152-12511368,-552.75,Hill House Residential Home,Care Establishment,2 - Commissioning - Older people Pool,Older People Mental Health Hunts,Residential Independent Sector
Cambridgeshire County Council,11-Dec-15,19584154-12511370,-552.75,Hill House Residential Home,Care Establishment,2 - Commissioning - Older people Pool,Older People Mental Health Hunts,Residential Independent Sector
Cambridgeshire County Council,11-Dec-15,19584155-12511371,-552.75,Hill House Residential Home,Care Establishment,2 - Commissioning - Older people Pool,Older People Mental Health Hunts,Residential Independent Sector
Cambridgeshire County Council,11-Dec-15,19584156-12511372,-552.75,Hill House Residential Home,Care Establishment,2 - Commissioning - Older people Pool,Older People Mental Health Hunts,Residential Independent Sector
Cambridgeshire County Council,11-Dec-15,19584606-12511440,-552.75,Hill House Residential Home,Care Establishment,2 - Commissioning - Older people Pool,Older People Mental Health City & South,Nursing Independent Sector
Cambridgeshire County Council,11-Dec-15,19584607-12511441,-552.75,Hill House Residential Home,Care Establishment,2 - Commissioning - Older people Pool,Hunts O P  Team,Residential Independent Sector
Cambridgeshire County Council,11-Dec-15,19584614-12511448,-552.75,Hill House Residential Home,Care Establishment,2 - Commissioning - Older people Pool,Older People Mental Health City & South,Nursing Independent Sector
Cambridgeshire County Council,11-Dec-15,19584615-12511449,-552.75,Hill House Residential Home,Care Establishment,2 - Commissioning - Older people Pool,Hunts O P  Team,Residential Independent Sector
Cambridgeshire County Council,11-Dec-15,19584621-12511455,-552.75,Hill House Residential Home,Care Establishment,2 - Commissioning - Older people Pool,Hunts O P  Team,Residential Independent Sector
Cambridgeshire County Council,11-Dec-15,19584627-12511461,-552.75,Hill House Residential Home,Care Establishment,2 - Commissioning - Older people Pool,Hunts O P  Team,Residential Independent Sector
Cambridgeshire County Council,11-Dec-15,19584633-12511467,-552.75,Hill House Residential Home,Care Establishment,2 - Commissioning - Older people Pool,Older People Mental Health City & South,Nursing Independent Sector
Cambridgeshire County Council,11-Dec-15,19584634-12511468,-552.75,Hill House Residential Home,Care Establishment,2 - Commissioning - Older people Pool,Older People Mental Health City & South,Nursing Independent Sector
Cambridgeshire County Council,11-Dec-15,19584639-12511376,-552.75,Hill House Residential Home,Care Establishment,2 - Commissioning - Older people Pool,Hunts O P  Team,Residential Independent Sector
Cambridgeshire County Council,11-Dec-15,19584641-12511378,-552.75,Hill House Residential Home,Care Establishment,2 - Commissioning - Older people Pool,Hunts O P  Team,Residential Independent Sector
Cambridgeshire County Council,11-Dec-15,19584644-12511381,-552.75,Hill House Residential Home,Care Establishment,2 - Commissioning - Older people Pool,Older People Mental Health City & South,Nursing Independent Sector
Cambridgeshire County Council,11-Dec-15,19584652-12511389,-552.75,Hill House Residential Home,Care Establishment,2 - Commissioning - Older people Pool,Older People Mental Health City & South,Nursing Independent Sector
Cambridgeshire County Council,11-Dec-15,19584656-12511411,-552.75,Hill House Residential Home,Care Establishment,2 - Commissioning - Older people Pool,Hunts O P  Team,Residential Independent Sector
Cambridgeshire County Council,11-Dec-15,19584659-12511414,-552.75,Hill House Residential Home,Care Establishment,2 - Commissioning - Older people Pool,Older People Mental Health City & South,Nursing Independent Sector
Cambridgeshire County Council,11-Dec-15,19584661-12511416,-552.75,Hill House Residential Home,Care Establishment,2 - Commissioning - Older people Pool,Older People Mental Health City & South,Nursing Independent Sector
Cambridgeshire County Council,11-Dec-15,19584664-12511419,-552.75,Hill House Residential Home,Care Establishment,2 - Commissioning - Older people Pool,Hunts O P  Team,Residential Independent Sector
Cambridgeshire County Council,11-Dec-15,19584665-12511420,-552.75,Hill House Residential Home,Care Establishment,2 - Commissioning - Older people Pool,Hunts O P  Team,Residential Independent Sector
Cambridgeshire County Council,11-Dec-15,19584671-12511426,-552.75,Hill House Residential Home,Care Establishment,2 - Commissioning - Older people Pool,Hunts O P  Team,Residential Independent Sector
Cambridgeshire County Council,11-Dec-15,19584689-12511408,-552.75,Hill House Residential Home,Care Establishment,2 - Commissioning - Older people Pool,Hunts O P  Team,Residential Independent Sector
Cambridgeshire County Council,11-Dec-15,19579680-12511479,-550,Hill House Residential Home,Care Establishment,2 - Commissioning - Older people Pool,Older People Mental Health Hunts,Residential Independent Sector
Cambridgeshire County Council,11-Dec-15,19579681-12511480,-550,Hill House Residential Home,Care Establishment,2 - Commissioning - Older people Pool,Older People Mental Health City & South,Nursing Independent Sector
Cambridgeshire County Council,11-Dec-15,19579687-12511486,-550,Hill House Residential Home,Care Establishment,2 - Commissioning - Older people Pool,Older People Mental Health Hunts,Residential Independent Sector
Cambridgeshire County Council,11-Dec-15,19579688-12511487,-550,Hill House Residential Home,Care Establishment,2 - Commissioning - Older people Pool,Older People Mental Health City & South,Nursing Independent Sector
Cambridgeshire County Council,11-Dec-15,19579689-12511488,-550,Hill House Residential Home,Care Establishment,2 - Commissioning - Older people Pool,Older People Mental Health City & South,Nursing Independent Sector
Cambridgeshire County Council,11-Dec-15,19579691-12511490,-550,Hill House Residential Home,Care Establishment,2 - Commissioning - Older people Pool,Older People Mental Health City & South,Nursing Independent Sector
Cambridgeshire County Council,11-Dec-15,19579693-12511492,-550,Hill House Residential Home,Care Establishment,2 - Commissioning - Older people Pool,Older People Mental Health Hunts,Residential Independent Sector
Cambridgeshire County Council,11-Dec-15,19579694-12511493,-550,Hill House Residential Home,Care Establishment,2 - Commissioning - Older people Pool,Older People Mental Health City & South,Nursing Independent Sector
Cambridgeshire County Council,11-Dec-15,19579697-12511496,-550,Hill House Residential Home,Care Establishment,2 - Commissioning - Older people Pool,Older People Mental Health Hunts,Residential Independent Sector
Cambridgeshire County Council,11-Dec-15,19579698-12511497,-550,Hill House Residential Home,Care Establishment,2 - Commissioning - Older people Pool,Older People Mental Health Hunts,Residential Independent Sector
Cambridgeshire County Council,11-Dec-15,19579703-12511502,-550,Hill House Residential Home,Care Establishment,2 - Commissioning - Older people Pool,Older People Mental Health Hunts,Residential Independent Sector
Cambridgeshire County Council,11-Dec-15,19584593-12511427,-550,Hill House Residential Home,Care Establishment,2 - Commissioning - Older people Pool,Older People Mental Health Hunts,Residential Independent Sector
Cambridgeshire County Council,11-Dec-15,19584594-12511428,-550,Hill House Residential Home,Care Establishment,2 - Commissioning - Older people Pool,Older People Mental Health Hunts,Residential Independent Sector
Cambridgeshire County Council,11-Dec-15,19584597-12511431,-550,Hill House Residential Home,Care Establishment,2 - Commissioning - Older people Pool,Older People Mental Health Hunts,Residential Independent Sector
Cambridgeshire County Council,11-Dec-15,19584601-12511435,-550,Hill House Residential Home,Care Establishment,2 - Commissioning - Older people Pool,Older People Mental Health Hunts,Residential Independent Sector
Cambridgeshire County Council,11-Dec-15,19584604-12511438,-550,Hill House Residential Home,Care Establishment,2 - Commissioning - Older people Pool,Older People Mental Health City & South,Nursing Independent Sector
Cambridgeshire County Council,11-Dec-15,19584609-12511443,-550,Hill House Residential Home,Care Establishment,2 - Commissioning - Older people Pool,Older People Mental Health Hunts,Residential Independent Sector
Cambridgeshire County Council,11-Dec-15,19584612-12511446,-550,Hill House Residential Home,Care Establishment,2 - Commissioning - Older people Pool,Older People Mental Health Hunts,Residential Independent Sector
Cambridgeshire County Council,11-Dec-15,19584613-12511447,-550,Hill House Residential Home,Care Establishment,2 - Commissioning - Older people Pool,Older People Mental Health City & South,Nursing Independent Sector
Cambridgeshire County Council,11-Dec-15,19584617-12511451,-550,Hill House Residential Home,Care Establishment,2 - Commissioning - Older people Pool,Older People Mental Health City & South,Nursing Independent Sector
Cambridgeshire County Council,11-Dec-15,19584623-12511457,-550,Hill House Residential Home,Care Establishment,2 - Commissioning - Older people Pool,Older People Mental Health City & South,Nursing Independent Sector
Cambridgeshire County Council,11-Dec-15,19584624-12511458,-550,Hill House Residential Home,Care Establishment,2 - Commissioning - Older people Pool,Older People Mental Health City & South,Nursing Independent Sector
Cambridgeshire County Council,11-Dec-15,19584631-12511465,-550,Hill House Residential Home,Care Establishment,2 - Commissioning - Older people Pool,Older People Mental Health Hunts,Residential Independent Sector
Cambridgeshire County Council,11-Dec-15,19584638-12511375,-550,Hill House Residential Home,Care Establishment,2 - Commissioning - Older people Pool,Older People Mental Health Hunts,Residential Independent Sector
Cambridgeshire County Council,11-Dec-15,19584648-12511385,-550,Hill House Residential Home,Care Establishment,2 - Commissioning - Older people Pool,Older People Mental Health City & South,Nursing Independent Sector
Cambridgeshire County Council,11-Dec-15,19584649-12511386,-550,Hill House Residential Home,Care Establishment,2 - Commissioning - Older people Pool,Older People Mental Health City & South,Nursing Independent Sector
Cambridgeshire County Council,11-Dec-15,19584658-12511413,-550,Hill House Residential Home,Care Establishment,2 - Commissioning - Older people Pool,Older People Mental Health Hunts,Residential Independent Sector
Cambridgeshire County Council,11-Dec-15,19584666-12511421,-550,Hill House Residential Home,Care Establishment,2 - Commissioning - Older people Pool,Older People Mental Health Hunts,Residential Independent Sector
Cambridgeshire County Council,11-Dec-15,19584667-12511422,-550,Hill House Residential Home,Care Establishment,2 - Commissioning - Older people Pool,Older People Mental Health Hunts,Residential Independent Sector
Cambridgeshire County Council,11-Dec-15,19584674-12511393,-550,Hill House Residential Home,Care Establishment,2 - Commissioning - Older people Pool,Older People Mental Health Hunts,Residential Independent Sector
Cambridgeshire County Council,11-Dec-15,19584676-12511395,-550,Hill House Residential Home,Care Establishment,2 - Commissioning - Older people Pool,Older People Mental Health City & South,Nursing Independent Sector
Cambridgeshire County Council,30-Dec-15,19751403-12596550,-550,The Cambridge Housing Society Ltd,Care Establishment,2 - Commissioning - Older people Pool,Older People Mental Health City & South,Residential Independent Sector
Cambridgeshire County Council,30-Dec-15,19751406-12596553,-550,The Cambridge Housing Society Ltd,Care Establishment,2 - Commissioning - Older people Pool,Older People Mental Health City & South,Residential Independent Sector
Cambridgeshire County Council,30-Dec-15,19751408-12596554,-550,The Cambridge Housing Society Ltd,Care Establishment,2 - Commissioning - Older people Pool,Older People Mental Health City & South,Residential Independent Sector
Cambridgeshire County Council,30-Dec-15,19751409-12596555,-550,The Cambridge Housing Society Ltd,Care Establishment,2 - Commissioning - Older people Pool,Older People Mental Health City & South,Residential Independent Sector
Cambridgeshire County Council,30-Dec-15,19751413-12596537,-550,The Cambridge Housing Society Ltd,Care Establishment,2 - Commissioning - Older people Pool,Older People Mental Health City & South,Residential Independent Sector
Cambridgeshire County Council,30-Dec-15,19751417-12596540,-550,The Cambridge Housing Society Ltd,Care Establishment,2 - Commissioning - Older people Pool,Older People Mental Health City & South,Residential Independent Sector
Cambridgeshire County Council,30-Dec-15,19751418-12596541,-550,The Cambridge Housing Society Ltd,Care Establishment,2 - Commissioning - Older people Pool,Older People Mental Health City & South,Residential Independent Sector
Cambridgeshire County Council,30-Dec-15,19751422-12596543,-550,The Cambridge Housing Society Ltd,Care Establishment,2 - Commissioning - Older people Pool,Older People Mental Health City & South,Residential Independent Sector
Cambridgeshire County Council,30-Dec-15,19751423-12596544,-550,The Cambridge Housing Society Ltd,Care Establishment,2 - Commissioning - Older people Pool,Older People Mental Health City & South,Residential Independent Sector
Cambridgeshire County Council,11-Dec-15,19651167-12503899,-544,Redacted Personal Data,Individual,2 - Commissioning - Older people Pool,Older People - City & South,Direct Payments - Social Services
Cambridgeshire County Council,11-Dec-15,19651170-12503901,-544,Redacted Personal Data,Individual,2 - Commissioning - Older people Pool,Older People - City & South,Direct Payments - Social Services
Cambridgeshire County Council,11-Dec-15,19651172-12503902,-544,Redacted Personal Data,Individual,2 - Commissioning - Older people Pool,Older People - City & South,Direct Payments - Social Services
Cambridgeshire County Council,11-Dec-15,19651173-12503903,-544,Redacted Personal Data,Individual,2 - Commissioning - Older people Pool,Older People - City & South,Direct Payments - Social Services
Cambridgeshire County Council,11-Dec-15,19651176-12503905,-544,Redacted Personal Data,Individual,2 - Commissioning - Older people Pool,Older People - City & South,Direct Payments - Social Services
Cambridgeshire County Council,11-Dec-15,19658212-12503878,-544,Redacted Personal Data,Individual,2 - Commissioning - Older people Pool,Older People - City & South,Direct Payments - Social Services
Cambridgeshire County Council,11-Dec-15,19658213-12503879,-544,Redacted Personal Data,Individual,2 - Commissioning - Older people Pool,Older People - City & South,Direct Payments - Social Services
Cambridgeshire County Council,11-Dec-15,19658217-12503881,-544,Redacted Personal Data,Individual,2 - Commissioning - Older people Pool,Older People - City & South,Direct Payments - Social Services
Cambridgeshire County Council,11-Dec-15,19658220-12503882,-544,Redacted Personal Data,Individual,2 - Commissioning - Older people Pool,Older People - City & South,Direct Payments - Social Services
Cambridgeshire County Council,11-Dec-15,19658221-12503883,-544,Redacted Personal Data,Individual,2 - Commissioning - Older people Pool,Older People - City & South,Direct Payments - Social Services
Cambridgeshire County Council,11-Dec-15,19658222-12503884,-544,Redacted Personal Data,Individual,2 - Commissioning - Older people Pool,Older People - City & South,Direct Payments - Social Services
Cambridgeshire County Council,11-Dec-15,19658226-12503886,-544,Redacted Personal Data,Individual,2 - Commissioning - Older people Pool,Older People - City & South,Direct Payments - Social Services
Cambridgeshire County Council,11-Dec-15,19658229-12503889,-544,Redacted Personal Data,Individual,2 - Commissioning - Older people Pool,Older People - City & South,Direct Payments - Social Services
Cambridgeshire County Council,11-Dec-15,19658233-12503891,-544,Redacted Personal Data,Individual,2 - Commissioning - Older people Pool,Older People - City & South,Direct Payments - Social Services
Cambridgeshire County Council,11-Dec-15,19658234-12503892,-544,Redacted Personal Data,Individual,2 - Commissioning - Older people Pool,Older People - City & South,Direct Payments - Social Services
Cambridgeshire County Council,11-Dec-15,19658238-12503895,-544,Redacted Personal Data,Individual,2 - Commissioning - Older people Pool,Older People - City & South,Direct Payments - Social Services
Cambridgeshire County Council,11-Dec-15,19658239-12503896,-544,Redacted Personal Data,Individual,2 - Commissioning - Older people Pool,Older People - City & South,Direct Payments - Social Services
Cambridgeshire County Council,11-Dec-15,19554984-12523062,-543,Hunters Healthcare (Hunters Down),Care Establishment,2 - Commissioning - Older people Pool,Hunts O P  Team,Residential Independent Sector
Cambridgeshire County Council,11-Dec-15,19554985-12523063,-543,Hunters Healthcare (Hunters Down),Care Establishment,2 - Commissioning - Older people Pool,Hunts O P  Team,Residential Independent Sector
Cambridgeshire County Council,11-Dec-15,19554986-12523064,-543,Hunters Healthcare (Hunters Down),Care Establishment,2 - Commissioning - Older people Pool,Hunts O P  Team,Residential Independent Sector
Cambridgeshire County Council,11-Dec-15,19554987-12523065,-543,Hunters Healthcare (Hunters Down),Care Establishment,2 - Commissioning - Older people Pool,Hunts O P  Team,Residential Independent Sector
Cambridgeshire County Council,11-Dec-15,19554988-12523066,-543,Hunters Healthcare (Hunters Down),Care Establishment,2 - Commissioning - Older people Pool,Hunts O P  Team,Residential Independent Sector
Cambridgeshire County Council,11-Dec-15,19554989-12523067,-543,Hunters Healthcare (Hunters Down),Care Establishment,2 - Commissioning - Older people Pool,Hunts O P  Team,Residential Independent Sector
Cambridgeshire County Council,11-Dec-15,19554990-12523068,-543,Hunters Healthcare (Hunters Down),Care Establishment,2 - Commissioning - Older people Pool,Hunts O P  Team,Residential Independent Sector
Cambridgeshire County Council,11-Dec-15,19554991-12523069,-543,Hunters Healthcare (Hunters Down),Care Establishment,2 - Commissioning - Older people Pool,Hunts O P  Team,Residential Independent Sector
Cambridgeshire County Council,11-Dec-15,19554992-12523070,-543,Hunters Healthcare (Hunters Down),Care Establishment,2 - Commissioning - Older people Pool,Hunts O P  Team,Residential Independent Sector
Cambridgeshire County Council,11-Dec-15,19554993-12523071,-543,Hunters Healthcare (Hunters Down),Care Establishment,2 - Commissioning - Older people Pool,Hunts O P  Team,Residential Independent Sector
Cambridgeshire County Council,11-Dec-15,19554994-12523072,-543,Hunters Healthcare (Hunters Down),Care Establishment,2 - Commissioning - Older people Pool,Hunts O P  Team,Residential Independent Sector
Cambridgeshire County Council,11-Dec-15,19554995-12523073,-543,Hunters Healthcare (Hunters Down),Care Establishment,2 - Commissioning - Older people Pool,Hunts O P  Team,Residential Independent Sector
Cambridgeshire County Council,11-Dec-15,19554996-12523022,-543,Hunters Healthcare (Hunters Down),Care Establishment,2 - Commissioning - Older people Pool,Hunts O P  Team,Residential Independent Sector
Cambridgeshire County Council,11-Dec-15,19554997-12523023,-543,Hunters Healthcare (Hunters Down),Care Establishment,2 - Commissioning - Older people Pool,Hunts O P  Team,Residential Independent Sector
Cambridgeshire County Council,11-Dec-15,19554998-12523024,-543,Hunters Healthcare (Hunters Down),Care Establishment,2 - Commissioning - Older people Pool,Hunts O P  Team,Residential Independent Sector
Cambridgeshire County Council,11-Dec-15,19554999-12523025,-543,Hunters Healthcare (Hunters Down),Care Establishment,2 - Commissioning - Older people Pool,Hunts O P  Team,Residential Independent Sector
Cambridgeshire County Council,11-Dec-15,19558197-12522987,-543,Hunters Healthcare (Hunters Down),Care Establishment,2 - Commissioning - Older people Pool,Hunts O P  Team,Residential Independent Sector
Cambridgeshire County Council,11-Dec-15,19558199-12522989,-543,Hunters Healthcare (Hunters Down),Care Establishment,2 - Commissioning - Older people Pool,Hunts O P  Team,Residential Independent Sector
Cambridgeshire County Council,11-Dec-15,19558200-12522990,-543,Hunters Healthcare (Hunters Down),Care Establishment,2 - Commissioning - Older people Pool,Hunts O P  Team,Residential Independent Sector
Cambridgeshire County Council,11-Dec-15,19555005-12523027,-542.97,Hunters Healthcare (Hunters Down),Care Establishment,2 - Commissioning - Older people Pool,Hunts O P  Team,Residential Independent Sector
Cambridgeshire County Council,11-Dec-15,19555006-12523028,-542.97,Hunters Healthcare (Hunters Down),Care Establishment,2 - Commissioning - Older people Pool,Hunts O P  Team,Residential Independent Sector
Cambridgeshire County Council,11-Dec-15,19555007-12523029,-542.97,Hunters Healthcare (Hunters Down),Care Establishment,2 - Commissioning - Older people Pool,Hunts O P  Team,Residential Independent Sector
Cambridgeshire County Council,11-Dec-15,19555008-12523030,-542.97,Hunters Healthcare (Hunters Down),Care Establishment,2 - Commissioning - Older people Pool,Hunts O P  Team,Residential Independent Sector
Cambridgeshire County Council,11-Dec-15,19555011-12523033,-542.97,Hunters Healthcare (Hunters Down),Care Establishment,2 - Commissioning - Older people Pool,Hunts O P  Team,Residential Independent Sector
Cambridgeshire County Council,11-Dec-15,19555013-12523034,-542.97,Hunters Healthcare (Hunters Down),Care Establishment,2 - Commissioning - Older people Pool,Hunts O P  Team,Residential Independent Sector
Cambridgeshire County Council,11-Dec-15,19555015-12523036,-542.97,Hunters Healthcare (Hunters Down),Care Establishment,2 - Commissioning - Older people Pool,Hunts O P  Team,Residential Independent Sector
Cambridgeshire County Council,11-Dec-15,19555019-12523039,-542.97,Hunters Healthcare (Hunters Down),Care Establishment,2 - Commissioning - Older people Pool,Hunts O P  Team,Residential Independent Sector
Cambridgeshire County Council,11-Dec-15,19555020-12523040,-542.97,Hunters Healthcare (Hunters Down),Care Establishment,2 - Commissioning - Older people Pool,Hunts O P  Team,Residential Independent Sector
Cambridgeshire County Council,11-Dec-15,19555024-12523044,-542.97,Hunters Healthcare (Hunters Down),Care Establishment,2 - Commissioning - Older people Pool,Hunts O P  Team,Residential Independent Sector
Cambridgeshire County Council,11-Dec-15,19555028-12523048,-542.97,Hunters Healthcare (Hunters Down),Care Establishment,2 - Commissioning - Older people Pool,Hunts O P  Team,Residential Independent Sector
Cambridgeshire County Council,11-Dec-15,19555029-12523049,-542.97,Hunters Healthcare (Hunters Down),Care Establishment,2 - Commissioning - Older people Pool,Hunts O P  Team,Residential Independent Sector
Cambridgeshire County Council,11-Dec-15,19555033-12523053,-542.97,Hunters Healthcare (Hunters Down),Care Establishment,2 - Commissioning - Older people Pool,Hunts O P  Team,Residential Independent Sector
Cambridgeshire County Council,11-Dec-15,19555036-12523056,-542.97,Hunters Healthcare (Hunters Down),Care Establishment,2 - Commissioning - Older people Pool,Hunts O P  Team,Residential Independent Sector
Cambridgeshire County Council,11-Dec-15,19557306-12522985,-542.97,Hunters Healthcare (Hunters Down),Care Establishment,2 - Commissioning - Older people Pool,Hunts O P  Team,Residential Independent Sector
Cambridgeshire County Council,11-Dec-15,19557307-12522986,-542.97,Hunters Healthcare (Hunters Down),Care Establishment,2 - Commissioning - Older people Pool,Hunts O P  Team,Residential Independent Sector
Cambridgeshire County Council,11-Dec-15,19558203-12522993,-542.97,Hunters Healthcare (Hunters Down),Care Establishment,2 - Commissioning - Older people Pool,Hunts O P  Team,Residential Independent Sector
Cambridgeshire County Council,11-Dec-15,19558206-12522996,-542.97,Hunters Healthcare (Hunters Down),Care Establishment,2 - Commissioning - Older people Pool,Hunts O P  Team,Residential Independent Sector
Cambridgeshire County Council,11-Dec-15,19558208-12522998,-542.97,Hunters Healthcare (Hunters Down),Care Establishment,2 - Commissioning - Older people Pool,Hunts O P  Team,Residential Independent Sector
Cambridgeshire County Council,11-Dec-15,19558209-12522999,-542.97,Hunters Healthcare (Hunters Down),Care Establishment,2 - Commissioning - Older people Pool,Hunts O P  Team,Residential Independent Sector
Cambridgeshire County Council,11-Dec-15,19558210-12523000,-542.97,Hunters Healthcare (Hunters Down),Care Establishment,2 - Commissioning - Older people Pool,Hunts O P  Team,Residential Independent Sector
Cambridgeshire County Council,11-Dec-15,19558211-12523001,-542.97,Hunters Healthcare (Hunters Down),Care Establishment,2 - Commissioning - Older people Pool,Hunts O P  Team,Residential Independent Sector
Cambridgeshire County Council,11-Dec-15,19558213-12523003,-542.97,Hunters Healthcare (Hunters Down),Care Establishment,2 - Commissioning - Older people Pool,Hunts O P  Team,Residential Independent Sector
Cambridgeshire County Council,11-Dec-15,19558214-12523004,-542.97,Hunters Healthcare (Hunters Down),Care Establishment,2 - Commissioning - Older people Pool,Hunts O P  Team,Residential Independent Sector
Cambridgeshire County Council,11-Dec-15,19558217-12523007,-542.97,Hunters Healthcare (Hunters Down),Care Establishment,2 - Commissioning - Older people Pool,Hunts O P  Team,Residential Independent Sector
Cambridgeshire County Council,11-Dec-15,19558218-12523008,-542.97,Hunters Healthcare (Hunters Down),Care Establishment,2 - Commissioning - Older people Pool,Hunts O P  Team,Residential Independent Sector
Cambridgeshire County Council,11-Dec-15,19558223-12523012,-542.97,Hunters Healthcare (Hunters Down),Care Establishment,2 - Commissioning - Older people Pool,Hunts O P  Team,Residential Independent Sector
Cambridgeshire County Council,11-Dec-15,19558224-12523013,-542.97,Hunters Healthcare (Hunters Down),Care Establishment,2 - Commissioning - Older people Pool,Hunts O P  Team,Residential Independent Sector
Cambridgeshire County Council,11-Dec-15,19558227-12523016,-542.97,Hunters Healthcare (Hunters Down),Care Establishment,2 - Commissioning - Older people Pool,Hunts O P  Team,Residential Independent Sector
Cambridgeshire County Council,11-Dec-15,19558228-12523017,-542.97,Hunters Healthcare (Hunters Down),Care Establishment,2 - Commissioning - Older people Pool,Hunts O P  Team,Residential Independent Sector
Cambridgeshire County Council,11-Dec-15,19558231-12523019,-542.97,Hunters Healthcare (Hunters Down),Care Establishment,2 - Commissioning - Older people Pool,Hunts O P  Team,Residential Independent Sector
Cambridgeshire County Council,11-Dec-15,19558232-12523020,-542.97,Hunters Healthcare (Hunters Down),Care Establishment,2 - Commissioning - Older people Pool,Hunts O P  Team,Residential Independent Sector
Cambridgeshire County Council,11-Dec-15,19558233-12523021,-542.97,Hunters Healthcare (Hunters Down),Care Establishment,2 - Commissioning - Older people Pool,Hunts O P  Team,Residential Independent Sector
Cambridgeshire County Council,11-Dec-15,19620367-12517372,-538.26,Orchard House Nursing Home,Care Establishment,2 - Commissioning - Older people Pool,Older People - Fenland,Nursing Independent Sector
Cambridgeshire County Council,11-Dec-15,19620368-12517373,-538.26,Orchard House Nursing Home,Care Establishment,2 - Commissioning - Older people Pool,Older People - Fenland,Nursing Independent Sector
Cambridgeshire County Council,11-Dec-15,19620369-12517374,-538.26,Orchard House Nursing Home,Care Establishment,2 - Commissioning - Older people Pool,Older People - Fenland,Nursing Independent Sector
Cambridgeshire County Council,11-Dec-15,19620371-12517376,-538.26,Orchard House Nursing Home,Care Establishment,2 - Commissioning - Older people Pool,Older People - Fenland,Nursing Independent Sector
Cambridgeshire County Council,11-Dec-15,19620372-12517377,-538.26,Orchard House Nursing Home,Care Establishment,2 - Commissioning - Older people Pool,Older People - Fenland,Nursing Independent Sector
Cambridgeshire County Council,11-Dec-15,19620374-12517379,-538.26,Orchard House Nursing Home,Care Establishment,2 - Commissioning - Older people Pool,Older People - Fenland,Nursing Independent Sector
Cambridgeshire County Council,11-Dec-15,19620376-12517381,-538.26,Orchard House Nursing Home,Care Establishment,2 - Commissioning - Older people Pool,Older People - Fenland,Nursing Independent Sector
Cambridgeshire County Council,11-Dec-15,19620377-12517382,-538.26,Orchard House Nursing Home,Care Establishment,2 - Commissioning - Older people Pool,Older People - Fenland,Nursing Independent Sector
Cambridgeshire County Council,11-Dec-15,19620378-12517383,-538.26,Orchard House Nursing Home,Care Establishment,2 - Commissioning - Older people Pool,Older People - Fenland,Nursing Independent Sector
Cambridgeshire County Council,11-Dec-15,19620382-12517387,-538.26,Orchard House Nursing Home,Care Establishment,2 - Commissioning - Older people Pool,Older People - Fenland,Nursing Independent Sector
Cambridgeshire County Council,11-Dec-15,19620383-12517388,-538.26,Orchard House Nursing Home,Care Establishment,2 - Commissioning - Older people Pool,Older People - Fenland,Nursing Independent Sector
Cambridgeshire County Council,11-Dec-15,19620384-12517389,-538.26,Orchard House Nursing Home,Care Establishment,2 - Commissioning - Older people Pool,Older People - Fenland,Nursing Independent Sector
Cambridgeshire County Council,11-Dec-15,19620386-12517391,-538.26,Orchard House Nursing Home,Care Establishment,2 - Commissioning - Older people Pool,Older People - Fenland,Nursing Independent Sector
Cambridgeshire County Council,11-Dec-15,19620388-12517393,-538.26,Orchard House Nursing Home,Care Establishment,2 - Commissioning - Older people Pool,Older People - Fenland,Nursing Independent Sector
Cambridgeshire County Council,11-Dec-15,19620390-12517395,-538.26,Orchard House Nursing Home,Care Establishment,2 - Commissioning - Older people Pool,Older People - Fenland,Nursing Independent Sector
Cambridgeshire County Council,11-Dec-15,19620393-12517398,-538.26,Orchard House Nursing Home,Care Establishment,2 - Commissioning - Older people Pool,Older People - Fenland,Nursing Independent Sector
Cambridgeshire County Council,11-Dec-15,19620399-12517404,-538.26,Orchard House Nursing Home,Care Establishment,2 - Commissioning - Older people Pool,Older People - Fenland,Nursing Independent Sector
Cambridgeshire County Council,11-Dec-15,19620400-12517405,-538.26,Orchard House Nursing Home,Care Establishment,2 - Commissioning - Older people Pool,Older People - Fenland,Nursing Independent Sector
Cambridgeshire County Council,11-Dec-15,19622403-12517298,-538.26,Orchard House Nursing Home,Care Establishment,2 - Commissioning - Older people Pool,Older People - Fenland,Nursing Independent Sector
Cambridgeshire County Council,11-Dec-15,19622404-12517299,-538.26,Orchard House Nursing Home,Care Establishment,2 - Commissioning - Older people Pool,Older People - Fenland,Nursing Independent Sector
Cambridgeshire County Council,11-Dec-15,19622405-12517300,-538.26,Orchard House Nursing Home,Care Establishment,2 - Commissioning - Older people Pool,Older People - Fenland,Nursing Independent Sector
Cambridgeshire County Council,11-Dec-15,19622410-12517305,-538.26,Orchard House Nursing Home,Care Establishment,2 - Commissioning - Older people Pool,Older People - Fenland,Nursing Independent Sector
Cambridgeshire County Council,11-Dec-15,19622411-12517306,-538.26,Orchard House Nursing Home,Care Establishment,2 - Commissioning - Older people Pool,Older People - Fenland,Nursing Independent Sector
Cambridgeshire County Council,11-Dec-15,19622413-12517308,-538.26,Orchard House Nursing Home,Care Establishment,2 - Commissioning - Older people Pool,Older People - Fenland,Nursing Independent Sector
Cambridgeshire County Council,11-Dec-15,19622416-12517311,-538.26,Orchard House Nursing Home,Care Establishment,2 - Commissioning - Older people Pool,Older People - Fenland,Nursing Independent Sector
Cambridgeshire County Council,11-Dec-15,19622420-12517364,-538.26,Orchard House Nursing Home,Care Establishment,2 - Commissioning - Older people Pool,Older People - Fenland,Nursing Independent Sector
Cambridgeshire County Council,11-Dec-15,19622421-12517365,-538.26,Orchard House Nursing Home,Care Establishment,2 - Commissioning - Older people Pool,Older People - Fenland,Nursing Independent Sector
Cambridgeshire County Council,11-Dec-15,19622425-12517369,-538.26,Orchard House Nursing Home,Care Establishment,2 - Commissioning - Older people Pool,Older People - Fenland,Nursing Independent Sector
Cambridgeshire County Council,11-Dec-15,19625773-12517851,-538.26,Orchard House Nursing Home,Care Establishment,2 - Commissioning - Older people Pool,Hunts O P  Team,Nursing Independent Sector
Cambridgeshire County Council,11-Dec-15,19625774-12517852,-538.26,Orchard House Nursing Home,Care Establishment,2 - Commissioning - Older people Pool,Hunts O P  Team,Nursing Independent Sector
Cambridgeshire County Council,11-Dec-15,19625778-12517856,-538.26,Orchard House Nursing Home,Care Establishment,2 - Commissioning - Older people Pool,Hunts O P  Team,Nursing Independent Sector
Cambridgeshire County Council,11-Dec-15,19625782-12517859,-538.26,Orchard House Nursing Home,Care Establishment,2 - Commissioning - Older people Pool,Hunts O P  Team,Nursing Independent Sector
Cambridgeshire County Council,11-Dec-15,19625783-12517860,-538.26,Orchard House Nursing Home,Care Establishment,2 - Commissioning - Older people Pool,Hunts O P  Team,Nursing Independent Sector
Cambridgeshire County Council,11-Dec-15,19629180-12517535,-538.26,Orchard House Nursing Home,Care Establishment,2 - Commissioning - Older people Pool,Hunts O P  Team,Nursing Independent Sector
Cambridgeshire County Council,11-Dec-15,19629187-12517539,-538.26,Orchard House Nursing Home,Care Establishment,2 - Commissioning - Older people Pool,Hunts O P  Team,Nursing Independent Sector
Cambridgeshire County Council,11-Dec-15,19629189-12517541,-538.26,Orchard House Nursing Home,Care Establishment,2 - Commissioning - Older people Pool,Hunts O P  Team,Nursing Independent Sector
Cambridgeshire County Council,11-Dec-15,19629191-12517573,-538.26,Orchard House Nursing Home,Care Establishment,2 - Commissioning - Older people Pool,Hunts O P  Team,Nursing Independent Sector
Cambridgeshire County Council,11-Dec-15,19629193-12517575,-538.26,Orchard House Nursing Home,Care Establishment,2 - Commissioning - Older people Pool,Hunts O P  Team,Nursing Independent Sector
Cambridgeshire County Council,11-Dec-15,19629194-12517576,-538.26,Orchard House Nursing Home,Care Establishment,2 - Commissioning - Older people Pool,Hunts O P  Team,Nursing Independent Sector
Cambridgeshire County Council,11-Dec-15,19629197-12517579,-538.26,Orchard House Nursing Home,Care Establishment,2 - Commissioning - Older people Pool,Hunts O P  Team,Nursing Independent Sector
Cambridgeshire County Council,11-Dec-15,19629198-12517580,-538.26,Orchard House Nursing Home,Care Establishment,2 - Commissioning - Older people Pool,Hunts O P  Team,Nursing Independent Sector
Cambridgeshire County Council,11-Dec-15,19629205-12517586,-538.26,Orchard House Nursing Home,Care Establishment,2 - Commissioning - Older people Pool,Hunts O P  Team,Nursing Independent Sector
Cambridgeshire County Council,11-Dec-15,19629207-12517587,-538.26,Orchard House Nursing Home,Care Establishment,2 - Commissioning - Older people Pool,Hunts O P  Team,Nursing Independent Sector
Cambridgeshire County Council,11-Dec-15,19629208-12517588,-538.26,Orchard House Nursing Home,Care Establishment,2 - Commissioning - Older people Pool,Hunts O P  Team,Nursing Independent Sector
Cambridgeshire County Council,11-Dec-15,19629211-12517591,-538.26,Orchard House Nursing Home,Care Establishment,2 - Commissioning - Older people Pool,Hunts O P  Team,Nursing Independent Sector
Cambridgeshire County Council,11-Dec-15,19629212-12517592,-538.26,Orchard House Nursing Home,Care Establishment,2 - Commissioning - Older people Pool,Hunts O P  Team,Nursing Independent Sector
Cambridgeshire County Council,11-Dec-15,19629213-12517593,-538.26,Orchard House Nursing Home,Care Establishment,2 - Commissioning - Older people Pool,Hunts O P  Team,Nursing Independent Sector
Cambridgeshire County Council,11-Dec-15,19629214-12517594,-538.26,Orchard House Nursing Home,Care Establishment,2 - Commissioning - Older people Pool,Hunts O P  Team,Nursing Independent Sector
Cambridgeshire County Council,11-Dec-15,19629216-12517596,-538.26,Orchard House Nursing Home,Care Establishment,2 - Commissioning - Older people Pool,Hunts O P  Team,Nursing Independent Sector
Cambridgeshire County Council,11-Dec-15,19629217-12517597,-538.26,Orchard House Nursing Home,Care Establishment,2 - Commissioning - Older people Pool,Hunts O P  Team,Nursing Independent Sector
Cambridgeshire County Council,11-Dec-15,19629218-12517598,-538.26,Orchard House Nursing Home,Care Establishment,2 - Commissioning - Older people Pool,Hunts O P  Team,Nursing Independent Sector
Cambridgeshire County Council,11-Dec-15,19629219-12517599,-538.26,Orchard House Nursing Home,Care Establishment,2 - Commissioning - Older people Pool,Hunts O P  Team,Nursing Independent Sector
Cambridgeshire County Council,11-Dec-15,19629225-12517605,-538.26,Orchard House Nursing Home,Care Establishment,2 - Commissioning - Older people Pool,Hunts O P  Team,Nursing Independent Sector
Cambridgeshire County Council,11-Dec-15,19629227-12517607,-538.26,Orchard House Nursing Home,Care Establishment,2 - Commissioning - Older people Pool,Hunts O P  Team,Nursing Independent Sector
Cambridgeshire County Council,11-Dec-15,19629232-12517610,-538.26,Orchard House Nursing Home,Care Establishment,2 - Commissioning - Older people Pool,Hunts O P  Team,Nursing Independent Sector
Cambridgeshire County Council,11-Dec-15,19629236-12517612,-538.26,Orchard House Nursing Home,Care Establishment,2 - Commissioning - Older people Pool,Hunts O P  Team,Nursing Independent Sector
Cambridgeshire County Council,11-Dec-15,19629237-12517613,-538.26,Orchard House Nursing Home,Care Establishment,2 - Commissioning - Older people Pool,Hunts O P  Team,Nursing Independent Sector
Cambridgeshire County Council,11-Dec-15,19629238-12517614,-538.26,Orchard House Nursing Home,Care Establishment,2 - Commissioning - Older people Pool,Hunts O P  Team,Nursing Independent Sector
Cambridgeshire County Council,11-Dec-15,19629241-12517617,-538.26,Orchard House Nursing Home,Care Establishment,2 - Commissioning - Older people Pool,Hunts O P  Team,Nursing Independent Sector
Cambridgeshire County Council,11-Dec-15,19555004-12523026,-536,Hunters Healthcare (Hunters Down),Care Establishment,2 - Commissioning - Older people Pool,Hunts O P  Team,Residential Independent Sector
Cambridgeshire County Council,11-Dec-15,19555009-12523031,-536,Hunters Healthcare (Hunters Down),Care Establishment,2 - Commissioning - Older people Pool,Hunts O P  Team,Residential Independent Sector
Cambridgeshire County Council,11-Dec-15,19555010-12523032,-536,Hunters Healthcare (Hunters Down),Care Establishment,2 - Commissioning - Older people Pool,Hunts O P  Team,Residential Independent Sector
Cambridgeshire County Council,11-Dec-15,19555014-12523035,-536,Hunters Healthcare (Hunters Down),Care Establishment,2 - Commissioning - Older people Pool,Hunts O P  Team,Residential Independent Sector
Cambridgeshire County Council,11-Dec-15,19555017-12523037,-536,Hunters Healthcare (Hunters Down),Care Establishment,2 - Commissioning - Older people Pool,Hunts O P  Team,Residential Independent Sector
Cambridgeshire County Council,11-Dec-15,19555018-12523038,-536,Hunters Healthcare (Hunters Down),Care Establishment,2 - Commissioning - Older people Pool,Hunts O P  Team,Residential Independent Sector
Cambridgeshire County Council,11-Dec-15,19555021-12523041,-536,Hunters Healthcare (Hunters Down),Care Establishment,2 - Commissioning - Older people Pool,Hunts O P  Team,Residential Independent Sector
Cambridgeshire County Council,11-Dec-15,19555022-12523042,-536,Hunters Healthcare (Hunters Down),Care Establishment,2 - Commissioning - Older people Pool,Hunts O P  Team,Residential Independent Sector
Cambridgeshire County Council,11-Dec-15,19555023-12523043,-536,Hunters Healthcare (Hunters Down),Care Establishment,2 - Commissioning - Older people Pool,Hunts O P  Team,Residential Independent Sector
Cambridgeshire County Council,11-Dec-15,19555025-12523045,-536,Hunters Healthcare (Hunters Down),Care Establishment,2 - Commissioning - Older people Pool,Hunts O P  Team,Residential Independent Sector
Cambridgeshire County Council,11-Dec-15,19555026-12523046,-536,Hunters Healthcare (Hunters Down),Care Establishment,2 - Commissioning - Older people Pool,Hunts O P  Team,Residential Independent Sector
Cambridgeshire County Council,11-Dec-15,19555027-12523047,-536,Hunters Healthcare (Hunters Down),Care Establishment,2 - Commissioning - Older people Pool,Hunts O P  Team,Residential Independent Sector
Cambridgeshire County Council,11-Dec-15,19555030-12523050,-536,Hunters Healthcare (Hunters Down),Care Establishment,2 - Commissioning - Older people Pool,Hunts O P  Team,Residential Independent Sector
Cambridgeshire County Council,11-Dec-15,19555031-12523051,-536,Hunters Healthcare (Hunters Down),Care Establishment,2 - Commissioning - Older people Pool,Hunts O P  Team,Residential Independent Sector
Cambridgeshire County Council,11-Dec-15,19555034-12523054,-536,Hunters Healthcare (Hunters Down),Care Establishment,2 - Commissioning - Older people Pool,Hunts O P  Team,Residential Independent Sector
Cambridgeshire County Council,11-Dec-15,19555035-12523055,-536,Hunters Healthcare (Hunters Down),Care Establishment,2 - Commissioning - Older people Pool,Hunts O P  Team,Residential Independent Sector
Cambridgeshire County Council,11-Dec-15,19555037-12523057,-536,Hunters Healthcare (Hunters Down),Care Establishment,2 - Commissioning - Older people Pool,Hunts O P  Team,Residential Independent Sector
Cambridgeshire County Council,11-Dec-15,19555038-12523058,-536,Hunters Healthcare (Hunters Down),Care Establishment,2 - Commissioning - Older people Pool,Hunts O P  Team,Residential Independent Sector
Cambridgeshire County Council,11-Dec-15,19555039-12523059,-536,Hunters Healthcare (Hunters Down),Care Establishment,2 - Commissioning - Older people Pool,Hunts O P  Team,Residential Independent Sector
Cambridgeshire County Council,11-Dec-15,19558201-12522991,-536,Hunters Healthcare (Hunters Down),Care Establishment,2 - Commissioning - Older people Pool,Hunts O P  Team,Residential Independent Sector
Cambridgeshire County Council,11-Dec-15,19558204-12522994,-536,Hunters Healthcare (Hunters Down),Care Establishment,2 - Commissioning - Older people Pool,Hunts O P  Team,Residential Independent Sector
Cambridgeshire County Council,11-Dec-15,19558205-12522995,-536,Hunters Healthcare (Hunters Down),Care Establishment,2 - Commissioning - Older people Pool,Hunts O P  Team,Residential Independent Sector
Cambridgeshire County Council,11-Dec-15,19558207-12522997,-536,Hunters Healthcare (Hunters Down),Care Establishment,2 - Commissioning - Older people Pool,Hunts O P  Team,Residential Independent Sector
Cambridgeshire County Council,11-Dec-15,19558212-12523002,-536,Hunters Healthcare (Hunters Down),Care Establishment,2 - Commissioning - Older people Pool,Hunts O P  Team,Residential Independent Sector
Cambridgeshire County Council,11-Dec-15,19558215-12523005,-536,Hunters Healthcare (Hunters Down),Care Establishment,2 - Commissioning - Older people Pool,Hunts O P  Team,Residential Independent Sector
Cambridgeshire County Council,11-Dec-15,19558216-12523006,-536,Hunters Healthcare (Hunters Down),Care Establishment,2 - Commissioning - Older people Pool,Hunts O P  Team,Residential Independent Sector
Cambridgeshire County Council,11-Dec-15,19558220-12523009,-536,Hunters Healthcare (Hunters Down),Care Establishment,2 - Commissioning - Older people Pool,Hunts O P  Team,Residential Independent Sector
Cambridgeshire County Council,11-Dec-15,19558221-12523010,-536,Hunters Healthcare (Hunters Down),Care Establishment,2 - Commissioning - Older people Pool,Hunts O P  Team,Residential Independent Sector
Cambridgeshire County Council,11-Dec-15,19558222-12523011,-536,Hunters Healthcare (Hunters Down),Care Establishment,2 - Commissioning - Older people Pool,Hunts O P  Team,Residential Independent Sector
Cambridgeshire County Council,11-Dec-15,19558226-12523015,-536,Hunters Healthcare (Hunters Down),Care Establishment,2 - Commissioning - Older people Pool,Hunts O P  Team,Residential Independent Sector
Cambridgeshire County Council,11-Dec-15,19558230-12523018,-536,Hunters Healthcare (Hunters Down),Care Establishment,2 - Commissioning - Older people Pool,Hunts O P  Team,Residential Independent Sector
Cambridgeshire County Council,30-Dec-15,19751717-12594540,-535,Glennfield Care Centre (Op),Care Establishment,2 - Commissioning - Older people Pool,Hunts O P  Team,Residential Independent Sector
Cambridgeshire County Council,30-Dec-15,19751718-12594541,-535,Glennfield Care Centre (Op),Care Establishment,2 - Commissioning - Older people Pool,Hunts O P  Team,Residential Independent Sector
Cambridgeshire County Council,30-Dec-15,19751719-12594542,-535,Glennfield Care Centre (Op),Care Establishment,2 - Commissioning - Older people Pool,Hunts O P  Team,Residential Independent Sector
Cambridgeshire County Council,30-Dec-15,19751720-12594543,-535,Glennfield Care Centre (Op),Care Establishment,2 - Commissioning - Older people Pool,Hunts O P  Team,Residential Independent Sector
Cambridgeshire County Council,30-Dec-15,19751724-12594547,-535,Glennfield Care Centre (Op),Care Establishment,2 - Commissioning - Older people Pool,Hunts O P  Team,Residential Independent Sector
Cambridgeshire County Council,30-Dec-15,19751726-12594549,-535,Glennfield Care Centre (Op),Care Establishment,2 - Commissioning - Older people Pool,Hunts O P  Team,Residential Independent Sector
Cambridgeshire County Council,30-Dec-15,19751729-12594552,-535,Glennfield Care Centre (Op),Care Establishment,2 - Commissioning - Older people Pool,Hunts O P  Team,Residential Independent Sector
Cambridgeshire County Council,30-Dec-15,19751730-12594553,-535,Glennfield Care Centre (Op),Care Establishment,2 - Commissioning - Older people Pool,Hunts O P  Team,Residential Independent Sector
Cambridgeshire County Council,30-Dec-15,19751731-12594554,-535,Glennfield Care Centre (Op),Care Establishment,2 - Commissioning - Older people Pool,Hunts O P  Team,Residential Independent Sector
Cambridgeshire County Council,30-Dec-15,19751732-12594555,-535,Glennfield Care Centre (Op),Care Establishment,2 - Commissioning - Older people Pool,Hunts O P  Team,Residential Independent Sector
Cambridgeshire County Council,30-Dec-15,19751735-12594558,-535,Glennfield Care Centre (Op),Care Establishment,2 - Commissioning - Older people Pool,Hunts O P  Team,Residential Independent Sector
Cambridgeshire County Council,30-Dec-15,19753585-12594493,-535,Glennfield Care Centre (Op),Care Establishment,2 - Commissioning - Older people Pool,Hunts O P  Team,Residential Independent Sector
Cambridgeshire County Council,30-Dec-15,19753587-12594495,-535,Glennfield Care Centre (Op),Care Establishment,2 - Commissioning - Older people Pool,Hunts O P  Team,Residential Independent Sector
Cambridgeshire County Council,30-Dec-15,19753591-12594499,-535,Glennfield Care Centre (Op),Care Establishment,2 - Commissioning - Older people Pool,Hunts O P  Team,Residential Independent Sector
Cambridgeshire County Council,30-Dec-15,19753592-12594500,-535,Glennfield Care Centre (Op),Care Establishment,2 - Commissioning - Older people Pool,Hunts O P  Team,Residential Independent Sector
Cambridgeshire County Council,30-Dec-15,19753596-12594504,-535,Glennfield Care Centre (Op),Care Establishment,2 - Commissioning - Older people Pool,Hunts O P  Team,Residential Independent Sector
Cambridgeshire County Council,30-Dec-15,19753597-12594505,-535,Glennfield Care Centre (Op),Care Establishment,2 - Commissioning - Older people Pool,Hunts O P  Team,Residential Independent Sector
Cambridgeshire County Council,30-Dec-15,19753598-12594506,-535,Glennfield Care Centre (Op),Care Establishment,2 - Commissioning - Older people Pool,Hunts O P  Team,Residential Independent Sector
Cambridgeshire County Council,30-Dec-15,19753600-12594508,-535,Glennfield Care Centre (Op),Care Establishment,2 - Commissioning - Older people Pool,Hunts O P  Team,Residential Independent Sector
Cambridgeshire County Council,30-Dec-15,19753601-12594509,-535,Glennfield Care Centre (Op),Care Establishment,2 - Commissioning - Older people Pool,Hunts O P  Team,Residential Independent Sector
Cambridgeshire County Council,30-Dec-15,19753602-12594510,-535,Glennfield Care Centre (Op),Care Establishment,2 - Commissioning - Older people Pool,Hunts O P  Team,Residential Independent Sector
Cambridgeshire County Council,30-Dec-15,19753604-12594512,-535,Glennfield Care Centre (Op),Care Establishment,2 - Commissioning - Older people Pool,Hunts O P  Team,Residential Independent Sector
Cambridgeshire County Council,30-Dec-15,19753605-12594513,-535,Glennfield Care Centre (Op),Care Establishment,2 - Commissioning - Older people Pool,Hunts O P  Team,Residential Independent Sector
Cambridgeshire County Council,30-Dec-15,19753607-12594515,-535,Glennfield Care Centre (Op),Care Establishment,2 - Commissioning - Older people Pool,Hunts O P  Team,Residential Independent Sector
Cambridgeshire County Council,30-Dec-15,19753608-12594516,-535,Glennfield Care Centre (Op),Care Establishment,2 - Commissioning - Older people Pool,Hunts O P  Team,Residential Independent Sector
Cambridgeshire County Council,30-Dec-15,19753611-12594519,-535,Glennfield Care Centre (Op),Care Establishment,2 - Commissioning - Older people Pool,Hunts O P  Team,Residential Independent Sector
Cambridgeshire County Council,30-Dec-15,19753612-12594520,-535,Glennfield Care Centre (Op),Care Establishment,2 - Commissioning - Older people Pool,Hunts O P  Team,Residential Independent Sector
Cambridgeshire County Council,30-Dec-15,19753613-12594521,-535,Glennfield Care Centre (Op),Care Establishment,2 - Commissioning - Older people Pool,Hunts O P  Team,Residential Independent Sector
Cambridgeshire County Council,30-Dec-15,19753614-12594522,-535,Glennfield Care Centre (Op),Care Establishment,2 - Commissioning - Older people Pool,Hunts O P  Team,Residential Independent Sector
Cambridgeshire County Council,30-Dec-15,19753617-12594525,-535,Glennfield Care Centre (Op),Care Establishment,2 - Commissioning - Older people Pool,Hunts O P  Team,Residential Independent Sector
Cambridgeshire County Council,30-Dec-15,19753620-12594528,-535,Glennfield Care Centre (Op),Care Establishment,2 - Commissioning - Older people Pool,Hunts O P  Team,Residential Independent Sector
Cambridgeshire County Council,30-Dec-15,19753625-12594533,-535,Glennfield Care Centre (Op),Care Establishment,2 - Commissioning - Older people Pool,Hunts O P  Team,Residential Independent Sector
Cambridgeshire County Council,30-Dec-15,19753626-12594534,-535,Glennfield Care Centre (Op),Care Establishment,2 - Commissioning - Older people Pool,Hunts O P  Team,Residential Independent Sector
Cambridgeshire County Council,30-Dec-15,19753628-12594536,-535,Glennfield Care Centre (Op),Care Establishment,2 - Commissioning - Older people Pool,Hunts O P  Team,Residential Independent Sector
Cambridgeshire County Council,30-Dec-15,19753633-12594491,-535,Glennfield Care Centre (Op),Care Establishment,2 - Commissioning - Older people Pool,Hunts O P  Team,Residential Independent Sector
Cambridgeshire County Council,11-Dec-15,19619743-12517434,-528.37,Orchard House Nursing Home,Care Establishment,2 - Commissioning - Older people Pool,Older People - Fenland,Nursing Independent Sector
Cambridgeshire County Council,11-Dec-15,19619745-12517436,-528.37,Orchard House Nursing Home,Care Establishment,2 - Commissioning - Older people Pool,Older People - Fenland,Nursing Independent Sector
Cambridgeshire County Council,11-Dec-15,19619746-12517437,-528.37,Orchard House Nursing Home,Care Establishment,2 - Commissioning - Older people Pool,Older People - Fenland,Nursing Independent Sector
Cambridgeshire County Council,11-Dec-15,19619748-12517439,-528.37,Orchard House Nursing Home,Care Establishment,2 - Commissioning - Older people Pool,Older People - Fenland,Nursing Independent Sector
Cambridgeshire County Council,11-Dec-15,19619750-12517441,-528.37,Orchard House Nursing Home,Care Establishment,2 - Commissioning - Older people Pool,Older People - Fenland,Nursing Independent Sector
Cambridgeshire County Council,11-Dec-15,19619751-12517442,-528.37,Orchard House Nursing Home,Care Establishment,2 - Commissioning - Older people Pool,Older People - Fenland,Nursing Independent Sector
Cambridgeshire County Council,11-Dec-15,19619755-12517446,-528.37,Orchard House Nursing Home,Care Establishment,2 - Commissioning - Older people Pool,Older People - Fenland,Nursing Independent Sector
Cambridgeshire County Council,11-Dec-15,19619758-12517449,-528.37,Orchard House Nursing Home,Care Establishment,2 - Commissioning - Older people Pool,Older People - Fenland,Nursing Independent Sector
Cambridgeshire County Council,11-Dec-15,19619759-12517450,-528.37,Orchard House Nursing Home,Care Establishment,2 - Commissioning - Older people Pool,Older People - Fenland,Nursing Independent Sector
Cambridgeshire County Council,11-Dec-15,19619767-12517413,-528.37,Orchard House Nursing Home,Care Establishment,2 - Commissioning - Older people Pool,Older People - Fenland,Nursing Independent Sector
Cambridgeshire County Council,11-Dec-15,19619770-12517416,-528.37,Orchard House Nursing Home,Care Establishment,2 - Commissioning - Older people Pool,Older People - Fenland,Nursing Independent Sector
Cambridgeshire County Council,11-Dec-15,19619775-12517421,-528.37,Orchard House Nursing Home,Care Establishment,2 - Commissioning - Older people Pool,Older People - Fenland,Nursing Independent Sector
Cambridgeshire County Council,11-Dec-15,19619776-12517422,-528.37,Orchard House Nursing Home,Care Establishment,2 - Commissioning - Older people Pool,Older People - Fenland,Nursing Independent Sector
Cambridgeshire County Council,11-Dec-15,19619777-12517423,-528.37,Orchard House Nursing Home,Care Establishment,2 - Commissioning - Older people Pool,Older People - Fenland,Nursing Independent Sector
Cambridgeshire County Council,11-Dec-15,19619778-12517424,-528.37,Orchard House Nursing Home,Care Establishment,2 - Commissioning - Older people Pool,Older People - Fenland,Nursing Independent Sector
Cambridgeshire County Council,11-Dec-15,19624688-12517183,-528.37,Orchard House Nursing Home,Care Establishment,2 - Commissioning - Older people Pool,Older People - Fenland,Nursing Independent Sector
Cambridgeshire County Council,11-Dec-15,19624691-12517186,-528.37,Orchard House Nursing Home,Care Establishment,2 - Commissioning - Older people Pool,Older People - Fenland,Nursing Independent Sector
Cambridgeshire County Council,11-Dec-15,19624693-12517188,-528.37,Orchard House Nursing Home,Care Establishment,2 - Commissioning - Older people Pool,Older People - Fenland,Nursing Independent Sector
Cambridgeshire County Council,11-Dec-15,19624695-12517190,-528.37,Orchard House Nursing Home,Care Establishment,2 - Commissioning - Older people Pool,Older People - Fenland,Nursing Independent Sector
Cambridgeshire County Council,11-Dec-15,19624696-12517191,-528.37,Orchard House Nursing Home,Care Establishment,2 - Commissioning - Older people Pool,Older People - Fenland,Nursing Independent Sector
Cambridgeshire County Council,11-Dec-15,19624697-12517192,-528.37,Orchard House Nursing Home,Care Establishment,2 - Commissioning - Older people Pool,Older People - Fenland,Nursing Independent Sector
Cambridgeshire County Council,11-Dec-15,19624699-12517194,-528.37,Orchard House Nursing Home,Care Establishment,2 - Commissioning - Older people Pool,Older People - Fenland,Nursing Independent Sector
Cambridgeshire County Council,11-Dec-15,19624700-12517195,-528.37,Orchard House Nursing Home,Care Establishment,2 - Commissioning - Older people Pool,Older People - Fenland,Nursing Independent Sector
Cambridgeshire County Council,11-Dec-15,19624701-12517196,-528.37,Orchard House Nursing Home,Care Establishment,2 - Commissioning - Older people Pool,Older People - Fenland,Nursing Independent Sector
Cambridgeshire County Council,11-Dec-15,19624703-12517198,-528.37,Orchard House Nursing Home,Care Establishment,2 - Commissioning - Older people Pool,Older People - Fenland,Nursing Independent Sector
Cambridgeshire County Council,11-Dec-15,19624706-12517131,-528.37,Orchard House Nursing Home,Care Establishment,2 - Commissioning - Older people Pool,Older People - Fenland,Nursing Independent Sector
Cambridgeshire County Council,11-Dec-15,19624708-12517133,-528.37,Orchard House Nursing Home,Care Establishment,2 - Commissioning - Older people Pool,Older People - Fenland,Nursing Independent Sector
Cambridgeshire County Council,11-Dec-15,19624709-12517134,-528.37,Orchard House Nursing Home,Care Establishment,2 - Commissioning - Older people Pool,Older People - Fenland,Nursing Independent Sector
Cambridgeshire County Council,11-Dec-15,19624713-12517138,-528.37,Orchard House Nursing Home,Care Establishment,2 - Commissioning - Older people Pool,Older People - Fenland,Nursing Independent Sector
Cambridgeshire County Council,11-Dec-15,19624714-12517139,-528.37,Orchard House Nursing Home,Care Establishment,2 - Commissioning - Older people Pool,Older People - Fenland,Nursing Independent Sector
Cambridgeshire County Council,11-Dec-15,19624715-12517140,-528.37,Orchard House Nursing Home,Care Establishment,2 - Commissioning - Older people Pool,Older People - Fenland,Nursing Independent Sector
Cambridgeshire County Council,11-Dec-15,19580841-12518862,-514.29,The Gables Specialist Nursing Home,Care Establishment,2 - Commissioning - Older people Pool,Older People Mental Health Fenland,Nursing Independent Sector
Cambridgeshire County Council,11-Dec-15,19623091-12513554,-513.68,Brookfield Care,Care Establishment,3 - Operations - Countywide Services,Countywide PD Service - Care,Day and Domicillary Care Independent Sector
Cambridgeshire County Council,11-Dec-15,19623092-12513555,-513.68,Brookfield Care,Care Establishment,3 - Operations - Countywide Services,Countywide PD Service - Care,Day and Domicillary Care Independent Sector
Cambridgeshire County Council,11-Dec-15,19623093-12513556,-513.68,Brookfield Care,Care Establishment,3 - Operations - Countywide Services,Countywide PD Service - Care,Day and Domicillary Care Independent Sector
Cambridgeshire County Council,04-Dec-15,19579134-12476452,-513.1,Heron House Care Home,Care Establishment,2 - Commissioning - Older people Pool,Older People Mental Health Hunts,Nursing Independent Sector
Cambridgeshire County Council,04-Dec-15,19579138-12476448,-513.1,Heron House Care Home,Care Establishment,2 - Commissioning - Older people Pool,Older People Mental Health Hunts,Nursing Independent Sector
Cambridgeshire County Council,04-Dec-15,19579139-12476427,-513.1,Heron House Care Home,Care Establishment,2 - Commissioning - Older people Pool,Older People Mental Health Hunts,Nursing Independent Sector
Cambridgeshire County Council,04-Dec-15,19579142-12476424,-513.1,Heron House Care Home,Care Establishment,2 - Commissioning - Older people Pool,Older People Mental Health Hunts,Nursing Independent Sector
Cambridgeshire County Council,04-Dec-15,19579145-12476421,-513.1,Heron House Care Home,Care Establishment,2 - Commissioning - Older people Pool,Older People Mental Health Hunts,Nursing Independent Sector
Cambridgeshire County Council,04-Dec-15,19579149-12476417,-513.1,Heron House Care Home,Care Establishment,2 - Commissioning - Older people Pool,Older People Mental Health Hunts,Nursing Independent Sector
Cambridgeshire County Council,04-Dec-15,19579151-12476415,-513.1,Heron House Care Home,Care Establishment,2 - Commissioning - Older people Pool,Older People Mental Health Hunts,Nursing Independent Sector
Cambridgeshire County Council,04-Dec-15,19579152-12476414,-513.1,Heron House Care Home,Care Establishment,2 - Commissioning - Older people Pool,Older People Mental Health Hunts,Nursing Independent Sector
Cambridgeshire County Council,04-Dec-15,19579153-12476413,-513.1,Heron House Care Home,Care Establishment,2 - Commissioning - Older people Pool,Older People Mental Health Hunts,Nursing Independent Sector
Cambridgeshire County Council,04-Dec-15,19579154-12476412,-513.1,Heron House Care Home,Care Establishment,2 - Commissioning - Older people Pool,Older People Mental Health Hunts,Nursing Independent Sector
Cambridgeshire County Council,04-Dec-15,19579159-12476443,-513.1,Heron House Care Home,Care Establishment,2 - Commissioning - Older people Pool,Older People Mental Health Hunts,Nursing Independent Sector
Cambridgeshire County Council,04-Dec-15,19579160-12476442,-513.1,Heron House Care Home,Care Establishment,2 - Commissioning - Older people Pool,Older People Mental Health Hunts,Nursing Independent Sector
Cambridgeshire County Council,04-Dec-15,19579161-12476441,-513.1,Heron House Care Home,Care Establishment,2 - Commissioning - Older people Pool,Older People Mental Health Hunts,Nursing Independent Sector
Cambridgeshire County Council,04-Dec-15,19579163-12476439,-513.1,Heron House Care Home,Care Establishment,2 - Commissioning - Older people Pool,Older People Mental Health Hunts,Nursing Independent Sector
Cambridgeshire County Council,04-Dec-15,19579165-12476437,-513.1,Heron House Care Home,Care Establishment,2 - Commissioning - Older people Pool,Older People Mental Health Hunts,Nursing Independent Sector
Cambridgeshire County Council,04-Dec-15,19579166-12476436,-513.1,Heron House Care Home,Care Establishment,2 - Commissioning - Older people Pool,Older People Mental Health Hunts,Nursing Independent Sector
Cambridgeshire County Council,04-Dec-15,19579167-12476435,-513.1,Heron House Care Home,Care Establishment,2 - Commissioning - Older people Pool,Older People Mental Health Hunts,Nursing Independent Sector
Cambridgeshire County Council,04-Dec-15,19579168-12476434,-513.1,Heron House Care Home,Care Establishment,2 - Commissioning - Older people Pool,Older People Mental Health Hunts,Nursing Independent Sector
Cambridgeshire County Council,04-Dec-15,19579172-12476430,-513.1,Heron House Care Home,Care Establishment,2 - Commissioning - Older people Pool,Older People Mental Health Hunts,Nursing Independent Sector
Cambridgeshire County Council,04-Dec-15,19628913-12476405,-513.1,Heron House Care Home,Care Establishment,2 - Commissioning - Older people Pool,Older People Mental Health Hunts,Nursing Independent Sector
Cambridgeshire County Council,04-Dec-15,19628915-12476403,-513.1,Heron House Care Home,Care Establishment,2 - Commissioning - Older people Pool,Older People Mental Health Hunts,Nursing Independent Sector
Cambridgeshire County Council,04-Dec-15,19628917-12476401,-513.1,Heron House Care Home,Care Establishment,2 - Commissioning - Older people Pool,Older People Mental Health Hunts,Nursing Independent Sector
Cambridgeshire County Council,04-Dec-15,19628919-12476399,-513.1,Heron House Care Home,Care Establishment,2 - Commissioning - Older people Pool,Older People Mental Health Hunts,Nursing Independent Sector
Cambridgeshire County Council,04-Dec-15,19628921-12476397,-513.1,Heron House Care Home,Care Establishment,2 - Commissioning - Older people Pool,Older People Mental Health Hunts,Nursing Independent Sector
Cambridgeshire County Council,04-Dec-15,19628922-12476396,-513.1,Heron House Care Home,Care Establishment,2 - Commissioning - Older people Pool,Older People Mental Health Hunts,Nursing Independent Sector
Cambridgeshire County Council,04-Dec-15,19628928-12476390,-513.1,Heron House Care Home,Care Establishment,2 - Commissioning - Older people Pool,Older People Mental Health Hunts,Nursing Independent Sector
Cambridgeshire County Council,04-Dec-15,19628934-12476384,-513.1,Heron House Care Home,Care Establishment,2 - Commissioning - Older people Pool,Older People Mental Health Hunts,Nursing Independent Sector
Cambridgeshire County Council,04-Dec-15,19628936-12476382,-513.1,Heron House Care Home,Care Establishment,2 - Commissioning - Older people Pool,Older People Mental Health Hunts,Nursing Independent Sector
Cambridgeshire County Council,04-Dec-15,19628937-12476381,-513.1,Heron House Care Home,Care Establishment,2 - Commissioning - Older people Pool,Older People Mental Health Hunts,Nursing Independent Sector
Cambridgeshire County Council,04-Dec-15,19628939-12476379,-513.1,Heron House Care Home,Care Establishment,2 - Commissioning - Older people Pool,Older People Mental Health Hunts,Nursing Independent Sector
Cambridgeshire County Council,04-Dec-15,19628940-12476378,-513.1,Heron House Care Home,Care Establishment,2 - Commissioning - Older people Pool,Older People Mental Health Hunts,Nursing Independent Sector
Cambridgeshire County Council,04-Dec-15,19628941-12476377,-513.1,Heron House Care Home,Care Establishment,2 - Commissioning - Older people Pool,Older People Mental Health Hunts,Nursing Independent Sector
Cambridgeshire County Council,04-Dec-15,19628947-12476371,-513.1,Heron House Care Home,Care Establishment,2 - Commissioning - Older people Pool,Older People Mental Health Hunts,Nursing Independent Sector
Cambridgeshire County Council,04-Dec-15,19628948-12476370,-513.1,Heron House Care Home,Care Establishment,2 - Commissioning - Older people Pool,Older People Mental Health Hunts,Nursing Independent Sector
Cambridgeshire County Council,04-Dec-15,19628950-12476368,-513.1,Heron House Care Home,Care Establishment,2 - Commissioning - Older people Pool,Older People Mental Health Hunts,Nursing Independent Sector
Cambridgeshire County Council,04-Dec-15,19628951-12476367,-513.1,Heron House Care Home,Care Establishment,2 - Commissioning - Older people Pool,Older People Mental Health Hunts,Nursing Independent Sector
Cambridgeshire County Council,04-Dec-15,19628952-12476366,-513.1,Heron House Care Home,Care Establishment,2 - Commissioning - Older people Pool,Older People Mental Health Hunts,Nursing Independent Sector
Cambridgeshire County Council,04-Dec-15,19628954-12476364,-513.1,Heron House Care Home,Care Establishment,2 - Commissioning - Older people Pool,Older People Mental Health Hunts,Nursing Independent Sector
Cambridgeshire County Council,11-Dec-15,19656028-12512310,-513.1,Heron House Care Home,Care Establishment,2 - Commissioning - Older people Pool,Older People Mental Health Hunts,Nursing Independent Sector
Cambridgeshire County Council,11-Dec-15,19656032-12512269,-513.1,Heron House Care Home,Care Establishment,2 - Commissioning - Older people Pool,Older People Mental Health Hunts,Nursing Independent Sector
Cambridgeshire County Council,11-Dec-15,19656034-12512271,-513.1,Heron House Care Home,Care Establishment,2 - Commissioning - Older people Pool,Older People Mental Health Hunts,Nursing Independent Sector
Cambridgeshire County Council,11-Dec-15,19656036-12512272,-513.1,Heron House Care Home,Care Establishment,2 - Commissioning - Older people Pool,Older People Mental Health Hunts,Nursing Independent Sector
Cambridgeshire County Council,11-Dec-15,19656038-12512274,-513.1,Heron House Care Home,Care Establishment,2 - Commissioning - Older people Pool,Older People Mental Health Hunts,Nursing Independent Sector
Cambridgeshire County Council,11-Dec-15,19656039-12512275,-513.1,Heron House Care Home,Care Establishment,2 - Commissioning - Older people Pool,Older People Mental Health Hunts,Nursing Independent Sector
Cambridgeshire County Council,11-Dec-15,19656041-12512277,-513.1,Heron House Care Home,Care Establishment,2 - Commissioning - Older people Pool,Older People Mental Health Hunts,Nursing Independent Sector
Cambridgeshire County Council,11-Dec-15,19656054-12512303,-513.1,Heron House Care Home,Care Establishment,2 - Commissioning - Older people Pool,Older People Mental Health Hunts,Nursing Independent Sector
Cambridgeshire County Council,11-Dec-15,19656059-12512306,-513.1,Heron House Care Home,Care Establishment,2 - Commissioning - Older people Pool,Older People Mental Health Hunts,Nursing Independent Sector
Cambridgeshire County Council,11-Dec-15,19656060-12512307,-513.1,Heron House Care Home,Care Establishment,2 - Commissioning - Older people Pool,Older People Mental Health Hunts,Nursing Independent Sector
Cambridgeshire County Council,11-Dec-15,19656061-12512308,-513.1,Heron House Care Home,Care Establishment,2 - Commissioning - Older people Pool,Older People Mental Health Hunts,Nursing Independent Sector
Cambridgeshire County Council,11-Dec-15,19656069-12512282,-513.1,Heron House Care Home,Care Establishment,2 - Commissioning - Older people Pool,Older People Mental Health Hunts,Nursing Independent Sector
Cambridgeshire County Council,11-Dec-15,19656071-12512284,-513.1,Heron House Care Home,Care Establishment,2 - Commissioning - Older people Pool,Older People Mental Health Hunts,Nursing Independent Sector
Cambridgeshire County Council,11-Dec-15,19656082-12512289,-513.1,Heron House Care Home,Care Establishment,2 - Commissioning - Older people Pool,Older People Mental Health Hunts,Nursing Independent Sector
Cambridgeshire County Council,11-Dec-15,19656083-12512290,-513.1,Heron House Care Home,Care Establishment,2 - Commissioning - Older people Pool,Older People Mental Health Hunts,Nursing Independent Sector
Cambridgeshire County Council,11-Dec-15,19656085-12512291,-513.1,Heron House Care Home,Care Establishment,2 - Commissioning - Older people Pool,Older People Mental Health Hunts,Nursing Independent Sector
Cambridgeshire County Council,11-Dec-15,19656089-12512294,-513.1,Heron House Care Home,Care Establishment,2 - Commissioning - Older people Pool,Older People Mental Health Hunts,Nursing Independent Sector
Cambridgeshire County Council,11-Dec-15,19656093-12512298,-513.1,Heron House Care Home,Care Establishment,2 - Commissioning - Older people Pool,Older People Mental Health Hunts,Nursing Independent Sector
Cambridgeshire County Council,11-Dec-15,19656094-12512299,-513.1,Heron House Care Home,Care Establishment,2 - Commissioning - Older people Pool,Older People Mental Health Hunts,Nursing Independent Sector
Cambridgeshire County Council,17-Dec-15,19703952-12551661,-513.1,Heron House Care Home,Care Establishment,2 - Commissioning - Older people Pool,Older People Mental Health Hunts,Nursing Independent Sector
Cambridgeshire County Council,17-Dec-15,19703956-12551664,-513.1,Heron House Care Home,Care Establishment,2 - Commissioning - Older people Pool,Older People Mental Health Hunts,Nursing Independent Sector
Cambridgeshire County Council,17-Dec-15,19703966-12551671,-513.1,Heron House Care Home,Care Establishment,2 - Commissioning - Older people Pool,Older People Mental Health Hunts,Nursing Independent Sector
Cambridgeshire County Council,17-Dec-15,19703967-12551672,-513.1,Heron House Care Home,Care Establishment,2 - Commissioning - Older people Pool,Older People Mental Health Hunts,Nursing Independent Sector
Cambridgeshire County Council,17-Dec-15,19703971-12551675,-513.1,Heron House Care Home,Care Establishment,2 - Commissioning - Older people Pool,Older People Mental Health Hunts,Nursing Independent Sector
Cambridgeshire County Council,17-Dec-15,19707920-12551676,-513.1,Heron House Care Home,Care Establishment,2 - Commissioning - Older people Pool,Older People Mental Health Hunts,Nursing Independent Sector
Cambridgeshire County Council,17-Dec-15,19707921-12551677,-513.1,Heron House Care Home,Care Establishment,2 - Commissioning - Older people Pool,Older People Mental Health Hunts,Nursing Independent Sector
Cambridgeshire County Council,17-Dec-15,19707922-12551678,-513.1,Heron House Care Home,Care Establishment,2 - Commissioning - Older people Pool,Older People Mental Health Hunts,Nursing Independent Sector
Cambridgeshire County Council,17-Dec-15,19707924-12551679,-513.1,Heron House Care Home,Care Establishment,2 - Commissioning - Older people Pool,Older People Mental Health Hunts,Nursing Independent Sector
Cambridgeshire County Council,17-Dec-15,19707925-12551680,-513.1,Heron House Care Home,Care Establishment,2 - Commissioning - Older people Pool,Older People Mental Health Hunts,Nursing Independent Sector
Cambridgeshire County Council,17-Dec-15,19707926-12551681,-513.1,Heron House Care Home,Care Establishment,2 - Commissioning - Older people Pool,Older People Mental Health Hunts,Nursing Independent Sector
Cambridgeshire County Council,17-Dec-15,19707927-12551682,-513.1,Heron House Care Home,Care Establishment,2 - Commissioning - Older people Pool,Older People Mental Health Hunts,Nursing Independent Sector
Cambridgeshire County Council,17-Dec-15,19707928-12551683,-513.1,Heron House Care Home,Care Establishment,2 - Commissioning - Older people Pool,Older People Mental Health Hunts,Nursing Independent Sector
